Organisation Name,Effective Date,Purch Date,Service Area,Expense Area,Beneficiary,Net amount,    Tax,    Gross,G/L Acct Long Text,MCC Description
Buckinghamshire Council,31.10.2022,31.10.2022,Adults and Health,Health & Wellbeing - Adults & Health Dir,AMZNMKTPLACE,12.98,0,12.98,General Provisions (Food),Miscellaneous retail
Buckinghamshire Council,31.10.2022,31.10.2022,Children's Services,Education & Childrens Services - CS Dir,AMAZON.CO.UK,62.3,0,62.3,Sec 20/31: Specialist Services,Direct sales companies
Buckinghamshire Council,31.10.2022,31.10.2022,Children's Services,Education & Childrens Services - CS Dir,TRAINLINE,-50.3,0,-50.3,Leaving Care - Transport,Passenger railways
Buckinghamshire Council,31.10.2022,31.10.2022,Children's Services,Education & Childrens Services - CS Dir,ADS*WXNCSF3F92,46.18,0,46.18,Advertising,Advertising services
Buckinghamshire Council,31.10.2022,31.10.2022,Children's Services,Education & Childrens Services - CS Dir,AMZNMKTPLACE,34.1,0,34.1,Awaiting Coding,Miscellaneous retail
Buckinghamshire Council,31.10.2022,31.10.2022,"Planning, Growth & Sustainability",AH&R - PGS Dir,WREN DAVIS LIMITED,192.15,0,192.15,Awaiting Coding,Grocery stores
Buckinghamshire Council,31.10.2022,31.10.2022,Deputy Chief Executive,Communities - DCE,AO RETAIL LIMITED,453.99,0,453.99,Other Personal Needs,Household appliance stores
Buckinghamshire Council,31.10.2022,31.10.2022,Deputy Chief Executive,Communities - DCE,AO RETAIL LIMITED,378.99,0,378.99,Other Personal Needs,Household appliance stores
Buckinghamshire Council,31.10.2022,31.10.2022,Deputy Chief Executive,Communities - DCE,ARGOS LTD,248.95,0,248.95,Other Personal Needs,Discount stores
Buckinghamshire Council,31.10.2022,31.10.2022,"Planning, Growth & Sustainability",Housing & Homelessness & Regulatory PGS,BEACONSFIELD SSTP,29.1,0,29.1,Staff Travelling Expenses,Passenger railways
Buckinghamshire Council,31.10.2022,31.10.2022,Adults and Health,Health & Wellbeing - Adults & Health Dir,TESCO STORES 5135,137.23,0,137.23,Awaiting Coding,Grocery stores
Buckinghamshire Council,31.10.2022,31.10.2022,Adults and Health,Communities - Adults & Health,WWW.COPSHOPUK.COM,54.26,0,54.26,Awaiting Coding,Misc business services
Buckinghamshire Council,31.10.2022,31.10.2022,Children's Services,Education & Childrens Services - CS Dir,AMZNMKTPLACE,8.99,0,8.99,Activities & General Recreation,Miscellaneous retail
Buckinghamshire Council,31.10.2022,31.10.2022,Communities,Culture & Leisure - Communities Dir,AMZNMKTPLACE,43.3,8.66,51.96,"Workshop - Materials,Tools & Equipment",Miscellaneous retail
Buckinghamshire Council,31.10.2022,31.10.2022,Children's Services,Education & Childrens Services - CS Dir,PAYPAL,53.75,0,53.75,Activities & General Recreation,"Civic, social & fraternal associations"
Buckinghamshire Council,31.10.2022,31.10.2022,Children's Services,Education & Childrens Services - CS Dir,TRAINLINE,58.35,0,58.35,Sec 20/31: Supp for Contact,Passenger railways
Buckinghamshire Council,31.10.2022,31.10.2022,Children's Services,Education & Childrens Services - CS Dir,AMZ*EPHESUS LTD,-7.98,0,-7.98,Sec 20/31: Financial Assistance,Miscellaneous retail
Buckinghamshire Council,31.10.2022,31.10.2022,Resources,AH&R - Res Dir,WWW.BIPSOLUTIONS.COM,348,0,348,"Courses, Conference and Seminar Fees",
Buckinghamshire Council,31.10.2022,31.10.2022,Communities,Partnerships - Communities,THE ROEBUCK,28,0,28,Subsistence,"Bars, taverns, pubs & nightclubs"
Buckinghamshire Council,31.10.2022,31.10.2022,"Planning, Growth & Sustainability",AH&R - PGS Dir,AO RETAIL LIMITED,375.8,75.16,450.96,Catering & Domestic Equipment,Household appliance stores
Buckinghamshire Council,31.10.2022,31.10.2022,"Planning, Growth & Sustainability",AH&R - PGS Dir,AO RETAIL LIMITED,0.03,0,0.03,Catering & Domestic Equipment,Household appliance stores
Buckinghamshire Council,31.10.2022,31.10.2022,Deputy Chief Executive,Leader - DCE,FACEBK LVFTWJPPN2,629.33,0,629.33,Advertising,Advertising services
Buckinghamshire Council,31.10.2022,31.10.2022,Children's Services,Education & Childrens Services - CS Dir,WM MORRISONS STORE,4.62,0,4.62,Consumable Supplies,Grocery stores
Buckinghamshire Council,31.10.2022,31.10.2022,Children's Services,Education & Childrens Services - CS Dir,SP ARTEZA.CO.UK,13.54,0,13.54,Leaving Care - Higher Education Supp,Art & craft shops
Buckinghamshire Council,31.10.2022,31.10.2022,Children's Services,Education & Childrens Services - CS Dir,BLANKS SUBLIMATION,7.68,0,7.68,Leaving Care - Higher Education Supp,Misc. general merchandise
Buckinghamshire Council,31.10.2022,31.10.2022,Children's Services,Education & Childrens Services - CS Dir,STUDENT ROOST,750,0,750,Leaving Care - Higher Education Supp,Estate Agents & Property Management
Buckinghamshire Council,31.10.2022,31.10.2022,Children's Services,Education & Childrens Services - CS Dir,LONDON GRAPHIC CENTRE,50.96,0,50.96,Leaving Care - Higher Education Supp,Stationery & office supplies stores
Buckinghamshire Council,31.10.2022,31.10.2022,Communities,Communities - Trust Accounts,WWW.NISBETS.COM,86.26,0,86.26,Stationery & Office Supplies,Catalogue sales
Buckinghamshire Council,31.10.2022,31.10.2022,Children's Services,Education & Childrens Services - CS Dir,Hobbycraft,12.6,0,12.6,Awaiting Coding,Art & craft shops
Buckinghamshire Council,31.10.2022,31.10.2022,"Planning, Growth & Sustainability",Planning & Regeneration - PGS,TRAINLINE,36.66,0,36.66,Other Employees Expenses,Passenger railways
Buckinghamshire Council,31.10.2022,31.10.2022,"Planning, Growth & Sustainability",Planning & Regeneration - PGS,TRAINLINE,22.96,0,22.96,Other Employees Expenses,Passenger railways
Buckinghamshire Council,31.10.2022,31.10.2022,Resources,AH&R - Res Dir,ADS*5BBANG3742,12.78,0,12.78,Permanent Recruitment Costs,Advertising services
Buckinghamshire Council,31.10.2022,31.10.2022,Resources,AH&R - Res Dir,ENTERPRISE RENT A CAR UK,753.05,0,753.05,Equipment,Transportation services
Buckinghamshire Council,31.10.2022,31.10.2022,"Planning, Growth & Sustainability",Housing & Homelessness & Regulatory PGS,BEACONSFIELD SSTP,29.2,0,29.2,Staff Travelling Expenses,Passenger railways
Buckinghamshire Council,31.10.2022,31.10.2022,Children's Services,Education & Childrens Services - CS Dir,GREGGS,9.1,0,9.1,Subsistence,Restaurants
Buckinghamshire Council,31.10.2022,31.10.2022,Children's Services,Education & Childrens Services - CS Dir,TRAINLINE,115.49,0,115.49,Sec 20/31: Transport,Passenger railways
Buckinghamshire Council,31.10.2022,31.10.2022,Adults and Health,Health & Wellbeing - Adults & Health Dir,TESCO STORES 5135,99.99,0,99.99,Awaiting Coding,Grocery stores
Buckinghamshire Council,31.10.2022,31.10.2022,Resources,AH&R - Res Dir,WETHERSPOON HOTEL,84,0,84,"Courses, Conference and Seminar Fees","Hotels, motels & resorts"
Buckinghamshire Council,31.10.2022,31.10.2022,"Planning, Growth & Sustainability",Climate Change & Environment - PGS,LAND REGISTRY ECOM CCC,6,0,6,Environmental Projects,Government services
Buckinghamshire Council,31.10.2022,31.10.2022,Children's Services,Education & Childrens Services - CS Dir,EMPIRE CINEMAS,9.19,0,9.19,Awaiting Coding,Theatres and ticket agencies
Buckinghamshire Council,31.10.2022,31.10.2022,Children's Services,Education & Childrens Services - CS Dir,EMPIRE CINEMAS,15.38,0,15.38,Awaiting Coding,Theatres and ticket agencies
Buckinghamshire Council,31.10.2022,30.10.2022,Children's Services,Education & Childrens Services - CS Dir,AMAZON.CO.UK,85.5,0,85.5,Stationery & Office Supplies,Direct sales companies
Buckinghamshire Council,31.10.2022,30.10.2022,Children's Services,Education & Childrens Services - CS Dir,TESCO STORES 2020,49.96,0,49.96,Project Funding,Grocery stores
Buckinghamshire Council,31.10.2022,30.10.2022,Children's Services,Education & Childrens Services - CS Dir,TESCO STORES 2020,-0.85,0,-0.85,Project Funding,Grocery stores
Buckinghamshire Council,31.10.2022,30.10.2022,Communities,Climate Change & Environment - Community,AMZNMKTPLACE,25.96,0,25.96,Repair & Maint of Vehicles & Plant,Miscellaneous retail
Buckinghamshire Council,31.10.2022,30.10.2022,Adults and Health,Health & Wellbeing - Adults & Health Dir,AMZNMKTPLACE,17.89,0,17.89,Stationery & Office Supplies,Miscellaneous retail
Buckinghamshire Council,31.10.2022,30.10.2022,Children's Services,Education & Childrens Services - CS Dir,AMZNMKTPLACE,34.42,0,34.42,Other Personal Needs,Miscellaneous retail
Buckinghamshire Council,31.10.2022,30.10.2022,Adults and Health,Health & Wellbeing - Adults & Health Dir,AMAZON PRIME,8.99,0,8.99,Stationery & Office Supplies,Continuous subscriptions
Buckinghamshire Council,31.10.2022,30.10.2022,Communities,Culture & Leisure - Communities Dir,AMAZON.CO.UK,19,0,19,Stationery & Office Supplies,Direct sales companies
Buckinghamshire Council,31.10.2022,30.10.2022,"Planning, Growth & Sustainability",Housing & Homelessness & Regulatory PGS,Amazon.co.uk,10.64,0,10.64,Stationery & Office Supplies,Direct sales companies
Buckinghamshire Council,31.10.2022,30.10.2022,Adults and Health,Health & Wellbeing - Adults & Health Dir,SAINSBURY'S S/MKT,11,0,11,Awaiting Coding,Grocery stores
Buckinghamshire Council,31.10.2022,30.10.2022,Adults and Health,Health & Wellbeing - Adults & Health Dir,AMZNMKTPLACE,18.32,3.67,21.99,Other General Office Expenses,Miscellaneous retail
Buckinghamshire Council,31.10.2022,29.10.2022,Children's Services,Education & Childrens Services - CS Dir,AMZNMKTPLACE,67.96,0,67.96,Other Personal Needs,Miscellaneous retail
Buckinghamshire Council,31.10.2022,29.10.2022,Children's Services,Education & Childrens Services - CS Dir,TESCO STORES 2038,221.58,0,221.58,General Provisions (Food),Grocery stores
Buckinghamshire Council,31.10.2022,29.10.2022,Communities,Culture & Leisure - Communities Dir,EBAY O*10-09274-38733,46.87,0,46.87,"Workshop - Materials,Tools & Equipment",Department stores
Buckinghamshire Council,31.10.2022,29.10.2022,Communities,Transport - Communities Dir,AMZNMktplace,23.97,0,23.97,Awaiting Coding,Miscellaneous retail
Buckinghamshire Council,31.10.2022,29.10.2022,Children's Services,Education & Childrens Services - CS Dir,AMZNMKTPLACE,21.98,0,21.98,Other Personal Needs,Miscellaneous retail
Buckinghamshire Council,31.10.2022,29.10.2022,Children's Services,Education & Childrens Services - CS Dir,Amazon.co.uk,200,0,200,Stationery & Office Supplies,Direct sales companies
Buckinghamshire Council,31.10.2022,29.10.2022,Children's Services,Education & Childrens Services - CS Dir,Amazon.co.uk,325,0,325,Stationery & Office Supplies,Direct sales companies
Buckinghamshire Council,31.10.2022,29.10.2022,Communities,Culture & Leisure - Communities Dir,AMAZON.CO.UK,20,0,20,Stationery & Office Supplies,Direct sales companies
Buckinghamshire Council,31.10.2022,29.10.2022,"Planning, Growth & Sustainability",Housing & Homelessness & Regulatory PGS,HOME BARGAINS,33.78,0,33.78,Other General Office Expenses,Hardware stores
Buckinghamshire Council,31.10.2022,29.10.2022,Children's Services,Education & Childrens Services - CS Dir,SMITHS GARDEN CENTRE,12,0,12,Consumable Supplies,Lawn & garden supply/nursery
Buckinghamshire Council,31.10.2022,28.10.2022,Adults and Health,Health & Wellbeing - Adults & Health Dir,ASDA SUPERSTORE,14.7,0,14.7,General Provisions (Food),Grocery stores
Buckinghamshire Council,31.10.2022,28.10.2022,Children's Services,Education & Childrens Services - CS Dir,SOUTHERN ELECTRIC,486.67,0,486.67,Sec 17: Transport,Utilities
Buckinghamshire Council,31.10.2022,28.10.2022,Children's Services,Education & Childrens Services - CS Dir,POST OFFICE COUNTER,16,0,16,Sec 20/31: Financial Assistance,Postal services
Buckinghamshire Council,31.10.2022,28.10.2022,Children's Services,Education & Childrens Services - CS Dir,UK CARS (HIGH WYCOMBE),160,0,160,Staff Travelling Expenses,Taxicabs & limousines
Buckinghamshire Council,31.10.2022,28.10.2022,Children's Services,Education & Childrens Services - CS Dir,FREEDOM PROGRAMME LIMITED,12,0,12,Awaiting Coding,Schools
Buckinghamshire Council,31.10.2022,28.10.2022,Children's Services,Education & Childrens Services - CS Dir,FREEDOM PROGRAMME LIMITED,24,0,24,Awaiting Coding,Schools
Buckinghamshire Council,31.10.2022,28.10.2022,Children's Services,Education & Childrens Services - CS Dir,FREEDOM PROGRAMME LIMITED,24,0,24,Awaiting Coding,Schools
Buckinghamshire Council,31.10.2022,28.10.2022,Children's Services,Education & Childrens Services - CS Dir,AMZNMKTPLACE,22.99,0,22.99,Other Personal Needs,Miscellaneous retail
Buckinghamshire Council,31.10.2022,28.10.2022,Communities,Culture & Leisure - Communities Dir,WWW.ROMPALIMITED.COM,-46.62,0,-46.62,Awaiting Coding,Miscellaneous retail
Buckinghamshire Council,31.10.2022,28.10.2022,Children's Services,Education & Childrens Services - CS Dir,A1 TAXI SERVICE,"1,560.00",0,"1,560.00",Sec 20/31: Transport,Taxicabs & limousines
Buckinghamshire Council,31.10.2022,28.10.2022,Children's Services,Education & Childrens Services - CS Dir,A1 TAXI SERVICE,264,0,264,Sec 20/31: Transport,Taxicabs & limousines
Buckinghamshire Council,31.10.2022,28.10.2022,Children's Services,Education & Childrens Services - CS Dir,CHERWELL CARS,108,0,108,Sec 20/31: Transport,Taxicabs & limousines
Buckinghamshire Council,31.10.2022,28.10.2022,Children's Services,Education & Childrens Services - CS Dir,TRAINLINE,-50.4,0,-50.4,Sec 20/31: Transport,Passenger railways
Buckinghamshire Council,31.10.2022,28.10.2022,Communities,Climate Change & Environment - Community,B & Q 1305,8.16,0,8.16,Repair & Maint of Vehicles & Plant,Home supply warehouse stores
Buckinghamshire Council,31.10.2022,28.10.2022,Deputy Chief Executive,Communities - DCE,ARGOS LTD,55.5,0,55.5,Other Personal Needs,Discount stores
Buckinghamshire Council,31.10.2022,28.10.2022,Deputy Chief Executive,Communities - DCE,AO RETAIL LIMITED,"1,046.99",0,"1,046.99",Other Personal Needs,Household appliance stores
Buckinghamshire Council,31.10.2022,28.10.2022,Deputy Chief Executive,Communities - DCE,AO RETAIL LIMITED,318.99,0,318.99,Other Personal Needs,Household appliance stores
Buckinghamshire Council,31.10.2022,28.10.2022,Deputy Chief Executive,Communities - DCE,ARGOS LTD,157.95,0,157.95,Other Personal Needs,Discount stores
Buckinghamshire Council,31.10.2022,28.10.2022,Deputy Chief Executive,Communities - DCE,ARGOS LTD,520,0,520,Other Personal Needs,Discount stores
Buckinghamshire Council,31.10.2022,28.10.2022,Deputy Chief Executive,Communities - DCE,ARGOS LTD,347.95,0,347.95,Other Personal Needs,Discount stores
Buckinghamshire Council,31.10.2022,28.10.2022,Deputy Chief Executive,Communities - DCE,ARGOS LTD,315.95,0,315.95,Other Personal Needs,Discount stores
Buckinghamshire Council,31.10.2022,28.10.2022,Deputy Chief Executive,Communities - DCE,AO RETAIL LIMITED,587.99,0,587.99,Other Personal Needs,Household appliance stores
Buckinghamshire Council,31.10.2022,28.10.2022,Deputy Chief Executive,Communities - DCE,ARGOS LTD,18,0,18,Other Personal Needs,Discount stores
Buckinghamshire Council,31.10.2022,28.10.2022,Deputy Chief Executive,Communities - DCE,ARGOS LTD,59.95,0,59.95,Other Personal Needs,Discount stores
Buckinghamshire Council,31.10.2022,28.10.2022,Children's Services,Education & Childrens Services - CS Dir,EASYJET,91.99,0,91.99,YOS - Direct Work,Easyjet
Buckinghamshire Council,31.10.2022,28.10.2022,Children's Services,Education & Childrens Services - CS Dir,SP CHARFLEET BOOKS,150.6,0,150.6,Computer Consumables,Computer software stores
Buckinghamshire Council,31.10.2022,28.10.2022,Children's Services,Education & Childrens Services - CS Dir,SCOTTISH POWER,170.53,0,170.53,Sec 17: Financial Assistance,Fuel dealers
Buckinghamshire Council,31.10.2022,28.10.2022,Children's Services,Education & Childrens Services - CS Dir,GRAMMARLY COM58C13H,128.91,0,128.91,Computer Consumables,Computer software stores
Buckinghamshire Council,31.10.2022,28.10.2022,Communities,Housing & Homelessness & Regulatory Comm,PREMIER INN,268,0,268,"Courses, Conference and Seminar Fees",Premier Inn
Buckinghamshire Council,31.10.2022,28.10.2022,Communities,Housing & Homelessness & Regulatory Comm,TESCO STORES 2020,28.3,0,28.3,Awaiting Coding,Grocery stores
Buckinghamshire Council,31.10.2022,28.10.2022,Resources,AH&R - Res Dir,ABRATAX - MTD,10,2,12,Computer Consumables,Computer software stores
Buckinghamshire Council,31.10.2022,28.10.2022,Children's Services,Education & Childrens Services - CS Dir,NEALES TAXIS LTD,108,0,108,Sec 17: Financial Assistance,Taxicabs & limousines
Buckinghamshire Council,31.10.2022,28.10.2022,Deputy Chief Executive,Communities - DCE,THE WATERMEAD INN,2.95,0,2.95,Subsistence,"Bars, taverns, pubs & nightclubs"
Buckinghamshire Council,31.10.2022,28.10.2022,Deputy Chief Executive,Communities - DCE,SUMUP  *CURIOSITEA,8,0,8,Subsistence,Restaurants
Buckinghamshire Council,31.10.2022,28.10.2022,Children's Services,Education & Childrens Services - CS Dir,EMPIRE CINEMAS,7.69,0,7.69,Activities & General Recreation,Theatres and ticket agencies
Buckinghamshire Council,31.10.2022,28.10.2022,Children's Services,Education & Childrens Services - CS Dir,RUSH HIGH WYCOMBE,13.5,0,13.5,Activities & General Recreation,Misc. recreational services
Buckinghamshire Council,31.10.2022,28.10.2022,Children's Services,Education & Childrens Services - CS Dir,WWW.CONNEVANS.COM,46.34,0,46.34,Other Personal Needs,Miscellaneous retail
Buckinghamshire Council,31.10.2022,28.10.2022,Children's Services,Education & Childrens Services - CS Dir,CORAMBAAF,22.5,0,22.5,"Books, Records, Films & Oth Publications",
Buckinghamshire Council,31.10.2022,28.10.2022,Resources,AH&R - Res Dir,PAYPAL,7.2,0,7.2,IT - Computer Network Charges,Computer network information services
Buckinghamshire Council,31.10.2022,28.10.2022,Deputy Chief Executive,AH&R- DCE Dir,ARGOS LTD,240.82,0,240.82,General Allowances,Discount stores
Buckinghamshire Council,31.10.2022,28.10.2022,Children's Services,Education & Childrens Services - CS Dir,SP THELEJOUXSTROLLER,119.98,0,119.98,Equipment (including storage),Miscellaneous retail
Buckinghamshire Council,31.10.2022,28.10.2022,"Planning, Growth & Sustainability",AH&R - PGS Dir,TP 24 LIMITED,74.74,14.95,89.69,General Repairs & Maintenance,Electronics shops
Buckinghamshire Council,31.10.2022,28.10.2022,"Planning, Growth & Sustainability",AH&R - PGS Dir,WILKO RETAIL LIMITED,4.15,0.83,4.98,General Repairs & Maintenance,Misc. general merchandise
Buckinghamshire Council,31.10.2022,28.10.2022,"Planning, Growth & Sustainability",AH&R - PGS Dir,WILKO RETAIL LIMITED,0.02,0,0.02,General Repairs & Maintenance,Misc. general merchandise
Buckinghamshire Council,31.10.2022,28.10.2022,"Planning, Growth & Sustainability",AH&R - PGS Dir,WWW.SCREWFIX.COM,20.8,4.16,24.96,General Repairs & Maintenance,Timber & building supplies
Buckinghamshire Council,31.10.2022,28.10.2022,"Planning, Growth & Sustainability",AH&R - PGS Dir,WWW.SCREWFIX.COM,0.03,0,0.03,General Repairs & Maintenance,Timber & building supplies
Buckinghamshire Council,31.10.2022,28.10.2022,Children's Services,Education & Childrens Services - CS Dir,AMZNMKTPLACE,5.79,0,5.79,Leaving Care - Higher Education Supp,Miscellaneous retail
Buckinghamshire Council,31.10.2022,28.10.2022,Children's Services,Education & Childrens Services - CS Dir,HOBBYCRAFT TRADING LIMITE,45.5,0,45.5,Leaving Care - Higher Education Supp,Art & craft shops
Buckinghamshire Council,31.10.2022,28.10.2022,Children's Services,Education & Childrens Services - CS Dir,TRAINLINE.COM,-17.3,0,-17.3,Sec 20/31: Transport,Passenger railways
Buckinghamshire Council,31.10.2022,28.10.2022,Children's Services,Education & Childrens Services - CS Dir,BUCKINGHAMSHIRE COUNCIL,33,0,33,Sec 20/31: Financial Assistance,Government services
Buckinghamshire Council,31.10.2022,28.10.2022,Deputy Chief Executive,Communities - DCE,THE CREW CAFE,10.95,0,10.95,General Provisions (Food),Restaurants
Buckinghamshire Council,31.10.2022,28.10.2022,Deputy Chief Executive,Communities - DCE,THE CREW CAFE,4,0,4,General Provisions (Food),Restaurants
Buckinghamshire Council,31.10.2022,28.10.2022,Deputy Chief Executive,Communities - DCE,PARKING-MOUNT,1,0,1,Staff Travelling Expenses,Car parking & garages
Buckinghamshire Council,31.10.2022,28.10.2022,Children's Services,Education & Childrens Services - CS Dir,AMZNMKTPLACE,10.09,0,10.09,Leaving Care - Higher Education Supp,Miscellaneous retail
Buckinghamshire Council,31.10.2022,27.10.2022,Deputy Chief Executive,Communities - DCE,ARGOS LTD,198,0,198,Awaiting Coding,Discount stores
Buckinghamshire Council,31.10.2022,27.10.2022,Deputy Chief Executive,Communities - DCE,ARGOS LTD,435.95,0,435.95,Awaiting Coding,Discount stores
Buckinghamshire Council,31.10.2022,27.10.2022,Children's Services,Education & Childrens Services - CS Dir,TRAINLINE,32.95,0,32.95,Sec 20/31: Transport,Passenger railways
Buckinghamshire Council,31.10.2022,27.10.2022,Children's Services,Education & Childrens Services - CS Dir,WWW.SCREWFIX.COM,107.42,0,107.42,Leaving Care - Higher Education Supp,Timber & building supplies
Buckinghamshire Council,31.10.2022,27.10.2022,Children's Services,Education & Childrens Services - CS Dir,AMZNMKTPLACE,20.99,0,20.99,Printing & Stationery,Miscellaneous retail
Buckinghamshire Council,31.10.2022,27.10.2022,Children's Services,Education & Childrens Services - CS Dir,AMZNMKTPLACE,7.99,0,7.99,Repair and Maintenance of Equipment,Miscellaneous retail
Buckinghamshire Council,31.10.2022,27.10.2022,Children's Services,Education & Childrens Services - CS Dir,TESCO STORES 2640,13.6,0,13.6,"Exp of School, Club & College Activities",Grocery stores
Buckinghamshire Council,31.10.2022,27.10.2022,Children's Services,Education & Childrens Services - CS Dir,INTERFLORA BRITISH UNI,47,0,47,Other Employees Expenses,Florists
Buckinghamshire Council,31.10.2022,27.10.2022,Children's Services,Education & Childrens Services - CS Dir,STOKE MANDEVILLE STADIUM,5,0,5,Activities & General Recreation,"Hotels, motels & resorts"
Buckinghamshire Council,31.10.2022,27.10.2022,Children's Services,Education & Childrens Services - CS Dir,AMZNMKTPLACE,37.93,0,37.93,Activities & General Recreation,Miscellaneous retail
Buckinghamshire Council,31.10.2022,27.10.2022,Adults and Health,Health & Wellbeing - Adults & Health Dir,TESCO STORES 5143,2.4,0,2.4,General Provisions (Food),Grocery stores
Buckinghamshire Council,31.10.2022,27.10.2022,Communities,Climate Change & Environment - Community,TIMPSON LTD,8,0,8,General Repairs & Maintenance,Miscellaneous retail
Buckinghamshire Council,31.10.2022,27.10.2022,Deputy Chief Executive,Communities - DCE,ARGOS LTD,248.95,0,248.95,Other Personal Needs,Discount stores
Buckinghamshire Council,31.10.2022,27.10.2022,Deputy Chief Executive,Communities - DCE,ARGOS LTD,58.95,0,58.95,Other Personal Needs,Discount stores
Buckinghamshire Council,31.10.2022,27.10.2022,Deputy Chief Executive,Communities - DCE,AO RETAIL LIMITED,20,0,20,Other Personal Needs,Household appliance stores
Buckinghamshire Council,31.10.2022,27.10.2022,Deputy Chief Executive,Communities - DCE,AO RETAIL LIMITED,762.99,0,762.99,Other Personal Needs,Household appliance stores
Buckinghamshire Council,31.10.2022,27.10.2022,Deputy Chief Executive,Communities - DCE,AO RETAIL LIMITED,263.99,0,263.99,Other Personal Needs,Household appliance stores
Buckinghamshire Council,31.10.2022,27.10.2022,Deputy Chief Executive,Communities - DCE,AO RETAIL LIMITED,338.99,0,338.99,Other Personal Needs,Household appliance stores
Buckinghamshire Council,31.10.2022,27.10.2022,Communities,Housing & Homelessness & Regulatory Comm,SP T-SHIRT PRINT UK,66.99,0,66.99,Computer Consumables,Computer software stores
Buckinghamshire Council,31.10.2022,27.10.2022,Children's Services,Education & Childrens Services - CS Dir,HM PASSPORT OFFICE,49,0,49,Court Orders Sec 31: Miscellaneous,Government services
Buckinghamshire Council,31.10.2022,27.10.2022,Resources,AH&R - Res Dir,NABLE TECHNOLOGIES,179.28,0,179.28,Server Hosting,Computer maintenance & repair
Buckinghamshire Council,31.10.2022,27.10.2022,Communities,Culture & Leisure - Communities Dir,SCREWFIX DIR LTD,7.49,1.5,8.99,"Workshop - Materials,Tools & Equipment",Timber & building supplies
Buckinghamshire Council,31.10.2022,27.10.2022,Adults and Health,Health & Wellbeing - Adults & Health Dir,HEALTHCARE CONFERENCES,500,0,500,"Courses, Conference and Seminar Fees",Misc business services
Buckinghamshire Council,31.10.2022,27.10.2022,Adults and Health,Health & Wellbeing - Adults & Health Dir,HEALTHCARE CONFERENCES,"1,000.00",0,"1,000.00","Courses, Conference and Seminar Fees",Misc business services
Buckinghamshire Council,31.10.2022,27.10.2022,Resources,AH&R - Res Dir,WWW.CIPFA.ORG.UK,138,0,138,Professional Subscriptions re Employees,Membership organisations
Buckinghamshire Council,31.10.2022,27.10.2022,Resources,AH&R - Res Dir,WWW.CIPFA.ORG.UK,175.5,0,175.5,Professional Subscriptions re Employees,Membership organisations
Buckinghamshire Council,31.10.2022,27.10.2022,Children's Services,Education & Childrens Services - CS Dir,AMAZON.CO.UK,9.99,0,9.99,Consumable Supplies,Direct sales companies
Buckinghamshire Council,31.10.2022,27.10.2022,Deputy Chief Executive,Communities - DCE,RINGGO PARKING,2.65,0,2.65,Staff Travelling Expenses,Car parking & garages
Buckinghamshire Council,31.10.2022,27.10.2022,Deputy Chief Executive,Communities - DCE,CHILTERN POOL,8.1,0,8.1,General Provisions (Food),"Member clubs, sport, recreation & golf"
Buckinghamshire Council,31.10.2022,27.10.2022,Adults and Health,Health & Wellbeing - Adults & Health Dir,ASDA GROCERIES ONLINE,56.6,0,56.6,Awaiting Coding,Grocery stores
Buckinghamshire Council,31.10.2022,27.10.2022,Adults and Health,Health & Wellbeing - Adults & Health Dir,ASDA GROCERIES ONLINE,-1.05,0,-1.05,Awaiting Coding,Grocery stores
Buckinghamshire Council,31.10.2022,27.10.2022,Communities,Transport - Communities Dir,THOMSON REUTERS UK LTD,235,0,235,"Maps, Plans & Drawing Office Materials",Professional services
Buckinghamshire Council,31.10.2022,27.10.2022,Children's Services,Education & Childrens Services - CS Dir,EMPIRE CINEMAS,7.69,0,7.69,Activities & General Recreation,Theatres and ticket agencies
Buckinghamshire Council,31.10.2022,27.10.2022,"Planning, Growth & Sustainability",Housing & Homelessness & Regulatory PGS,VIRGIN EXPERIENCE DAYS,254.99,0,254.99,Long Service Awards,Misc Food stores
Buckinghamshire Council,31.10.2022,27.10.2022,Children's Services,Education & Childrens Services - CS Dir,TRAINLINE,72.3,0,72.3,Court Orders Sec 31: Supp. for Contact,Passenger railways
Buckinghamshire Council,31.10.2022,27.10.2022,Children's Services,Education & Childrens Services - CS Dir,AMZNMKTPLACE,55.83,0,55.83,Leaving Care - Higher Education Supp,Miscellaneous retail
Buckinghamshire Council,31.10.2022,27.10.2022,Children's Services,Education & Childrens Services - CS Dir,AMZNMKTPLACE,31.82,0,31.82,Leaving Care - Higher Education Supp,Miscellaneous retail
Buckinghamshire Council,31.10.2022,27.10.2022,Children's Services,Education & Childrens Services - CS Dir,AMZNMKTPLACE,4.49,0,4.49,Leaving Care - Higher Education Supp,Miscellaneous retail
Buckinghamshire Council,31.10.2022,27.10.2022,Children's Services,Education & Childrens Services - CS Dir,TOOLSTATION UK,523.58,0,523.58,Leaving Care - Higher Education Supp,Hardware stores
Buckinghamshire Council,31.10.2022,27.10.2022,Children's Services,Education & Childrens Services - CS Dir,SP SNAPE AND SONS,19.73,0,19.73,Leaving Care - Higher Education Supp,Computer software stores
Buckinghamshire Council,31.10.2022,27.10.2022,Children's Services,Education & Childrens Services - CS Dir,AMZNMKTPLACE,5.99,0,5.99,Leaving Care - Higher Education Supp,Miscellaneous retail
Buckinghamshire Council,31.10.2022,27.10.2022,Children's Services,Education & Childrens Services - CS Dir,AMZNMKTPLACE,27.82,0,27.82,Leaving Care - Higher Education Supp,Miscellaneous retail
Buckinghamshire Council,31.10.2022,27.10.2022,Children's Services,Education & Childrens Services - CS Dir,GREAT ART,44.94,0,44.94,Leaving Care - Higher Education Supp,Art & craft shops
Buckinghamshire Council,31.10.2022,27.10.2022,Children's Services,Education & Childrens Services - CS Dir,AMZNMKTPLACE,14.82,0,14.82,Leaving Care - Higher Education Supp,Miscellaneous retail
Buckinghamshire Council,31.10.2022,27.10.2022,Children's Services,Education & Childrens Services - CS Dir,B&Q MARKETPLACE,16.92,0,16.92,Leaving Care - Higher Education Supp,Timber & building supplies
Buckinghamshire Council,31.10.2022,27.10.2022,Children's Services,Education & Childrens Services - CS Dir,AMZNMKTPLACE,11.82,0,11.82,Leaving Care - Higher Education Supp,Miscellaneous retail
Buckinghamshire Council,31.10.2022,27.10.2022,Children's Services,Education & Childrens Services - CS Dir,B&Q MARKETPLACE,16.92,0,16.92,Leaving Care - Higher Education Supp,Timber & building supplies
Buckinghamshire Council,31.10.2022,27.10.2022,Children's Services,Education & Childrens Services - CS Dir,AMZNMKTPLACE,2.99,0,2.99,Support for Foster Carers,Miscellaneous retail
Buckinghamshire Council,31.10.2022,27.10.2022,"Planning, Growth & Sustainability",Planning & Regeneration - PGS,TFL TRAVEL CH,5,0,5,Other Employees Expenses,Local commuter transport
Buckinghamshire Council,31.10.2022,27.10.2022,"Planning, Growth & Sustainability",Planning & Regeneration - PGS,TRAINLINE,20.83,0,20.83,Other Employees Expenses,Passenger railways
Buckinghamshire Council,31.10.2022,27.10.2022,Resources,AH&R - Res Dir,SQ *REED.CO.UK,116,0,116,Course Fees & Post Entry Training,Schools
Buckinghamshire Council,31.10.2022,27.10.2022,Children's Services,Education & Childrens Services - CS Dir,AMAZON PRIME,8.99,0,8.99,Stationery & Office Supplies,Continuous subscriptions
Buckinghamshire Council,31.10.2022,27.10.2022,Children's Services,Education & Childrens Services - CS Dir,43013665 COSTA COFFEE,8.5,0,8.5,Subsistence,Fast food restaurants
Buckinghamshire Council,31.10.2022,27.10.2022,"Planning, Growth & Sustainability",Housing & Homelessness & Regulatory PGS,WWW.SCREWFIX.COM,22.99,0,22.99,Administrative Equipment & Tools,Timber & building supplies
Buckinghamshire Council,31.10.2022,27.10.2022,Children's Services,Education & Childrens Services - CS Dir,TRAINLINE,57.23,0,57.23,Sec 20/31: Supp for Contact,Passenger railways
Buckinghamshire Council,31.10.2022,27.10.2022,Resources,AH&R - Res Dir,GEN REGISTER OFFICE,14,0,14,Awaiting Coding,Government services
Buckinghamshire Council,31.10.2022,26.10.2022,Resources,AH&R - Res Dir,AMZNMKTPLACE,79.9,0,79.9,IT Equipment Purchase,Miscellaneous retail
Buckinghamshire Council,31.10.2022,26.10.2022,Children's Services,Education & Childrens Services - CS Dir,TRAINLINE.COM,102.86,0,102.86,Staff Travelling Expenses,Passenger railways
Buckinghamshire Council,31.10.2022,26.10.2022,Children's Services,Education & Childrens Services - CS Dir,ENTERPRISE SKIP HIRE,420,0,420,Sec 17: Specialist Services,Utilities
Buckinghamshire Council,31.10.2022,26.10.2022,Children's Services,Education & Childrens Services - CS Dir,DOMINO S PIZZA,24.49,0,24.49,"Exp of School, Club & College Activities",Restaurants
Buckinghamshire Council,31.10.2022,26.10.2022,Children's Services,Education & Childrens Services - CS Dir,HOBBYCRAFT,1,0,1,Activities & General Recreation,Art & craft shops
Buckinghamshire Council,31.10.2022,26.10.2022,Children's Services,Education & Childrens Services - CS Dir,ASHCO,4.49,0,4.49,Activities & General Recreation,Hardware stores
Buckinghamshire Council,31.10.2022,26.10.2022,Children's Services,Education & Childrens Services - CS Dir,ONE BELOW,6,0,6,Activities & General Recreation,Grocery stores
Buckinghamshire Council,31.10.2022,26.10.2022,Children's Services,Education & Childrens Services - CS Dir,A AND M FABRICS,24.92,0,24.92,Activities & General Recreation,Fabric and sewing shops
Buckinghamshire Council,31.10.2022,26.10.2022,"Planning, Growth & Sustainability",Planning & Regeneration - PGS,TRAINLINE,25.81,0,25.81,Staff Travelling Expenses,Passenger railways
Buckinghamshire Council,31.10.2022,26.10.2022,Communities,Culture & Leisure - Communities Dir,SAFETY FIRST,57.75,11.55,69.3,Health & Safety Supplies & Services,Men & womens clothing shops
Buckinghamshire Council,31.10.2022,26.10.2022,Resources,AH&R - Res Dir,AMZNMKTPLACE,79.9,0,79.9,IT Equipment Purchase,Miscellaneous retail
Buckinghamshire Council,31.10.2022,26.10.2022,Communities,Climate Change & Environment - Community,DVLA DRIVERS TACHOGRAPH W,32,0,32,General Repairs & Maintenance,Government services
Buckinghamshire Council,31.10.2022,26.10.2022,Communities,Climate Change & Environment - Community,DVLA DRIVERS TACHOGRAPH W,32,0,32,General Repairs & Maintenance,Government services
Buckinghamshire Council,31.10.2022,26.10.2022,Children's Services,Education & Childrens Services - CS Dir,HM PASSPORT OFFICE,75.5,0,75.5,Sec 20/31: Financial Assistance,Government services
Buckinghamshire Council,31.10.2022,26.10.2022,Deputy Chief Executive,Communities - DCE,AO RETAIL LIMITED,358.99,0,358.99,Other Personal Needs,Household appliance stores
Buckinghamshire Council,31.10.2022,26.10.2022,Deputy Chief Executive,Communities - DCE,AO RETAIL LIMITED,298.99,0,298.99,Other Personal Needs,Household appliance stores
Buckinghamshire Council,31.10.2022,26.10.2022,Deputy Chief Executive,Communities - DCE,ARGOS LTD,104.95,0,104.95,Other Personal Needs,Discount stores
Buckinghamshire Council,31.10.2022,26.10.2022,Deputy Chief Executive,Communities - DCE,AO RETAIL LIMITED,298.99,0,298.99,Other Personal Needs,Household appliance stores
Buckinghamshire Council,31.10.2022,26.10.2022,Adults and Health,Health & Wellbeing - Adults & Health Dir,TESCO STORES 4395,6,0,6,General Provisions (Food),Grocery stores
Buckinghamshire Council,31.10.2022,26.10.2022,Communities,Transport - Communities Dir,HALFORDS 0894,46.52,0,46.52,Vehicle Running Costs,"Bicycle shops, sales & service"
Buckinghamshire Council,31.10.2022,26.10.2022,Communities,Housing & Homelessness & Regulatory Comm,SCREWFIX DIR LTD,14.99,0,14.99,Protective Clothing & Uniforms,Timber & building supplies
Buckinghamshire Council,31.10.2022,26.10.2022,Communities,Housing & Homelessness & Regulatory Comm,AMZNMKTPLACE,99.9,0,99.9,Protective Clothing & Uniforms,Miscellaneous retail
Buckinghamshire Council,31.10.2022,26.10.2022,"Planning, Growth & Sustainability",AH&R - PGS Dir,SCREWFIX HIGH WYCOMBE CRE,5.49,0,5.49,Other Equipment and Materials,Timber & building supplies
Buckinghamshire Council,31.10.2022,26.10.2022,"Planning, Growth & Sustainability",AH&R - PGS Dir,ONE4ALL,166.5,0,166.5,Miscellaneous (Other)  Expenses,Department stores
Buckinghamshire Council,31.10.2022,26.10.2022,"Planning, Growth & Sustainability",AH&R - PGS Dir,THE GREEN REAPER,119.99,0,119.99,Seeds & Plants,Lawn & garden supply/nursery
Buckinghamshire Council,31.10.2022,26.10.2022,Resources,AH&R - Res Dir,WAGAMAMA AYLESBURY,50,0,50,Other Employees Expenses,Restaurants
Buckinghamshire Council,31.10.2022,26.10.2022,Children's Services,Education & Childrens Services - CS Dir,HTTP://SHOP.ICAN.ORG.U,70,0,70,"Books, Records, Films & Oth Publications",Charitable organisations
Buckinghamshire Council,31.10.2022,26.10.2022,Children's Services,Education & Childrens Services - CS Dir,AMZNMKTPLACE,149.2,0,149.2,Miscellaneous (Other)  Expenses,Miscellaneous retail
Buckinghamshire Council,31.10.2022,26.10.2022,"Planning, Growth & Sustainability",Partnership Climate Change & Envir - PGS,TRACKMAPS,31.9,0,31.9,"Books, Records, Films & Oth Publications",Book stores
Buckinghamshire Council,31.10.2022,26.10.2022,Children's Services,Education & Childrens Services - CS Dir,TAXIPAY,60,0,60,Sec 20/31: Transport,Taxicabs & limousines
Buckinghamshire Council,31.10.2022,26.10.2022,Children's Services,Education & Childrens Services - CS Dir,TRAVELODGE GB0000,55.06,0,55.06,Sec 20/31: Supp for Contact,Travelodge
Buckinghamshire Council,31.10.2022,26.10.2022,Deputy Chief Executive,AH&R- DCE Dir,TAXIPAY,85,0,85,Staff Travelling Expenses,Taxicabs & limousines
Buckinghamshire Council,31.10.2022,26.10.2022,Deputy Chief Executive,AH&R- DCE Dir,WP ENGINE,32.43,0,32.43,Computer Support Services,Computer network information services
Buckinghamshire Council,31.10.2022,26.10.2022,Children's Services,Education & Childrens Services - CS Dir,NEXT RETAIL LTD,14,0,14,Awaiting Coding,Family clothing shops
Buckinghamshire Council,31.10.2022,26.10.2022,Children's Services,Education & Childrens Services - CS Dir,POUNDLAND LTD 1301,6,0,6,Awaiting Coding,Discount stores
Buckinghamshire Council,31.10.2022,26.10.2022,Children's Services,Education & Childrens Services - CS Dir,CARDS DIRECT AYLESBURY,16.83,0,16.83,Stationery & Office Supplies,Stationery & office supplies
Buckinghamshire Council,31.10.2022,26.10.2022,Children's Services,Education & Childrens Services - CS Dir,WILKO RETAIL LIMITED,10.5,0,10.5,Awaiting Coding,Misc. general merchandise
Buckinghamshire Council,31.10.2022,26.10.2022,Children's Services,Education & Childrens Services - CS Dir,AMZNMktplace,48.97,0,48.97,Awaiting Coding,Miscellaneous retail
Buckinghamshire Council,31.10.2022,26.10.2022,Children's Services,Education & Childrens Services - CS Dir,THE WORKS,13.5,0,13.5,Awaiting Coding,Discount stores
Buckinghamshire Council,31.10.2022,26.10.2022,Children's Services,Education & Childrens Services - CS Dir,ONE BELOW,20.2,0,20.2,Awaiting Coding,Grocery stores
Buckinghamshire Council,31.10.2022,26.10.2022,Communities,Culture & Leisure - Communities Dir,PAYPAL,60,0,60,Protective Clothing & Uniforms,Sporting goods shops
Buckinghamshire Council,31.10.2022,26.10.2022,Communities,Culture & Leisure - Communities Dir,GCT LTD T/A GTSE,17.97,3.6,21.57,"Workshop - Materials,Tools & Equipment",Misc Industrial supplies
Buckinghamshire Council,31.10.2022,26.10.2022,Children's Services,Education & Childrens Services - CS Dir,WWW.BUCKINGHAMSHIRE.GOV,124,0,124,Leaving Care  - Financial Assistance,Government services
Buckinghamshire Council,31.10.2022,26.10.2022,Adults and Health,Health & Wellbeing - Adults & Health Dir,AMZ*SHOP UNIVERSAAL,-13.96,0,-13.96,Stationery & Office Supplies,Miscellaneous retail
Buckinghamshire Council,31.10.2022,26.10.2022,Communities,Communities - Trust Accounts,SELCO TRADING CTR,220,0,220,General Repairs & Maintenance,Timber & building supplies
Buckinghamshire Council,31.10.2022,26.10.2022,Communities,Communities - Trust Accounts,COSTCO WHOLESALE #102,57.85,0,57.85,Stationery & Office Supplies,Buying & shopping services/clubs
Buckinghamshire Council,31.10.2022,26.10.2022,Communities,Communities - Trust Accounts,WICKES SLOUGH,50.5,0,50.5,General Repairs & Maintenance,Timber & building supplies
Buckinghamshire Council,31.10.2022,26.10.2022,Children's Services,Education & Childrens Services - CS Dir,AMZNMKTPLACE,26.93,0,26.93,Support for Foster Carers,Miscellaneous retail
Buckinghamshire Council,31.10.2022,26.10.2022,Children's Services,Education & Childrens Services - CS Dir,AMZNMKTPLACE,1.99,0,1.99,Support for Foster Carers,Miscellaneous retail
Buckinghamshire Council,31.10.2022,26.10.2022,Children's Services,Education & Childrens Services - CS Dir,COOKSON PRECIOUS M,35.1,0,35.1,Educational Equipment,"Precious stones, metals & jewellery"
Buckinghamshire Council,31.10.2022,26.10.2022,Adults and Health,Health & Wellbeing - Adults & Health Dir,LYRECO UK LTD,16.09,3.22,19.31,Stationery & Office Supplies,Stationery & office supplies
Buckinghamshire Council,31.10.2022,26.10.2022,Communities,Communities - Trading Accounts,DVLA VEHICLE TAX,165,0,165,Vehicle Taxation Costs,Tax payments
Buckinghamshire Council,31.10.2022,26.10.2022,Communities,Communities - Trading Accounts,DVLA VEHICLE TAX,295,0,295,Vehicle Taxation Costs,Tax payments
Buckinghamshire Council,31.10.2022,26.10.2022,Communities,Communities - Trading Accounts,DVLA VEHICLE TAX,290,0,290,Vehicle Taxation Costs,Tax payments
Buckinghamshire Council,31.10.2022,26.10.2022,Communities,Communities - Trading Accounts,DVLA VEHICLE TAX,290,0,290,Vehicle Taxation Costs,Tax payments
Buckinghamshire Council,31.10.2022,26.10.2022,Adults and Health,Health & Wellbeing - Adults & Health Dir,COSTCO WHOLESALE #102,11.5,0,11.5,Stationery & Office Supplies,Buying & shopping services/clubs
Buckinghamshire Council,31.10.2022,26.10.2022,Deputy Chief Executive,Communities - DCE,ALMAR (TRING),53.8,0,53.8,Stationery & Office Supplies,Stationery & office supplies stores
Buckinghamshire Council,31.10.2022,26.10.2022,Children's Services,Education & Childrens Services - CS Dir,MEAD OPEN FARM,8,0,8,General Provisions (Food),Tourist attractions and exhibitions
Buckinghamshire Council,31.10.2022,26.10.2022,"Planning, Growth & Sustainability",Leader - PGS,1 AND 1 IONOS LTD,8.39,0,8.39,Computer Support Services,Computer network information services
Buckinghamshire Council,31.10.2022,25.10.2022,Children's Services,Education & Childrens Services - CS Dir,AMZNMKTPLACE,8.99,0,8.99,Christmas,Miscellaneous retail
Buckinghamshire Council,31.10.2022,25.10.2022,Children's Services,Education & Childrens Services - CS Dir,AMZNMKTPLACE,23.19,0,23.19,"Books, Records, Films & Oth Publications",Miscellaneous retail
Buckinghamshire Council,31.10.2022,25.10.2022,Children's Services,Education & Childrens Services - CS Dir,BT.COM CONSUMER BP,25.99,0,25.99,Telephones,Phone services
Buckinghamshire Council,31.10.2022,25.10.2022,Children's Services,Education & Childrens Services - CS Dir,BUCKINGHAMSHIRE COUNCIL,35,0,35,Sec 20/31: Specialist Services,Government services
Buckinghamshire Council,31.10.2022,25.10.2022,Children's Services,Education & Childrens Services - CS Dir,BUCKINGHAMSHIRE COUNCIL,35,0,35,Sec 20/31: Specialist Services,Government services
Buckinghamshire Council,31.10.2022,25.10.2022,Children's Services,Education & Childrens Services - CS Dir,TAXIPAY,56,0,56,Sec 20/31: Transport,Taxicabs & limousines
Buckinghamshire Council,31.10.2022,25.10.2022,Children's Services,Education & Childrens Services - CS Dir,WWW.NISBETS.COM,62.36,0,62.36,Miscellaneous (Other)  Expenses,Catalogue sales
Buckinghamshire Council,31.10.2022,25.10.2022,Children's Services,Education & Childrens Services - CS Dir,ACE CARS READING LTD,100,0,100,Leaving Care - Transport,Taxicabs & limousines
Buckinghamshire Council,31.10.2022,25.10.2022,Communities,Culture & Leisure - Communities Dir,WWW.ROMPALIMITED.COM,458.16,0,458.16,Awaiting Coding,Miscellaneous retail
Buckinghamshire Council,31.10.2022,25.10.2022,Communities,Culture & Leisure - Communities Dir,ACTIVITIES TO SHARE,147.1,0,147.1,Medical Supplies & Services inc Vet'nary,Nursing & personal care facilities
Buckinghamshire Council,31.10.2022,25.10.2022,Children's Services,Education & Childrens Services - CS Dir,POST OFFICE COUNTER,7.65,0,7.65,General Postage,Postal services
Buckinghamshire Council,31.10.2022,25.10.2022,Children's Services,Education & Childrens Services - CS Dir,RNIB CHARITY,115,0,115,"Courses, Conference and Seminar Fees","Laboratory, medical & hospital equipment"
Buckinghamshire Council,31.10.2022,25.10.2022,Communities,Climate Change & Environment - Community,WWW.LETSRECYCLE.COM,590.4,0,590.4,Awaiting Coding,
Buckinghamshire Council,31.10.2022,25.10.2022,Deputy Chief Executive,Communities - DCE,AO RETAIL LIMITED,453.99,0,453.99,Other Personal Needs,Household appliance stores
Buckinghamshire Council,31.10.2022,25.10.2022,Deputy Chief Executive,Communities - DCE,AO RETAIL LIMITED,298.99,0,298.99,Other Personal Needs,Household appliance stores
Buckinghamshire Council,31.10.2022,25.10.2022,Deputy Chief Executive,Communities - DCE,AO RETAIL LIMITED,710.09,0,710.09,Other Personal Needs,Household appliance stores
Buckinghamshire Council,31.10.2022,25.10.2022,Children's Services,Education & Childrens Services - CS Dir,FREEDOM PROGRAMME LIMITED,24,0,24,Sec 17: Financial Assistance One Off,Schools
Buckinghamshire Council,31.10.2022,25.10.2022,Adults and Health,Health & Wellbeing - Adults & Health Dir,AMZNMKTPLACE,40.81,0,40.81,Stationery & Office Supplies,Miscellaneous retail
Buckinghamshire Council,31.10.2022,25.10.2022,Communities,Culture & Leisure - Communities Dir,WWW.SCREWFIX.COM,6.24,1.25,7.49,"Workshop - Materials,Tools & Equipment",Timber & building supplies
Buckinghamshire Council,31.10.2022,25.10.2022,Communities,Partnerships - Communities,MDHTEAMWEAR MK,479.51,95.91,575.42,Miscellaneous (Other)  Expenses,Fabric and sewing shops
Buckinghamshire Council,31.10.2022,25.10.2022,"Planning, Growth & Sustainability",AH&R - PGS Dir,WWW.SCREWFIX.COM,13.38,0,13.38,Other Equipment and Materials,Timber & building supplies
Buckinghamshire Council,31.10.2022,25.10.2022,"Planning, Growth & Sustainability",AH&R - PGS Dir,SAFETYSIGNSANDNOTICES,174.24,0,174.24,Other Equipment and Materials,Misc. general merchandise
Buckinghamshire Council,31.10.2022,25.10.2022,Communities,Housing & Homelessness & Regulatory Comm,BRITISH GAS ONLINE,9.79,0,9.79,Gas,Utilities
Buckinghamshire Council,31.10.2022,25.10.2022,Children's Services,Education & Childrens Services - CS Dir,AMZNMKTPLACE,61.39,0,61.39,Project Funding,Miscellaneous retail
Buckinghamshire Council,31.10.2022,25.10.2022,Children's Services,Education & Childrens Services - CS Dir,AMZNMKTPLACE,22.45,4.49,26.94,Project Funding,Miscellaneous retail
Buckinghamshire Council,31.10.2022,25.10.2022,Children's Services,Education & Childrens Services - CS Dir,AMZNMKTPLACE,0.01,0,0.01,Project Funding,Miscellaneous retail
Buckinghamshire Council,31.10.2022,25.10.2022,Children's Services,Education & Childrens Services - CS Dir,AMAZON.CO.UK,87.98,0,87.98,Stationery & Office Supplies,Direct sales companies
Buckinghamshire Council,31.10.2022,25.10.2022,Communities,Culture & Leisure - Communities Dir,AMAZON.CO.UK,56.93,11.39,68.32,Protective Clothing & Uniforms,Direct sales companies
Buckinghamshire Council,31.10.2022,25.10.2022,Children's Services,Education & Childrens Services - CS Dir,HIGH SPEED TRAINING LT,60,0,60,"Courses, Conference and Seminar Fees",Business/secretarial school
Buckinghamshire Council,31.10.2022,25.10.2022,Resources,AH&R - Res Dir,PAYPAL,73.2,0,73.2,IT - Computer Network Charges,Computer network information services
Buckinghamshire Council,31.10.2022,25.10.2022,Children's Services,Education & Childrens Services - CS Dir,ASDA  STORES 4396,5.5,0,5.5,General Provisions (Food),Grocery stores
Buckinghamshire Council,31.10.2022,25.10.2022,Children's Services,Education & Childrens Services - CS Dir,TRAVELODGE GB0000,335.54,0,335.54,Sec 17: Financial Assistance,Travelodge
Buckinghamshire Council,31.10.2022,25.10.2022,Children's Services,Education & Childrens Services - CS Dir,DEUCES CARS,37,0,37,Sec 17: Financial Assistance,Taxicabs & limousines
Buckinghamshire Council,31.10.2022,25.10.2022,Communities,Transport - Communities Dir,IMO CAR WASH AMERSHAM,11.5,0,11.5,Cleaning Costs - Vehicles,Car washes
Buckinghamshire Council,31.10.2022,25.10.2022,Communities,Transport - Communities Dir,IMO CAR WASH AMERSHAM,26.5,0,26.5,Cleaning Costs - Vehicles,Car washes
Buckinghamshire Council,31.10.2022,25.10.2022,Communities,Transport - Communities Dir,IMO CAR WASH AMERSHAM,32.5,0,32.5,Cleaning Costs - Vehicles,Car washes
Buckinghamshire Council,31.10.2022,25.10.2022,Communities,Transport - Communities Dir,IMO CAR WASH AMERSHAM,11.5,0,11.5,Cleaning Costs - Vehicles,Car washes
Buckinghamshire Council,31.10.2022,25.10.2022,Communities,Transport - Communities Dir,IMO CAR WASH AMERSHAM,11.5,0,11.5,Cleaning Costs - Vehicles,Car washes
Buckinghamshire Council,31.10.2022,25.10.2022,Children's Services,Education & Childrens Services - CS Dir,ALDI 73 775,27.91,0,27.91,Awaiting Coding,Grocery stores
Buckinghamshire Council,31.10.2022,25.10.2022,Children's Services,Education & Childrens Services - CS Dir,B&M 426 - HS AYLESBURY,16,0,16,Awaiting Coding,Misc. general merchandise
Buckinghamshire Council,31.10.2022,25.10.2022,Children's Services,Education & Childrens Services - CS Dir,B&M 426 - HS AYLESBURY,67.94,0,67.94,Awaiting Coding,Misc. general merchandise
Buckinghamshire Council,31.10.2022,25.10.2022,Children's Services,Education & Childrens Services - CS Dir,Hobbycraft,47.9,0,47.9,Awaiting Coding,Art & craft shops
Buckinghamshire Council,31.10.2022,25.10.2022,"Planning, Growth & Sustainability",AH&R - PGS Dir,UK ELECTRICALSUPPLIERS,153.48,30.7,184.18,General Repairs & Maintenance,Electrical parts & equipment
Buckinghamshire Council,31.10.2022,25.10.2022,Resources,AH&R - Res Dir,AMZNMktplace,189.98,0,189.98,Awaiting Coding,Miscellaneous retail
Buckinghamshire Council,31.10.2022,25.10.2022,Children's Services,Education & Childrens Services - CS Dir,EASYJET,59.96,0,59.96,Staff Travelling Expenses,Easyjet
Buckinghamshire Council,31.10.2022,25.10.2022,Children's Services,Education & Childrens Services - CS Dir,TAXIPAY,55,0,55,Leaving Care - Transport,Taxicabs & limousines
Buckinghamshire Council,31.10.2022,25.10.2022,Children's Services,Education & Childrens Services - CS Dir,WWW.BUCKINGHAMSHIRE.GOV,217.31,0,217.31,Leaving Care  - Financial Assistance,Government services
Buckinghamshire Council,31.10.2022,25.10.2022,Children's Services,Education & Childrens Services - CS Dir,TESCO STORES 5927,4,0,4,General Provisions (Food),Grocery stores
Buckinghamshire Council,31.10.2022,25.10.2022,Deputy Chief Executive,Communities - DCE,SUMUP  *HADDENHAM COMMUNI,3,0,3,General Provisions (Food),Charitable organisations
Buckinghamshire Council,31.10.2022,25.10.2022,Deputy Chief Executive,Communities - DCE,TESCO STORE 3045,3.5,0,3.5,General Provisions (Food),Grocery stores
Buckinghamshire Council,31.10.2022,25.10.2022,Children's Services,Education & Childrens Services - CS Dir,NINJA WARRIOR MILTON KEYN,25,0,25,Activities & General Recreation,Misc. recreational services
Buckinghamshire Council,31.10.2022,25.10.2022,Children's Services,Education & Childrens Services - CS Dir,AMZNMKTPLACE,7.99,0,7.99,Support for Foster Carers,Miscellaneous retail
Buckinghamshire Council,31.10.2022,25.10.2022,Children's Services,Education & Childrens Services - CS Dir,NINJA WARRIOR MILTON KEYN,3,0,3,Activities & General Recreation,Misc. recreational services
Buckinghamshire Council,31.10.2022,25.10.2022,Children's Services,Education & Childrens Services - CS Dir,NINJA WARRIOR MILTON KEYN,5.75,0,5.75,Activities & General Recreation,Misc. recreational services
Buckinghamshire Council,31.10.2022,25.10.2022,Children's Services,Education & Childrens Services - CS Dir,GREGGS PLC,118,0,118,General Provisions (Food),Restaurants
Buckinghamshire Council,31.10.2022,25.10.2022,Adults and Health,Health & Wellbeing - Adults & Health Dir,TESCO STORES 4395,8.75,0,8.75,Awaiting Coding,Grocery stores
Buckinghamshire Council,31.10.2022,25.10.2022,Children's Services,Education & Childrens Services - CS Dir,SP FIRST AID WAREHOU,47.31,0,47.31,Miscellaneous (Other)  Expenses,"Laboratory, medical & hospital equipment"
Buckinghamshire Council,31.10.2022,25.10.2022,Children's Services,Education & Childrens Services - CS Dir,PAYPAL,22.98,0,22.98,Miscellaneous (Other)  Expenses,Misc Industrial supplies
Buckinghamshire Council,31.10.2022,25.10.2022,Children's Services,Education & Childrens Services - CS Dir,INTELLISOFTWARE LTD,52.8,0,52.8,Computer Consumables,"Computers, peripherals & software"
Buckinghamshire Council,31.10.2022,25.10.2022,Children's Services,Education & Childrens Services - CS Dir,TRAINLINE.COM,-53.2,0,-53.2,Staff Travelling Expenses,Passenger railways
Buckinghamshire Council,31.10.2022,25.10.2022,Adults and Health,Health & Wellbeing - Adults & Health Dir,BUCKINGHAM HOTELS,938,187.6,"1,125.60",Other Short Term Support,"Hotels, motels & resorts"
Buckinghamshire Council,31.10.2022,25.10.2022,Communities,Communities - Trading Accounts,DVLA VEHICLE TAX,330,0,330,Vehicle Taxation Costs,Government services
Buckinghamshire Council,31.10.2022,25.10.2022,Communities,Communities - Trading Accounts,DVLA VEHICLE TAX,165,0,165,Vehicle Taxation Costs,Government services
Buckinghamshire Council,31.10.2022,25.10.2022,Communities,Communities - Trading Accounts,DVLA VEHICLE TAX,165,0,165,Vehicle Taxation Costs,Tax payments
Buckinghamshire Council,31.10.2022,25.10.2022,Communities,Communities - Trading Accounts,DVLA EVL AGENT,165,0,165,Vehicle Taxation Costs,Tax payments
Buckinghamshire Council,31.10.2022,25.10.2022,Communities,Communities - Trading Accounts,DVLA VEHICLE TAX,165,0,165,Vehicle Taxation Costs,Government services
Buckinghamshire Council,31.10.2022,25.10.2022,Communities,Communities - Trading Accounts,DVLA VEHICLE TAX,295,0,295,Vehicle Taxation Costs,Tax payments
Buckinghamshire Council,31.10.2022,25.10.2022,Children's Services,Education & Childrens Services - CS Dir,WOMENS AID,75,0,75,"Courses, Conference and Seminar Fees",Charitable organisations
Buckinghamshire Council,31.10.2022,25.10.2022,Children's Services,Education & Childrens Services - CS Dir,PREMIER INN,62.5,0,62.5,"Courses, Conference and Seminar Fees",Premier Inn
Buckinghamshire Council,31.10.2022,24.10.2022,Resources,AH&R - Res Dir,AMAZON.CO.UK,39.99,0,39.99,Miscellaneous (Other)  Expenses,Direct sales companies
Buckinghamshire Council,31.10.2022,24.10.2022,Adults and Health,Health & Wellbeing - Adults & Health Dir,SYMBOLS WORLDWIDE LTD,100,0,100,Computer Consumables,Computer software stores
Buckinghamshire Council,31.10.2022,24.10.2022,Children's Services,Education & Childrens Services - CS Dir,BT BUSINESS BILL,24.91,0,24.91,Telephones,Phone services
Buckinghamshire Council,31.10.2022,24.10.2022,Children's Services,Education & Childrens Services - CS Dir,ARRIVA UK BUS,93,0,93,Sec 20/31: Supp for Contact,"Buses, charter & tour"
Buckinghamshire Council,31.10.2022,24.10.2022,Children's Services,Education & Childrens Services - CS Dir,TRAINLINE.COM,115.9,0,115.9,Sec 20/31: Supp for Contact,Passenger railways
Buckinghamshire Council,31.10.2022,24.10.2022,Children's Services,Education & Childrens Services - CS Dir,DOMINO S PIZZA,55.47,0,55.47,"Exp of School, Club & College Activities",Restaurants
Buckinghamshire Council,31.10.2022,24.10.2022,Deputy Chief Executive,Communities - DCE,LOCK & KEY CENTRE,16,0,16,Administrative Equipment & Tools,Shoe repairs
Buckinghamshire Council,31.10.2022,24.10.2022,Adults and Health,Health & Wellbeing - Adults & Health Dir,TESCO STORE 2162,29.24,0,29.24,General Provisions (Food),Grocery stores
Buckinghamshire Council,31.10.2022,24.10.2022,Resources,AH&R - Res Dir,AMZNMKTPLACE,79.9,0,79.9,IT Equipment Purchase,Miscellaneous retail
Buckinghamshire Council,31.10.2022,24.10.2022,Resources,AH&R - Res Dir,AMZNMKTPLACE,79.9,0,79.9,IT Equipment Purchase,Miscellaneous retail
Buckinghamshire Council,31.10.2022,24.10.2022,"Planning, Growth & Sustainability",AH&R - PGS Dir,REPLACEMENT KEYS LTD,9.05,0,9.05,Awaiting Coding,Misc. general merchandise
Buckinghamshire Council,31.10.2022,24.10.2022,Deputy Chief Executive,Communities - DCE,AO RETAIL LIMITED,729.99,0,729.99,Other Personal Needs,Household appliance stores
Buckinghamshire Council,31.10.2022,24.10.2022,Deputy Chief Executive,Communities - DCE,ARGOS LTD,183.95,0,183.95,Other Personal Needs,Discount stores
Buckinghamshire Council,31.10.2022,24.10.2022,Deputy Chief Executive,Communities - DCE,AO RETAIL LIMITED,-95,0,-95,Other Personal Needs,Household appliance stores
Buckinghamshire Council,31.10.2022,24.10.2022,Communities,Housing & Homelessness & Regulatory Comm,SP T-SHIRT PRINT UK,98.71,0,98.71,Computer Consumables,Computer software stores
Buckinghamshire Council,31.10.2022,24.10.2022,Adults and Health,Health & Wellbeing - Adults & Health Dir,TESCO STORES 5135,102.98,0,102.98,Awaiting Coding,Grocery stores
Buckinghamshire Council,31.10.2022,24.10.2022,Communities,Culture & Leisure - Communities Dir,WICKES BUILDING,20.4,4.08,24.48,"Workshop - Materials,Tools & Equipment",Timber & building supplies
Buckinghamshire Council,31.10.2022,24.10.2022,Communities,Culture & Leisure - Communities Dir,WICKES BUILDING,0.02,0,0.02,"Workshop - Materials,Tools & Equipment",Timber & building supplies
Buckinghamshire Council,31.10.2022,24.10.2022,"Planning, Growth & Sustainability",Planning & Regeneration - PGS,THE MYERSBRIGGS COMPANY L,781.2,0,781.2,Course Fees & Post Entry Training,Misc business services
Buckinghamshire Council,31.10.2022,24.10.2022,"Planning, Growth & Sustainability",Planning & Regeneration - PGS,THE MYERSBRIGGS COMPANY L,837,0,837,Course Fees & Post Entry Training,Misc business services
Buckinghamshire Council,31.10.2022,24.10.2022,Communities,Partnerships - Communities,ROYAL MAIL GROUP LTD,2.85,0,2.85,Miscellaneous (Other)  Expenses,Postal services
Buckinghamshire Council,31.10.2022,24.10.2022,"Planning, Growth & Sustainability",AH&R - PGS Dir,AMZNMKTPLACE,12.99,0,12.99,Other Equipment and Materials,Miscellaneous retail
Buckinghamshire Council,31.10.2022,24.10.2022,"Planning, Growth & Sustainability",AH&R - PGS Dir,AMAZON.CO.UK,55.48,0,55.48,Purchase.of Refreshments and Food,Direct sales companies
Buckinghamshire Council,31.10.2022,24.10.2022,Children's Services,Education & Childrens Services - CS Dir,INSTROTECH LTD,574,114.8,688.8,Administrative Equipment & Tools,Electronics shops
Buckinghamshire Council,31.10.2022,24.10.2022,Children's Services,Education & Childrens Services - CS Dir,MUSIC STORE PROFESSIONAL,314.15,62.83,376.98,Project Funding,Music stores & instruments
Buckinghamshire Council,31.10.2022,24.10.2022,Children's Services,Education & Childrens Services - CS Dir,MUSIC STORE PROFESSIONAL,0.02,0,0.02,Project Funding,Music stores & instruments
Buckinghamshire Council,31.10.2022,24.10.2022,Children's Services,Education & Childrens Services - CS Dir,TALKTALK BUSINESS,37.95,7.59,45.54,Software Support,Computer network information services
Buckinghamshire Council,31.10.2022,24.10.2022,Children's Services,Education & Childrens Services - CS Dir,TRAVELODGE GB0000,89.74,0,89.74,Sec 17: Financial Assistance,Travelodge
Buckinghamshire Council,31.10.2022,24.10.2022,Children's Services,Education & Childrens Services - CS Dir,TRAVELODGE GB0000,114.98,0,114.98,Sec 17: Financial Assistance,Travelodge
Buckinghamshire Council,31.10.2022,24.10.2022,"Planning, Growth & Sustainability",Planning & Regeneration - PGS,WWW.REDOAKDIRECT.C,134.88,0,134.88,"Books, Records, Films & Oth Publications",Timber & building supplies
Buckinghamshire Council,31.10.2022,24.10.2022,Communities,Transport - Communities Dir,FR JONES AND SON,180,0,180,Area Teams and Materials,Hardware stores
Buckinghamshire Council,31.10.2022,24.10.2022,Children's Services,Education & Childrens Services - CS Dir,ATGTICKETS.COM,29.8,0,29.8,Miscellaneous (Other)  Expenses,Theatres and ticket agencies
Buckinghamshire Council,31.10.2022,24.10.2022,Adults and Health,Health & Wellbeing - Adults & Health Dir,EB *ASSOCIATION OF CHI,156.9,0,156.9,"Courses, Conference and Seminar Fees",Misc business services
Buckinghamshire Council,31.10.2022,24.10.2022,Children's Services,Education & Childrens Services - CS Dir,TRAVELODGE GB0000,54.04,0,54.04,"Rents, Wayleaves & Hire of Premises",Travelodge
Buckinghamshire Council,31.10.2022,24.10.2022,Children's Services,Education & Childrens Services - CS Dir,AMZNMKTPLACE,100.63,0,100.63,Equipment (including storage),Miscellaneous retail
Buckinghamshire Council,31.10.2022,24.10.2022,"Planning, Growth & Sustainability",AH&R - PGS Dir,TESCO GIFT CARD,100,0,100,Awaiting Coding,Grocery stores
Buckinghamshire Council,31.10.2022,24.10.2022,Children's Services,Education & Childrens Services - CS Dir,WM MORRISONS STORE,7.3,0,7.3,Consumable Supplies,Grocery stores
Buckinghamshire Council,31.10.2022,24.10.2022,Adults and Health,Health & Wellbeing - Adults & Health Dir,SAINSBURY'S S/MKT,6,0,6,General Provisions (Food),Grocery stores
Buckinghamshire Council,31.10.2022,24.10.2022,Children's Services,Education & Childrens Services - CS Dir,AMZNMKTPLACE,57.68,0,57.68,Support for Foster Carers,Miscellaneous retail
Buckinghamshire Council,31.10.2022,24.10.2022,Children's Services,Education & Childrens Services - CS Dir,WM MORRISONS STORE,32.35,0,32.35,Equipment (including storage),Grocery stores
Buckinghamshire Council,31.10.2022,24.10.2022,"Planning, Growth & Sustainability",Housing & Homelessness & Regulatory PGS,BED CARE LTD,816,0,816,Furniture,Furniture & home furnishing
Buckinghamshire Council,31.10.2022,24.10.2022,"Planning, Growth & Sustainability",Housing & Homelessness & Regulatory PGS,BED CARE LTD,765,0,765,Furniture,Furniture & home furnishing
Buckinghamshire Council,31.10.2022,24.10.2022,"Planning, Growth & Sustainability",Housing & Homelessness & Regulatory PGS,BED CARE LTD,925,0,925,Furniture,Furniture & home furnishing
Buckinghamshire Council,31.10.2022,24.10.2022,Children's Services,Education & Childrens Services - CS Dir,HOLLYWOOD BOWL,15.13,0,15.13,Awaiting Coding,"Member clubs, sport, recreation & golf"
Buckinghamshire Council,31.10.2022,24.10.2022,Children's Services,Education & Childrens Services - CS Dir,43013665 COSTA COFFEE,7.6,0,7.6,Subsistence,Fast food restaurants
Buckinghamshire Council,31.10.2022,24.10.2022,Children's Services,Education & Childrens Services - CS Dir,TESCO STORE 2640,4.4,0,4.4,Awaiting Coding,Grocery stores
Buckinghamshire Council,31.10.2022,24.10.2022,"Planning, Growth & Sustainability",Planning & Regeneration - PGS,TRAINLINE,100.52,0,100.52,Staff Travelling Expenses,Passenger railways
Buckinghamshire Council,31.10.2022,24.10.2022,Children's Services,Education & Childrens Services - CS Dir,TRAINLINE.COM,57.23,0,57.23,Sec 20/31: Transport,Passenger railways
Buckinghamshire Council,31.10.2022,24.10.2022,Children's Services,Education & Childrens Services - CS Dir,TRAINLINE.COM,-101.4,0,-101.4,Sec 20/31: Transport,Passenger railways
Buckinghamshire Council,31.10.2022,24.10.2022,Adults and Health,Health & Wellbeing - Adults & Health Dir,TESCO STORES 5135,112.23,0,112.23,Awaiting Coding,Grocery stores
Buckinghamshire Council,31.10.2022,24.10.2022,Children's Services,Education & Childrens Services - CS Dir,MARKS&SPENCER PLC,30,0,30,Consumable Supplies,Grocery stores
Buckinghamshire Council,31.10.2022,24.10.2022,Communities,Communities - Trading Accounts,DVLA VEHICLE TAX,165,0,165,Vehicle Taxation Costs,Government services
Buckinghamshire Council,31.10.2022,24.10.2022,Children's Services,Education & Childrens Services - CS Dir,AMZNMKTPLACE,44.99,0,44.99,Consumable Supplies,Miscellaneous retail
Buckinghamshire Council,31.10.2022,24.10.2022,Children's Services,Education & Childrens Services - CS Dir,PAYPAL,47.99,0,47.99,Activities & General Recreation,Business/secretarial school
Buckinghamshire Council,31.10.2022,24.10.2022,Adults and Health,Health & Wellbeing - Adults & Health Dir,PAYPAL,100,0,100,Other Employees Expenses,Hairdresser and beauty shops
Buckinghamshire Council,31.10.2022,23.10.2022,Children's Services,Education & Childrens Services - CS Dir,AMZNMKTPLACE,118.97,0,118.97,Other Personal Needs,Miscellaneous retail
Buckinghamshire Council,31.10.2022,23.10.2022,Adults and Health,Health & Wellbeing - Adults & Health Dir,AMZNMktplace,17.99,0,17.99,Awaiting Coding,Miscellaneous retail
Buckinghamshire Council,31.10.2022,23.10.2022,Adults and Health,Health & Wellbeing - Adults & Health Dir,SP XENIA SUPPLIES,38.48,0,38.48,Awaiting Coding,Misc commercial machines equipment
Buckinghamshire Council,31.10.2022,23.10.2022,Communities,Housing & Homelessness & Regulatory Comm,AMAZON.CO.UK,6.65,1.33,7.98,Furniture Fittings & IT,Direct sales companies
Buckinghamshire Council,31.10.2022,23.10.2022,Communities,Housing & Homelessness & Regulatory Comm,AMAZON.CO.UK,0.01,0,0.01,Furniture Fittings & IT,Direct sales companies
Buckinghamshire Council,31.10.2022,23.10.2022,Children's Services,Education & Childrens Services - CS Dir,HOTEL AT BOOKING.COM,108.99,0,108.99,"Courses, Conference and Seminar Fees","Hotels, motels & resorts"
Buckinghamshire Council,31.10.2022,23.10.2022,Deputy Chief Executive,Leader - DCE,FACEBK 3X67CJ7QN2,840,0,840,Advertising,Advertising services
Buckinghamshire Council,31.10.2022,23.10.2022,Communities,Culture & Leisure - Communities Dir,B&Q LTD,111,22.2,133.2,General Repairs & Maintenance,Timber & building supplies
Buckinghamshire Council,31.10.2022,23.10.2022,Children's Services,Education & Childrens Services - CS Dir,TESCO STORE 2105,17.44,0,17.44,Awaiting Coding,Grocery stores
Buckinghamshire Council,31.10.2022,23.10.2022,Children's Services,Education & Childrens Services - CS Dir,TESCO STORES 4480,68.94,0,68.94,Consumable Supplies,Grocery stores
Buckinghamshire Council,31.10.2022,23.10.2022,Children's Services,Education & Childrens Services - CS Dir,TESCO STORES 4480,-2.33,0,-2.33,Consumable Supplies,Grocery stores
Buckinghamshire Council,31.10.2022,22.10.2022,Children's Services,Education & Childrens Services - CS Dir,ODEON,44.25,0,44.25,Activities & General Recreation,Cinemas
Buckinghamshire Council,31.10.2022,22.10.2022,Children's Services,Education & Childrens Services - CS Dir,MEAD OPEN FARM,36.05,0,36.05,Other Personal Needs,Tourist attractions and exhibitions
Buckinghamshire Council,31.10.2022,22.10.2022,"Planning, Growth & Sustainability",AH&R - PGS Dir,ASDA SUPERSTORE,17.04,0,17.04,Cleaning & Domestic Equipment,Grocery stores
Buckinghamshire Council,31.10.2022,22.10.2022,"Planning, Growth & Sustainability",Planning & Regeneration - PGS,TRAINLINE,15.84,0,15.84,Other Employees Expenses,Passenger railways
Buckinghamshire Council,31.10.2022,22.10.2022,Children's Services,Education & Childrens Services - CS Dir,SHOE ZONE (INTERNET),14.98,0,14.98,Other Personal Needs,Shoe shops
Buckinghamshire Council,31.10.2022,22.10.2022,Children's Services,Education & Childrens Services - CS Dir,AMZNMKTPLACE,10.98,0,10.98,Protective Clothing & Uniforms,Miscellaneous retail
Buckinghamshire Council,31.10.2022,21.10.2022,Children's Services,Education & Childrens Services - CS Dir,WWW.PHS.CO.UK,65.52,0,65.52,General Repairs & Maintenance,Misc business services
Buckinghamshire Council,31.10.2022,21.10.2022,Children's Services,Education & Childrens Services - CS Dir,AMZNMKTPLACE,89.98,0,89.98,Leaving Care - Grants for Care Leavers,Miscellaneous retail
Buckinghamshire Council,31.10.2022,21.10.2022,Children's Services,Education & Childrens Services - CS Dir,SP NOAHS BOX,69,0,69,Leaving Care - Grants for Care Leavers,Computer software stores
Buckinghamshire Council,31.10.2022,21.10.2022,Children's Services,Education & Childrens Services - CS Dir,AMZNMKTPLACE,8.33,0,8.33,Other Personal Needs,Miscellaneous retail
Buckinghamshire Council,31.10.2022,21.10.2022,Communities,Climate Change & Environment - Community,DVLA DRIVERS TACHOGRAPH W,19,0,19,General Repairs & Maintenance,Government services
Buckinghamshire Council,31.10.2022,21.10.2022,Communities,Climate Change & Environment - Community,DVLA DRIVERS TACHOGRAPH W,19,0,19,General Repairs & Maintenance,Government services
Buckinghamshire Council,31.10.2022,21.10.2022,Communities,Climate Change & Environment - Community,DVLA DRIVERS TACHOGRAPH W,32,0,32,General Repairs & Maintenance,Government services
Buckinghamshire Council,31.10.2022,21.10.2022,Children's Services,Education & Childrens Services - CS Dir,TRAINLINE,66.5,0,66.5,Staff Travelling Expenses,Passenger railways
Buckinghamshire Council,31.10.2022,21.10.2022,Deputy Chief Executive,Communities - DCE,AO RETAIL LIMITED,338.99,0,338.99,Other Personal Needs,Household appliance stores
Buckinghamshire Council,31.10.2022,21.10.2022,"Planning, Growth & Sustainability",Housing & Homelessness & Regulatory PGS,LAND REGISTRY ECOM CCC,3,0,3,Homelessness,Government services
Buckinghamshire Council,31.10.2022,21.10.2022,"Planning, Growth & Sustainability",Housing & Homelessness & Regulatory PGS,LAND REGISTRY ECOM CCC,3,0,3,Homelessness,Government services
Buckinghamshire Council,31.10.2022,21.10.2022,Deputy Chief Executive,AH&R- DCE Dir,APCOA PARKING UK,5.6,0,5.6,Travelling Expenses,Car parking & garages
Buckinghamshire Council,31.10.2022,21.10.2022,Deputy Chief Executive,AH&R- DCE Dir,APCOA PARKING UK,5.6,0,5.6,Travelling Expenses,Car parking & garages
Buckinghamshire Council,31.10.2022,21.10.2022,Communities,Transport - Communities Dir,KWIK FIT,242.45,0,242.45,Repair & Maint of Vehicles & Plant,Auto servicing
Buckinghamshire Council,31.10.2022,21.10.2022,Children's Services,Education & Childrens Services - CS Dir,INTERFLORA BRITISH UNI,50,0,50,Court Orders Sec 31: Miscellaneous,Florists
Buckinghamshire Council,31.10.2022,21.10.2022,Children's Services,Education & Childrens Services - CS Dir,TRAINLINE,-88.1,0,-88.1,Court Orders Sec 31: Miscellaneous,Passenger railways
Buckinghamshire Council,31.10.2022,21.10.2022,Communities,Partnerships - Communities,ATHLETICS HUB,380,0,380,Miscellaneous (Other)  Expenses,"Civic, social & fraternal associations"
Buckinghamshire Council,31.10.2022,21.10.2022,Communities,Housing & Homelessness & Regulatory Comm,CRESSEX EMBROIDERY LIMIT,93,0,93,Protective Clothing & Uniforms,"Commercial photo, art & graphic"
Buckinghamshire Council,31.10.2022,21.10.2022,Communities,Housing & Homelessness & Regulatory Comm,HOMEBASE,14.9,0,14.9,Maintenance of Grounds,Home supply warehouse stores
Buckinghamshire Council,31.10.2022,21.10.2022,"Planning, Growth & Sustainability",AH&R - PGS Dir,AMZNMKTPLACE,26.89,0,26.89,Miscellaneous (Other)  Expenses,Miscellaneous retail
Buckinghamshire Council,31.10.2022,21.10.2022,Adults and Health,Communities - Adults & Health,CURB,115,0,115,Staff Travelling Expenses,Taxicabs & limousines
Buckinghamshire Council,31.10.2022,21.10.2022,"Planning, Growth & Sustainability",AH&R - PGS Dir,TOOLSTATION LTD,40,0,40,General Repairs & Maintenance,Timber & building supplies
Buckinghamshire Council,31.10.2022,21.10.2022,Children's Services,Education & Childrens Services - CS Dir,TRAVELODGE GB0000,223.85,0,223.85,Sec 17: Financial Assistance,Travelodge
Buckinghamshire Council,31.10.2022,21.10.2022,Children's Services,Education & Childrens Services - CS Dir,TRAVELODGE GB0000,201.89,0,201.89,Sec 17: Financial Assistance,Travelodge
Buckinghamshire Council,31.10.2022,21.10.2022,Adults and Health,Health & Wellbeing - Adults & Health Dir,ASDA SUPERSTORE,5,0,5,Awaiting Coding,Grocery stores
Buckinghamshire Council,31.10.2022,21.10.2022,"Planning, Growth & Sustainability",Planning & Regeneration - PGS,WWW.REDOAKDIRECT.C,24.13,0,24.13,Repair and Maintenance of Equipment,Timber & building supplies
Buckinghamshire Council,31.10.2022,21.10.2022,Deputy Chief Executive,Communities - DCE,SUMUP  *CURIOSITEA,11.3,0,11.3,Subsistence,Restaurants
Buckinghamshire Council,31.10.2022,21.10.2022,Children's Services,Education & Childrens Services - CS Dir,HM PASSPORT OFFICE,49,0,49,Sec 20/31: Financial Assistance,Government services
Buckinghamshire Council,31.10.2022,21.10.2022,Children's Services,Education & Childrens Services - CS Dir,HM PASSPORT OFFICE,49,0,49,Sec 20/31: Financial Assistance,Government services
Buckinghamshire Council,31.10.2022,21.10.2022,Children's Services,Education & Childrens Services - CS Dir,HM PASSPORT OFFICE,49,0,49,Sec 20/31: Financial Assistance,Government services
Buckinghamshire Council,31.10.2022,21.10.2022,Resources,AH&R - Res Dir,GMO GLOBALSIGN LIM,513.6,0,513.6,Annual Licence (IT),Computer network information services
Buckinghamshire Council,31.10.2022,21.10.2022,Resources,AH&R - Res Dir,AMAZON.CO.UK,100,0,100,Stationery & Office Supplies,Direct sales companies
Buckinghamshire Council,31.10.2022,21.10.2022,Resources,AH&R - Res Dir,AMAZON.CO.UK,250,0,250,Stationery & Office Supplies,Direct sales companies
Buckinghamshire Council,31.10.2022,21.10.2022,Communities,Transport - Communities Dir,Amazon.co.uk,13.63,0,13.63,Stationery & Office Supplies,Direct sales companies
Buckinghamshire Council,31.10.2022,21.10.2022,Communities,Transport - Communities Dir,eBay O*20-09240-67516,49.62,0,49.62,Awaiting Coding,Department stores
Buckinghamshire Council,31.10.2022,21.10.2022,Children's Services,Education & Childrens Services - CS Dir,ARGOS LTD,132.95,0,132.95,Equipment (including storage),Discount stores
Buckinghamshire Council,31.10.2022,21.10.2022,Children's Services,Education & Childrens Services - CS Dir,WWW.JOHNLEWIS.COM,76.94,0,76.94,Equipment (including storage),Department stores
Buckinghamshire Council,31.10.2022,21.10.2022,Deputy Chief Executive,AH&R- DCE Dir,MOONPIG,4.54,0,4.54,"Courses, Conference and Seminar Fees",Misc. general merchandise
Buckinghamshire Council,31.10.2022,21.10.2022,Communities,Culture & Leisure - Communities Dir,WWW.SCREWFIX.COM,86.55,17.31,103.86,General Repairs & Maintenance,Timber & building supplies
Buckinghamshire Council,31.10.2022,21.10.2022,Communities,Culture & Leisure - Communities Dir,WWW.SCREWFIX.COM,0.03,0,0.03,General Repairs & Maintenance,Timber & building supplies
Buckinghamshire Council,31.10.2022,21.10.2022,Children's Services,Education & Childrens Services - CS Dir,HELLO STUDENT,"3,942.00",0,"3,942.00",Leaving Care - Higher Education Supp,Estate Agents & Property Management
Buckinghamshire Council,31.10.2022,21.10.2022,Children's Services,Education & Childrens Services - CS Dir,HIGH STREET VOUCHERS,304.25,0,304.25,Activities & General Recreation,Department stores
Buckinghamshire Council,31.10.2022,21.10.2022,Children's Services,Education & Childrens Services - CS Dir,WWW.MEADOPENFARM.CO.UK,126,0,126,Activities & General Recreation,Tourist attractions and exhibitions
Buckinghamshire Council,31.10.2022,21.10.2022,Children's Services,Education & Childrens Services - CS Dir,TRAINLINE.COM,-44.8,0,-44.8,Sec 20/31: Supp for Contact,Passenger railways
Buckinghamshire Council,31.10.2022,21.10.2022,Children's Services,Education & Childrens Services - CS Dir,TRAINLINE,57.23,0,57.23,Sec 20/31: Supp for Contact,Passenger railways
Buckinghamshire Council,31.10.2022,21.10.2022,Adults and Health,Health & Wellbeing - Adults & Health Dir,SUMUP  *RISBOROUGH CARS,26,0,26,Staff Travelling Expenses,Taxicabs & limousines
Buckinghamshire Council,31.10.2022,21.10.2022,Adults and Health,Health & Wellbeing - Adults & Health Dir,ARGOS LTD,55,0,55,Specialist Equipment,Discount stores
Buckinghamshire Council,31.10.2022,21.10.2022,Deputy Chief Executive,Communities - DCE,DACORUM COUNCIL PARKIN,1.3,0,1.3,Staff Travelling Expenses,Car parking & garages
Buckinghamshire Council,31.10.2022,21.10.2022,Children's Services,Education & Childrens Services - CS Dir,WWW.BUCKINGHAMSHIRE.GOV,417.12,0,417.12,Leaving Care  - Financial Assistance,Government services
Buckinghamshire Council,31.10.2022,20.10.2022,Children's Services,Education & Childrens Services - CS Dir,SCOTTISH POWER,470.69,0,470.69,Other Equipment and Materials,Fuel dealers
Buckinghamshire Council,31.10.2022,20.10.2022,Children's Services,Education & Childrens Services - CS Dir,TRAINLINE,63.24,0,63.24,Leaving Care - Transport,Passenger railways
Buckinghamshire Council,31.10.2022,20.10.2022,Children's Services,Education & Childrens Services - CS Dir,EXPEDIA,99,0,99,Staff Travelling Expenses,Travel agencies
Buckinghamshire Council,31.10.2022,20.10.2022,Children's Services,Education & Childrens Services - CS Dir,AMZNMKTPLACE,194.48,0,194.48,Awaiting Coding,Miscellaneous retail
Buckinghamshire Council,31.10.2022,20.10.2022,Deputy Chief Executive,Leader - DCE,MILTON KEYNES PARKING,20,0,20,Staff Travelling Expenses,Car parking & garages
Buckinghamshire Council,31.10.2022,20.10.2022,Communities,Climate Change & Environment - Community,DVLA VEHICLE TAX,290,0,290,Vehicle Insurance,Government services
Buckinghamshire Council,31.10.2022,20.10.2022,Deputy Chief Executive,Communities - DCE,AO RETAIL LIMITED,453.99,0,453.99,Other Personal Needs,Household appliance stores
Buckinghamshire Council,31.10.2022,20.10.2022,Deputy Chief Executive,Communities - DCE,AO RETAIL LIMITED,298.99,0,298.99,Other Personal Needs,Household appliance stores
Buckinghamshire Council,31.10.2022,20.10.2022,Deputy Chief Executive,Communities - DCE,AO RETAIL LIMITED,463.99,0,463.99,Other Personal Needs,Household appliance stores
Buckinghamshire Council,31.10.2022,20.10.2022,Deputy Chief Executive,Communities - DCE,AMZNMKTPLACE,5.2,0,5.2,Other Personal Needs,Miscellaneous retail
Buckinghamshire Council,31.10.2022,20.10.2022,Deputy Chief Executive,Communities - DCE,AO RETAIL LIMITED,956.99,0,956.99,Other Personal Needs,Household appliance stores
Buckinghamshire Council,31.10.2022,20.10.2022,Deputy Chief Executive,Communities - DCE,AO RETAIL LIMITED,742.99,0,742.99,Other Personal Needs,Household appliance stores
Buckinghamshire Council,31.10.2022,20.10.2022,Deputy Chief Executive,Communities - DCE,AO RETAIL LIMITED,"1,177.99",0,"1,177.99",Other Personal Needs,Household appliance stores
Buckinghamshire Council,31.10.2022,20.10.2022,Deputy Chief Executive,Communities - DCE,ARGOS LTD,27,0,27,Other Personal Needs,Discount stores
Buckinghamshire Council,31.10.2022,20.10.2022,Deputy Chief Executive,Communities - DCE,ARGOS LTD,39,0,39,Other Personal Needs,Discount stores
Buckinghamshire Council,31.10.2022,20.10.2022,Deputy Chief Executive,Communities - DCE,ARGOS LTD,248.95,0,248.95,Other Personal Needs,Discount stores
Buckinghamshire Council,31.10.2022,20.10.2022,Deputy Chief Executive,Communities - DCE,ARGOS LTD,183.95,0,183.95,Other Personal Needs,Discount stores
Buckinghamshire Council,31.10.2022,20.10.2022,Deputy Chief Executive,Communities - DCE,ARGOS LTD,107,0,107,Other Personal Needs,Discount stores
Buckinghamshire Council,31.10.2022,20.10.2022,Deputy Chief Executive,Communities - DCE,ARGOS LTD,598.95,0,598.95,Other Personal Needs,Discount stores
Buckinghamshire Council,31.10.2022,20.10.2022,Adults and Health,Health & Wellbeing - Adults & Health Dir,AMZNMKTPLACE,5.79,0,5.79,Awaiting Coding,Miscellaneous retail
Buckinghamshire Council,31.10.2022,20.10.2022,Adults and Health,Health & Wellbeing - Adults & Health Dir,AMZNMKTPLACE,17.98,0,17.98,Catering & Domestic Equipment,Miscellaneous retail
Buckinghamshire Council,31.10.2022,20.10.2022,Adults and Health,Health & Wellbeing - Adults & Health Dir,AMZNMKTPLACE,6.78,0,6.78,Awaiting Coding,Miscellaneous retail
Buckinghamshire Council,31.10.2022,20.10.2022,Communities,Housing & Homelessness & Regulatory Comm,SHELL HAZLEMERE,52.8,0,52.8,Maintenance of Grounds,Service stations
Buckinghamshire Council,31.10.2022,20.10.2022,Resources,AH&R - Res Dir,GEN REGISTER OFFICE,14,0,14,Miscellaneous (Other)  Expenses,Government services
Buckinghamshire Council,31.10.2022,20.10.2022,Resources,AH&R - Res Dir,GEN REGISTER OFFICE,14,0,14,Miscellaneous (Other)  Expenses,Government services
Buckinghamshire Council,31.10.2022,20.10.2022,"Planning, Growth & Sustainability",AH&R - PGS Dir,BOOKER LIMITED HIGH WYCOM,160.32,0,160.32,Contract Catering,Caterers
Buckinghamshire Council,31.10.2022,20.10.2022,"Planning, Growth & Sustainability",AH&R - PGS Dir,WICKES AYLESBURY,5,0,5,Miscellaneous (Other)  Expenses,Timber & building supplies
Buckinghamshire Council,31.10.2022,20.10.2022,"Planning, Growth & Sustainability",AH&R - PGS Dir,AMZNMKTPLACE,6.85,0,6.85,Miscellaneous (Other)  Expenses,Miscellaneous retail
Buckinghamshire Council,31.10.2022,20.10.2022,Communities,Culture & Leisure - Communities Dir,PROMAC LOCKSMITHS,154.5,0,154.5,Administrative Equipment & Tools,Hardware stores
Buckinghamshire Council,31.10.2022,20.10.2022,"Planning, Growth & Sustainability",AH&R - PGS Dir,SCREWFIX HIGH WYCOMBE CRE,129.03,0,129.03,General Repairs & Maintenance,Timber & building supplies
Buckinghamshire Council,31.10.2022,20.10.2022,"Planning, Growth & Sustainability",AH&R - PGS Dir,B & Q 1305,1.42,0,1.42,General Repairs & Maintenance,Home supply warehouse stores
Buckinghamshire Council,31.10.2022,20.10.2022,Children's Services,Education & Childrens Services - CS Dir,TRAVELODGE GB0000,76.99,0,76.99,Sec 17: Financial Assistance,Travelodge
Buckinghamshire Council,31.10.2022,20.10.2022,Adults and Health,Health & Wellbeing - Adults & Health Dir,ASDA GROCERIES ONLINE,49.95,0,49.95,Awaiting Coding,Grocery stores
Buckinghamshire Council,31.10.2022,20.10.2022,Adults and Health,Health & Wellbeing - Adults & Health Dir,ASDA GROCERIES ONLINE,-0.25,0,-0.25,Awaiting Coding,Grocery stores
Buckinghamshire Council,31.10.2022,20.10.2022,Deputy Chief Executive,AH&R- DCE Dir,AMZNMktplace,46.6,0,46.6,Awaiting Coding,Miscellaneous retail
Buckinghamshire Council,31.10.2022,20.10.2022,Children's Services,Education & Childrens Services - CS Dir,AMAZON.CO.UK,37.18,0,37.18,"Books, Records, Films & Oth Publications",Direct sales companies
Buckinghamshire Council,31.10.2022,20.10.2022,Children's Services,Education & Childrens Services - CS Dir,WYCOMBE SWAN ECOMM,37.65,0,37.65,Activities & General Recreation,Theatres and ticket agencies
Buckinghamshire Council,31.10.2022,20.10.2022,"Planning, Growth & Sustainability",Planning & Regeneration - PGS,RTPI,-60,0,-60,Course Fees & Post Entry Training,"Member clubs, sport, recreation & golf"
Buckinghamshire Council,31.10.2022,20.10.2022,Resources,AH&R - Res Dir,PAYPAL,14.39,0,14.39,IT - Computer Network Charges,Computer network information services
Buckinghamshire Council,31.10.2022,20.10.2022,Children's Services,Education & Childrens Services - CS Dir,NEW YORK DELI GATEHOUSE,26.4,0,26.4,Purchase.of Refreshments and Food,Restaurants
Buckinghamshire Council,31.10.2022,20.10.2022,Children's Services,Education & Childrens Services - CS Dir,NEW YORK DELI GATEHOUSE,59.35,0,59.35,Purchase.of Refreshments and Food,Restaurants
Buckinghamshire Council,31.10.2022,20.10.2022,Children's Services,Education & Childrens Services - CS Dir,NEW YORK DELI GATEHOUSE,12.15,0,12.15,Purchase.of Refreshments and Food,Restaurants
Buckinghamshire Council,31.10.2022,20.10.2022,"Planning, Growth & Sustainability",AH&R - PGS Dir,WWW.PLANNING.CO,135.2,0,135.2,"Fees & Regulations (Planning, Building)",Misc business services
Buckinghamshire Council,31.10.2022,20.10.2022,Adults and Health,Health & Wellbeing - Adults & Health Dir,AMZNMKTPLACE,13.5,0,13.5,Stationery & Office Supplies,Miscellaneous retail
Buckinghamshire Council,31.10.2022,20.10.2022,Communities,Communities - Trust Accounts,WICKES SLOUGH,39.15,0,39.15,General Repairs & Maintenance,Timber & building supplies
Buckinghamshire Council,31.10.2022,20.10.2022,Communities,Communities - Trust Accounts,TOOLSTATION LTD,56.94,0,56.94,General Repairs & Maintenance,Timber & building supplies
Buckinghamshire Council,31.10.2022,20.10.2022,"Planning, Growth & Sustainability",Planning & Regeneration - PGS,TFL TRAVEL CH,5,0,5,Other Employees Expenses,Local commuter transport
Buckinghamshire Council,31.10.2022,20.10.2022,"Planning, Growth & Sustainability",Planning & Regeneration - PGS,TRAINLINE,20.83,0,20.83,Other Employees Expenses,Passenger railways
Buckinghamshire Council,31.10.2022,20.10.2022,"Planning, Growth & Sustainability",Planning & Regeneration - PGS,TOWN & COUNTRY PA,10,0,10,Professional Subscriptions re Employees,"Civic, social & fraternal associations"
Buckinghamshire Council,31.10.2022,20.10.2022,"Planning, Growth & Sustainability",Planning & Regeneration - PGS,TRAINLINE,-15.84,0,-15.84,Other Employees Expenses,Passenger railways
Buckinghamshire Council,31.10.2022,20.10.2022,"Planning, Growth & Sustainability",Housing & Homelessness & Regulatory PGS,TIMPSON LTD,12,0,12,Other General Office Expenses,Miscellaneous retail
Buckinghamshire Council,31.10.2022,20.10.2022,Adults and Health,Health & Wellbeing - Adults & Health Dir,WM MORRISONS STORE,100,0,100,Long Service Awards,Grocery stores
Buckinghamshire Council,31.10.2022,20.10.2022,Adults and Health,Health & Wellbeing - Adults & Health Dir,ASDA SUPERSTORE,58.66,0,58.66,Awaiting Coding,Grocery stores
Buckinghamshire Council,31.10.2022,20.10.2022,Adults and Health,Health & Wellbeing - Adults & Health Dir,AL-KHIR GROCERS,36.37,0,36.37,Awaiting Coding,Grocery stores
Buckinghamshire Council,31.10.2022,20.10.2022,Children's Services,Education & Childrens Services - CS Dir,TVLICENSING.CO.UK,159,0,159,General Repairs & Maintenance,Consultants & public relation services
Buckinghamshire Council,31.10.2022,20.10.2022,Children's Services,Education & Childrens Services - CS Dir,TRAINLINE,91.6,0,91.6,Sec 20/31: Transport,Passenger railways
Buckinghamshire Council,31.10.2022,20.10.2022,Children's Services,Education & Childrens Services - CS Dir,TRAINLINE,69.5,0,69.5,Staff Travelling Expenses,Passenger railways
Buckinghamshire Council,31.10.2022,20.10.2022,Children's Services,Education & Childrens Services - CS Dir,TRAINLINE,68.9,0,68.9,Court Orders Sec 31: Miscellaneous,Passenger railways
Buckinghamshire Council,31.10.2022,20.10.2022,Children's Services,Education & Childrens Services - CS Dir,TRAINLINE,142.5,0,142.5,Court Orders Sec 31: Miscellaneous,Passenger railways
Buckinghamshire Council,31.10.2022,20.10.2022,Children's Services,Education & Childrens Services - CS Dir,TRAINLINE,99.6,0,99.6,Court Orders Sec 31: Miscellaneous,Passenger railways
Buckinghamshire Council,31.10.2022,20.10.2022,Resources,AH&R - Res Dir,FACEBK *AYREFGTM72,50.23,0,50.23,Permanent Recruitment Costs,Advertising services
Buckinghamshire Council,31.10.2022,20.10.2022,Children's Services,Education & Childrens Services - CS Dir,AMZNMKTPLACE,22.99,0,22.99,Consumable Supplies,Miscellaneous retail
Buckinghamshire Council,31.10.2022,19.10.2022,Children's Services,Education & Childrens Services - CS Dir,TRAINLINE,114.5,0,114.5,Sec 20/31: Transport,Passenger railways
Buckinghamshire Council,31.10.2022,19.10.2022,Children's Services,Education & Childrens Services - CS Dir,ARGOS LTD,41.95,0,41.95,Equipment (including storage),Discount stores
Buckinghamshire Council,31.10.2022,19.10.2022,"Planning, Growth & Sustainability",Housing & Homelessness & Regulatory PGS,AMZNMKTPLACE,26.64,5.34,31.98,Administrative Equipment & Tools,Miscellaneous retail
Buckinghamshire Council,31.10.2022,19.10.2022,Communities,Culture & Leisure - Communities Dir,BAKER ROSS,74.29,14.86,89.15,Events Expenditure,Art & craft shops
Buckinghamshire Council,31.10.2022,19.10.2022,Communities,Culture & Leisure - Communities Dir,AMZNMKTPLACE,37.76,0,37.76,Events Expenditure,Miscellaneous retail
Buckinghamshire Council,31.10.2022,19.10.2022,Deputy Chief Executive,Communities - DCE,AO RETAIL LIMITED,732.99,0,732.99,Awaiting Coding,Household appliance stores
Buckinghamshire Council,31.10.2022,19.10.2022,Deputy Chief Executive,Communities - DCE,AO RETAIL LIMITED,328.99,0,328.99,Awaiting Coding,Household appliance stores
Buckinghamshire Council,31.10.2022,19.10.2022,Deputy Chief Executive,Leader - DCE,NEW YORK DELI GATEHOUSE,2.35,0,2.35,Subsistence,Restaurants
Buckinghamshire Council,31.10.2022,19.10.2022,Adults and Health,Health & Wellbeing - Adults & Health Dir,AMZNMKTPLACE,12.88,0,12.88,Stationery & Office Supplies,Miscellaneous retail
Buckinghamshire Council,31.10.2022,19.10.2022,Deputy Chief Executive,Leader - DCE,NEW YORK DELI GATEHOUSE,5.2,0,5.2,Subsistence,Restaurants
Buckinghamshire Council,31.10.2022,19.10.2022,Communities,Climate Change & Environment - Community,AMZNMKTPLACE,31.96,0,31.96,Computer Software Licences & Purchase,Miscellaneous retail
Buckinghamshire Council,31.10.2022,19.10.2022,"Planning, Growth & Sustainability",AH&R - PGS Dir,SCREWFIX DIR LTD,57.98,0,57.98,General Repairs & Maintenance,Timber & building supplies
Buckinghamshire Council,31.10.2022,19.10.2022,Children's Services,Education & Childrens Services - CS Dir,TAXIPAY,85,0,85,Sec 20/31: Transport,Taxicabs & limousines
Buckinghamshire Council,31.10.2022,19.10.2022,Children's Services,Education & Childrens Services - CS Dir,TAXIPAY,85,0,85,Sec 20/31: Transport,Taxicabs & limousines
Buckinghamshire Council,31.10.2022,19.10.2022,Deputy Chief Executive,Communities - DCE,AO RETAIL LIMITED,30,0,30,Other Personal Needs,Household appliance stores
Buckinghamshire Council,31.10.2022,19.10.2022,Deputy Chief Executive,Communities - DCE,AO RETAIL LIMITED,433.99,0,433.99,Other Personal Needs,Household appliance stores
Buckinghamshire Council,31.10.2022,19.10.2022,"Planning, Growth & Sustainability",Housing & Homelessness & Regulatory PGS,LAND REGISTRY ECOM CCC,3,0,3,Homelessness,Government services
Buckinghamshire Council,31.10.2022,19.10.2022,Communities,Transport - Communities Dir,AMZNMKTPLACE,14.55,0,14.55,Mobile Telephones & Cellphone Charges,Miscellaneous retail
Buckinghamshire Council,31.10.2022,19.10.2022,Communities,Culture & Leisure - Communities Dir,MILTON KEYNES PARKING,3.5,0,3.5,Staff Travelling Expenses,Car parking & garages
Buckinghamshire Council,31.10.2022,19.10.2022,Adults and Health,Health & Wellbeing - Adults & Health Dir,AMZNMktplace,6.78,0,6.78,Awaiting Coding,Miscellaneous retail
Buckinghamshire Council,31.10.2022,19.10.2022,Adults and Health,Health & Wellbeing - Adults & Health Dir,AMZNMktplace,19.72,0,19.72,Awaiting Coding,Miscellaneous retail
Buckinghamshire Council,31.10.2022,19.10.2022,Adults and Health,Health & Wellbeing - Adults & Health Dir,TESCO STORES 5135,178.8,0,178.8,Awaiting Coding,Grocery stores
Buckinghamshire Council,31.10.2022,19.10.2022,Communities,Partnerships - Communities,YOUR CAF  IN THE PARK,7.5,0,7.5,Miscellaneous (Other)  Expenses,Fast food restaurants
Buckinghamshire Council,31.10.2022,19.10.2022,Communities,Partnerships - Communities,YOUR CAF  IN THE PARK,2.5,0,2.5,Miscellaneous (Other)  Expenses,Fast food restaurants
Buckinghamshire Council,31.10.2022,19.10.2022,Communities,Partnerships - Communities,YOUR CAF  IN THE PARK,6.6,0,6.6,Miscellaneous (Other)  Expenses,Fast food restaurants
Buckinghamshire Council,31.10.2022,19.10.2022,"Planning, Growth & Sustainability",AH&R - PGS Dir,AMZNMKTPLACE,17.99,0,17.99,Miscellaneous (Other)  Expenses,Miscellaneous retail
Buckinghamshire Council,31.10.2022,19.10.2022,"Planning, Growth & Sustainability",AH&R - PGS Dir,SCREWFIX HIGH WYCOMBE CRE,5.39,0,5.39,Miscellaneous (Other)  Expenses,Timber & building supplies
Buckinghamshire Council,31.10.2022,19.10.2022,"Planning, Growth & Sustainability",AH&R - PGS Dir,AMZNMKTPLACE,26.97,0,26.97,Miscellaneous (Other)  Expenses,Miscellaneous retail
Buckinghamshire Council,31.10.2022,19.10.2022,Communities,Housing & Homelessness & Regulatory Comm,BLINDS 2 GO LTD,72.27,14.46,86.73,Furniture Fittings & IT,Drapery & upholstery shops
Buckinghamshire Council,31.10.2022,19.10.2022,Communities,Special Expenses,POST OFFICE COUNTER,68,0,68,General Postage,Postal services
Buckinghamshire Council,31.10.2022,19.10.2022,Resources,AH&R - Res Dir,NEXT RETAIL LTD,50,0,50,Other Employees Expenses,Family clothing shops
Buckinghamshire Council,31.10.2022,19.10.2022,Resources,AH&R - Res Dir,ROCOCO LOUNGE,50,0,50,Other Employees Expenses,"Bars, taverns, pubs & nightclubs"
Buckinghamshire Council,31.10.2022,19.10.2022,Children's Services,Education & Childrens Services - CS Dir,TRAVELODGE GB0000,195.79,0,195.79,Sec 17: Financial Assistance,Travelodge
Buckinghamshire Council,31.10.2022,19.10.2022,Communities,Culture & Leisure - Communities Dir,QUICKSTEP BURNHAM,24,0,24,Administrative Equipment & Tools,Shoe repairs
Buckinghamshire Council,31.10.2022,19.10.2022,Communities,Climate Change & Environment - Community,WWW.BUCKINGHAMSHIRE.GOV,1,0,1,Awaiting Coding,Government services
Buckinghamshire Council,31.10.2022,19.10.2022,"Planning, Growth & Sustainability",AH&R - PGS Dir,LYRECO UK LTD,97.7,19.54,117.24,Printing & Stationery,Stationery & office supplies
Buckinghamshire Council,31.10.2022,19.10.2022,"Planning, Growth & Sustainability",AH&R - PGS Dir,LYRECO UK LTD,0.02,0,0.02,Printing & Stationery,Stationery & office supplies
Buckinghamshire Council,31.10.2022,19.10.2022,Children's Services,Education & Childrens Services - CS Dir,TRAINLINE,-10.4,0,-10.4,Sec 20/31: Transport,Passenger railways
Buckinghamshire Council,31.10.2022,19.10.2022,Deputy Chief Executive,AH&R- DCE Dir,TAXIPAY,110,0,110,Staff Travelling Expenses,Taxicabs & limousines
Buckinghamshire Council,31.10.2022,19.10.2022,Communities,Transport - Communities Dir,STOKE MANDEVILLE T/O,27.4,0,27.4,Staff Travelling Expenses,Passenger railways
Buckinghamshire Council,31.10.2022,19.10.2022,Children's Services,Education & Childrens Services - CS Dir,AMZNMKTPLACE,79.99,0,79.99,Leaving Care - Grants for Care Leavers,Miscellaneous retail
Buckinghamshire Council,31.10.2022,19.10.2022,Children's Services,Education & Childrens Services - CS Dir,AMZNMKTPLACE,579,0,579,Leaving Care - Grants for Care Leavers,Miscellaneous retail
Buckinghamshire Council,31.10.2022,19.10.2022,Adults and Health,Health & Wellbeing - Adults & Health Dir,AMZNMktplace,209.99,0,209.99,Awaiting Coding,Miscellaneous retail
Buckinghamshire Council,31.10.2022,19.10.2022,Adults and Health,Health & Wellbeing - Adults & Health Dir,SAINSBURYS S/MKTS,6.45,0,6.45,Awaiting Coding,Grocery stores
Buckinghamshire Council,31.10.2022,19.10.2022,Communities,Communities - Trust Accounts,BOOKER LIMITED SLOUGH,642.64,0,642.64,Contract Catering,Caterers
Buckinghamshire Council,31.10.2022,19.10.2022,Children's Services,Education & Childrens Services - CS Dir,ARGOS LTD,79.95,0,79.95,Equipment (including storage),Discount stores
Buckinghamshire Council,31.10.2022,19.10.2022,Children's Services,Education & Childrens Services - CS Dir,B&M 426 - HS AYLESBURY,8.99,0,8.99,Support for Foster Carers,Misc. general merchandise
Buckinghamshire Council,31.10.2022,19.10.2022,"Planning, Growth & Sustainability",Planning & Regeneration - PGS,TRAINLINE,15.84,0,15.84,Other Employees Expenses,Passenger railways
Buckinghamshire Council,31.10.2022,19.10.2022,"Planning, Growth & Sustainability",Planning & Regeneration - PGS,TFL TRAVEL CH,5,0,5,Other Employees Expenses,Local commuter transport
Buckinghamshire Council,31.10.2022,19.10.2022,"Planning, Growth & Sustainability",Planning & Regeneration - PGS,TRAINLINE,15.84,0,15.84,Other Employees Expenses,Passenger railways
Buckinghamshire Council,31.10.2022,19.10.2022,Resources,AH&R - Res Dir,FACEBK *RYLGLGTV82,112.74,0,112.74,Permanent Recruitment Costs,Advertising services
Buckinghamshire Council,31.10.2022,19.10.2022,Deputy Chief Executive,Leader - DCE,BRIGHTON SST,61.6,0,61.6,Staff Travelling Expenses,Passenger railways
Buckinghamshire Council,31.10.2022,19.10.2022,Adults and Health,Health & Wellbeing - Adults & Health Dir,TESCO STORES 6030,6.57,0,6.57,General Provisions (Food),Grocery stores
Buckinghamshire Council,31.10.2022,19.10.2022,Children's Services,Education & Childrens Services - CS Dir,TRAVELODGE GB0000,101.98,0,101.98,"Courses, Conference and Seminar Fees",Travelodge
Buckinghamshire Council,31.10.2022,19.10.2022,Children's Services,Education & Childrens Services - CS Dir,EBAY O*13-09235-92205,20.36,0,20.36,"Exp of School, Club & College Activities",Department stores
Buckinghamshire Council,31.10.2022,19.10.2022,Children's Services,Education & Childrens Services - CS Dir,TRAINLINE.COM,115.49,0,115.49,Sec 20/31: Supp for Contact,Passenger railways
Buckinghamshire Council,31.10.2022,19.10.2022,Children's Services,Education & Childrens Services - CS Dir,TRAINLINE.COM,-44.8,0,-44.8,Sec 20/31: Supp for Contact,Passenger railways
Buckinghamshire Council,31.10.2022,19.10.2022,Children's Services,Education & Childrens Services - CS Dir,BUCKINGHAM HOTELS,383,0,383,Sec 20/31: Financial Assistance,"Hotels, motels & resorts"
Buckinghamshire Council,31.10.2022,19.10.2022,"Planning, Growth & Sustainability",Housing & Homelessness & Regulatory PGS,BUCKINGHAMSHIRE COUNCIL,11,0,11,Burial Costs,Government services
Buckinghamshire Council,31.10.2022,19.10.2022,Children's Services,Education & Childrens Services - CS Dir,AMAZON.CO.UK,101.95,0,101.95,Consumable Supplies,Direct sales companies
Buckinghamshire Council,31.10.2022,19.10.2022,Resources,AH&R - Res Dir,BUCKINGHAM HOTELS,"1,920.00",0,"1,920.00","Courses, Conference and Seminar Fees","Hotels, motels & resorts"
Buckinghamshire Council,31.10.2022,19.10.2022,Resources,AH&R - Res Dir,BUCKINGHAM HOTELS,"2,332.80",0,"2,332.80","Courses, Conference and Seminar Fees","Hotels, motels & resorts"
Buckinghamshire Council,31.10.2022,19.10.2022,Resources,AH&R - Res Dir,BUCKINGHAM HOTELS,"2,332.80",0,"2,332.80","Courses, Conference and Seminar Fees","Hotels, motels & resorts"
Buckinghamshire Council,31.10.2022,18.10.2022,Communities,Culture & Leisure - Communities Dir,AMZNMKTPLACE,3.9,0.78,4.68,Events Expenditure,Miscellaneous retail
Buckinghamshire Council,31.10.2022,18.10.2022,Communities,Culture & Leisure - Communities Dir,AMZNMKTPLACE,0.01,0,0.01,Events Expenditure,Miscellaneous retail
Buckinghamshire Council,31.10.2022,18.10.2022,Adults and Health,Health & Wellbeing - Adults & Health Dir,SAINSBURYS S/MKTS,2,0,2,Awaiting Coding,Grocery stores
Buckinghamshire Council,31.10.2022,18.10.2022,Adults and Health,Health & Wellbeing - Adults & Health Dir,SAINSBURYS S/MKTS,26.2,0,26.2,Awaiting Coding,Grocery stores
Buckinghamshire Council,31.10.2022,18.10.2022,Children's Services,Education & Childrens Services - CS Dir,TRAINLINE.COM,198.39,0,198.39,Staff Travelling Expenses,Passenger railways
Buckinghamshire Council,31.10.2022,18.10.2022,Communities,Culture & Leisure - Communities Dir,AMZNMKTPLACE,4.24,0.85,5.09,Events Expenditure,Miscellaneous retail
Buckinghamshire Council,31.10.2022,18.10.2022,"Planning, Growth & Sustainability",Housing & Homelessness & Regulatory PGS,WWW.SCREWFIX.COM,22.47,0,22.47,Works In Default,Timber & building supplies
Buckinghamshire Council,31.10.2022,18.10.2022,Deputy Chief Executive,Communities - DCE,AO RETAIL LIMITED,273.99,0,273.99,Awaiting Coding,Household appliance stores
Buckinghamshire Council,31.10.2022,18.10.2022,Deputy Chief Executive,Communities - DCE,ARGOS LTD,252.95,0,252.95,Awaiting Coding,Discount stores
Buckinghamshire Council,31.10.2022,18.10.2022,Deputy Chief Executive,Communities - DCE,AO RETAIL LIMITED,493.99,0,493.99,Awaiting Coding,Household appliance stores
Buckinghamshire Council,31.10.2022,18.10.2022,"Planning, Growth & Sustainability",Climate Change & Environment - PGS,ZTL*FRANCA?S CAFE,23.4,0,23.4,Subsistence,Restaurants
Buckinghamshire Council,31.10.2022,18.10.2022,Children's Services,Education & Childrens Services - CS Dir,POST OFFICE COUNTER,6.85,0,6.85,General Postage,Postal services
Buckinghamshire Council,31.10.2022,18.10.2022,Communities,Housing & Homelessness & Regulatory Comm,SP PROSAFEDIRECT.COM,68.35,0,68.35,Protective Clothing & Uniforms,Computer software stores
Buckinghamshire Council,31.10.2022,18.10.2022,"Planning, Growth & Sustainability",AH&R - PGS Dir,EURO CAR PARTS P,17.81,0,17.81,Repair & Maint of Vehicles & Plant,Automotive parts & accessories
Buckinghamshire Council,31.10.2022,18.10.2022,Communities,Climate Change & Environment - Community,GOOGLE ADS2753042584,500,0,500,Waste Prevention costs,Advertising services
Buckinghamshire Council,31.10.2022,18.10.2022,"Planning, Growth & Sustainability",Planning & Regeneration - PGS,CHARTERED ASSOCIATION,310,0,310,Professional Subscriptions re Employees,Colleges & universities
Buckinghamshire Council,31.10.2022,18.10.2022,Communities,Culture & Leisure - Communities Dir,WEL MEDICAL LIMITED,160,32,192,Health & Safety Supplies & Services,Medical & health services
Buckinghamshire Council,31.10.2022,18.10.2022,Adults and Health,Health & Wellbeing - Adults & Health Dir,WAITROSE 177,9.3,0,9.3,Awaiting Coding,Grocery stores
Buckinghamshire Council,31.10.2022,18.10.2022,Adults and Health,Health & Wellbeing - Adults & Health Dir,ASDA SUPERSTORE,22.22,0,22.22,Awaiting Coding,Grocery stores
Buckinghamshire Council,31.10.2022,18.10.2022,Children's Services,Education & Childrens Services - CS Dir,LEBARA MOBILE LIMITED,25,0,25,Telephones,Phone services
Buckinghamshire Council,31.10.2022,18.10.2022,Children's Services,Education & Childrens Services - CS Dir,WM MORRISONS STORE,20.17,0,20.17,Recoverable Expenditure,Grocery stores
Buckinghamshire Council,31.10.2022,18.10.2022,Deputy Chief Executive,AH&R- DCE Dir,TAMESIDE METROPOLITAN,194.85,38.97,233.82,Subscriptions to National Bodies,Government services
Buckinghamshire Council,31.10.2022,18.10.2022,Deputy Chief Executive,AH&R- DCE Dir,TAMESIDE METROPOLITAN,76.74,0,76.74,Subscriptions to National Bodies,Government services
Buckinghamshire Council,31.10.2022,18.10.2022,Children's Services,Education & Childrens Services - CS Dir,FREEDOM PROGRAMME LIMITED,12,0,12,Sec 17: Specialist Services,Schools
Buckinghamshire Council,31.10.2022,18.10.2022,Children's Services,Education & Childrens Services - CS Dir,FREEDOM PROGRAMME LIMITED,12,0,12,Sec 17: Specialist Services,Schools
Buckinghamshire Council,31.10.2022,18.10.2022,Children's Services,Education & Childrens Services - CS Dir,FREEDOM PROGRAMME LIMITED,12,0,12,Sec 17: Specialist Services,Schools
Buckinghamshire Council,31.10.2022,18.10.2022,Children's Services,Education & Childrens Services - CS Dir,AMZNMKTPLACE,39.96,0,39.96,Furniture,Miscellaneous retail
Buckinghamshire Council,31.10.2022,18.10.2022,Children's Services,Education & Childrens Services - CS Dir,ARGOS LTD,65.95,0,65.95,Equipment (including storage),Discount stores
Buckinghamshire Council,31.10.2022,18.10.2022,"Planning, Growth & Sustainability",AH&R - PGS Dir,FAST KEY SERVICES LIMI,12.4,2.48,14.88,General Repairs & Maintenance,Misc business services
Buckinghamshire Council,31.10.2022,18.10.2022,"Planning, Growth & Sustainability",AH&R - PGS Dir,FAST KEY SERVICES LIMI,3.34,0,3.34,General Repairs & Maintenance,Misc business services
Buckinghamshire Council,31.10.2022,18.10.2022,Adults and Health,Health & Wellbeing - Adults & Health Dir,AMZNMKTPLACE,13.96,0,13.96,Stationery & Office Supplies,Miscellaneous retail
Buckinghamshire Council,31.10.2022,18.10.2022,Deputy Chief Executive,Communities - DCE,WM MORRISONS STORE,38.75,0,38.75,General Provisions (Food),Grocery stores
Buckinghamshire Council,31.10.2022,18.10.2022,Children's Services,Education & Childrens Services - CS Dir,HIGH STREET VOUCHERS,274.25,0,274.25,Activities & General Recreation,Department stores
Buckinghamshire Council,31.10.2022,18.10.2022,Communities,Culture & Leisure - Communities Dir,POST OFFICE COUNTER,17.1,0,17.1,Administrative Equipment & Tools,Postal services
Buckinghamshire Council,31.10.2022,18.10.2022,Resources,AH&R - Res Dir,WWW.BUCKINGHAMSHIRE.GOV,60,0,60,Miscellaneous (Other)  Expenses,Government services
Buckinghamshire Council,31.10.2022,18.10.2022,Resources,AH&R - Res Dir,WWW.BUCKINGHAMSHIRE.GOV,22,0,22,Miscellaneous (Other)  Expenses,Government services
Buckinghamshire Council,31.10.2022,18.10.2022,Resources,AH&R - Res Dir,WWW.BUCKINGHAMSHIRE.GOV,30,0,30,Miscellaneous (Other)  Expenses,Government services
Buckinghamshire Council,31.10.2022,18.10.2022,Resources,AH&R - Res Dir,BUCKINGHAMSHIRE COUN MOT,-22,0,-22,Miscellaneous (Other)  Expenses,Government services
Buckinghamshire Council,31.10.2022,18.10.2022,Resources,AH&R - Res Dir,BUCKINGHAMSHIRE COUN MOT,-60,0,-60,Miscellaneous (Other)  Expenses,Government services
Buckinghamshire Council,31.10.2022,18.10.2022,Resources,AH&R - Res Dir,BUCKINGHAMSHIRE COUN MOT,-30,0,-30,Miscellaneous (Other)  Expenses,Government services
Buckinghamshire Council,31.10.2022,18.10.2022,"Planning, Growth & Sustainability",Housing & Homelessness & Regulatory PGS,AMZNMKTPLACE,55.96,0,55.96,Administrative Equipment & Tools,Miscellaneous retail
Buckinghamshire Council,31.10.2022,18.10.2022,Communities,Climate Change & Environment - Community,WWW.LETSRECYCLE.COM,196.8,0,196.8,Awaiting Coding,
Buckinghamshire Council,31.10.2022,18.10.2022,Communities,Climate Change & Environment - Community,BLINDS 2 GO LTD,86.35,0,86.35,Awaiting Coding,Drapery & upholstery shops
Buckinghamshire Council,31.10.2022,18.10.2022,Children's Services,Education & Childrens Services - CS Dir,FREEDOM PROGRAMME LIMITED,24,0,24,Sec 17: Financial Assistance One Off,Schools
Buckinghamshire Council,31.10.2022,18.10.2022,Communities,Culture & Leisure - Communities Dir,PRINT GROUP,365.96,0,365.96,Printing & Stationery,Misc business services
Buckinghamshire Council,31.10.2022,18.10.2022,Communities,Culture & Leisure - Communities Dir,AMZNMKTPLACE,157.9,0,157.9,Printing & Stationery,Miscellaneous retail
Buckinghamshire Council,31.10.2022,18.10.2022,Deputy Chief Executive,Communities - DCE,ARGOS LTD,208.95,0,208.95,Other Personal Needs,Discount stores
Buckinghamshire Council,31.10.2022,18.10.2022,Children's Services,Education & Childrens Services - CS Dir,ARGOS LTD,22.05,4.41,26.46,IT Equipment Purchase,Discount stores
Buckinghamshire Council,31.10.2022,18.10.2022,Children's Services,Education & Childrens Services - CS Dir,ARGOS LTD,0.03,0,0.03,IT Equipment Purchase,Discount stores
Buckinghamshire Council,31.10.2022,18.10.2022,Children's Services,Education & Childrens Services - CS Dir,ARGOS LTD,509.95,101.99,611.94,IT Equipment Purchase,Discount stores
Buckinghamshire Council,31.10.2022,18.10.2022,Children's Services,Education & Childrens Services - CS Dir,ARGOS LTD,0.01,0,0.01,IT Equipment Purchase,Discount stores
Buckinghamshire Council,31.10.2022,18.10.2022,"Planning, Growth & Sustainability",AH&R - PGS Dir,,3.68,0.74,3.68,Stationery & Office Supplies,Stationery & office supplies
Buckinghamshire Council,31.10.2022,17.10.2022,Adults and Health,Health & Wellbeing - Adults & Health Dir,SAINSBURYS S/MKTS,1.25,0,1.25,Awaiting Coding,Grocery stores
Buckinghamshire Council,31.10.2022,17.10.2022,Communities,Culture & Leisure - Communities Dir,BAKER ROSS,58.75,11.75,70.5,Events Expenditure,Art & craft shops
Buckinghamshire Council,31.10.2022,17.10.2022,Communities,Culture & Leisure - Communities Dir,BAKER ROSS,0.01,0,0.01,Events Expenditure,Art & craft shops
Buckinghamshire Council,31.10.2022,17.10.2022,Communities,Culture & Leisure - Communities Dir,NEWITTS.COM,21.23,4.25,25.48,Events Expenditure,Sporting goods shops
Buckinghamshire Council,31.10.2022,17.10.2022,Communities,Culture & Leisure - Communities Dir,ENGELBERT STRAUSS LTD,39.63,0,39.63,Events Expenditure,Timber & building supplies
Buckinghamshire Council,31.10.2022,17.10.2022,Communities,Climate Change & Environment - Community,DVLA VEHICLE TAX,90.75,0,90.75,Vehicle Insurance,Government services
Buckinghamshire Council,31.10.2022,17.10.2022,Communities,Climate Change & Environment - Community,DVLA VEHICLE TAX,159.5,0,159.5,Vehicle Insurance,Government services
Buckinghamshire Council,31.10.2022,17.10.2022,"Planning, Growth & Sustainability",AH&R - PGS Dir,ISAAC LORD LIMITED,27.36,0,27.36,Awaiting Coding,Hardware stores
Buckinghamshire Council,31.10.2022,17.10.2022,"Planning, Growth & Sustainability",AH&R - PGS Dir,ISAAC LORD LIMITED,58.92,0,58.92,Awaiting Coding,Hardware stores
Buckinghamshire Council,31.10.2022,17.10.2022,Deputy Chief Executive,Communities - DCE,ARGOS LTD,41,0,41,Other Personal Needs,Discount stores
Buckinghamshire Council,31.10.2022,17.10.2022,Deputy Chief Executive,Communities - DCE,AO RETAIL LIMITED,328.99,0,328.99,Other Personal Needs,Household appliance stores
Buckinghamshire Council,31.10.2022,17.10.2022,Deputy Chief Executive,Communities - DCE,ARGOS LTD,598.95,0,598.95,Other Personal Needs,Discount stores
Buckinghamshire Council,31.10.2022,17.10.2022,Deputy Chief Executive,Communities - DCE,CALOR,450.48,0,450.48,Other Personal Needs,Utilities
Buckinghamshire Council,31.10.2022,17.10.2022,Deputy Chief Executive,Communities - DCE,AO RETAIL LIMITED,368.99,0,368.99,Other Personal Needs,Household appliance stores
Buckinghamshire Council,31.10.2022,17.10.2022,Deputy Chief Executive,Communities - DCE,AO RETAIL LIMITED,886.99,0,886.99,Other Personal Needs,Household appliance stores
Buckinghamshire Council,31.10.2022,17.10.2022,Deputy Chief Executive,Communities - DCE,ARGOS LTD,248.95,0,248.95,Other Personal Needs,Discount stores
Buckinghamshire Council,31.10.2022,17.10.2022,Deputy Chief Executive,Communities - DCE,AO RETAIL LIMITED,"1,128.99",0,"1,128.99",Other Personal Needs,Household appliance stores
Buckinghamshire Council,31.10.2022,17.10.2022,Deputy Chief Executive,Communities - DCE,AO RETAIL LIMITED,368.99,0,368.99,Other Personal Needs,Household appliance stores
Buckinghamshire Council,31.10.2022,17.10.2022,Deputy Chief Executive,Communities - DCE,AO RETAIL LIMITED,"1,036.99",0,"1,036.99",Other Personal Needs,Household appliance stores
Buckinghamshire Council,31.10.2022,17.10.2022,Deputy Chief Executive,Communities - DCE,AO RETAIL LIMITED,353.99,0,353.99,Other Personal Needs,Household appliance stores
Buckinghamshire Council,31.10.2022,17.10.2022,Communities,Housing & Homelessness & Regulatory Comm,J PARKER DUTCH BULBS LTD,113.94,0,113.94,Miscellaneous (Other)  Expenses,Lawn & garden supply/nursery
Buckinghamshire Council,31.10.2022,17.10.2022,Children's Services,Education & Childrens Services - CS Dir,THE BOLD TYPE T/A OOSA,55,0,55,Professional Subscriptions re Employees,Consultants & public relation services
Buckinghamshire Council,31.10.2022,17.10.2022,Communities,Culture & Leisure - Communities Dir,AMZNMKTPLACE,27.98,0,27.98,Administrative Equipment & Tools,Miscellaneous retail
Buckinghamshire Council,31.10.2022,17.10.2022,Resources,AH&R - Res Dir,TRAINLINE,23.31,0,23.31,Staff Travelling Expenses,Passenger railways
Buckinghamshire Council,31.10.2022,17.10.2022,Communities,Partnerships - Communities,WWW.BUCKINGHAMSHIRE.GOV,46.5,9.3,55.8,Miscellaneous (Other)  Expenses,Government services
Buckinghamshire Council,31.10.2022,17.10.2022,"Planning, Growth & Sustainability",AH&R - PGS Dir,TOOLSTATION LTD,23.49,0,23.49,General Repairs & Maintenance,Timber & building supplies
Buckinghamshire Council,31.10.2022,17.10.2022,"Planning, Growth & Sustainability",AH&R - PGS Dir,SCREWFIX DIR LTD,13.99,0,13.99,General Repairs & Maintenance,Timber & building supplies
Buckinghamshire Council,31.10.2022,17.10.2022,Communities,Transport - Communities Dir,ACER STORE CPYOU BV,649.99,0,649.99,Repair and Maintenance of Equipment,Electronics shops
Buckinghamshire Council,31.10.2022,17.10.2022,Children's Services,Education & Childrens Services - CS Dir,TRAVELODGE GB0000,185.59,0,185.59,Sec 17: Financial Assistance,Travelodge
Buckinghamshire Council,31.10.2022,17.10.2022,Children's Services,Education & Childrens Services - CS Dir,AMZ*EPHESUS LTD,-7.98,0,-7.98,Sec 20/31: Financial Assistance,Miscellaneous retail
Buckinghamshire Council,31.10.2022,17.10.2022,Children's Services,Education & Childrens Services - CS Dir,HM PASSPORT OFFICE,75.5,0,75.5,Sec 20/31: Financial Assistance,Government services
Buckinghamshire Council,31.10.2022,17.10.2022,Children's Services,Education & Childrens Services - CS Dir,POUNDLAND LTD 1301,8,0,8,Other Equipment and Materials,Discount stores
Buckinghamshire Council,31.10.2022,17.10.2022,Children's Services,Education & Childrens Services - CS Dir,B&M 426 - HS AYLESBURY,1.47,0,1.47,General Provisions (Food),Misc. general merchandise
Buckinghamshire Council,31.10.2022,17.10.2022,Children's Services,Education & Childrens Services - CS Dir,TESCO STORES 2041,20.35,0,20.35,General Provisions (Food),Grocery stores
Buckinghamshire Council,31.10.2022,17.10.2022,"Planning, Growth & Sustainability",AH&R - PGS Dir,FAST KEY SERVICES LIMI,6.23,1.25,7.48,General Repairs & Maintenance,Misc business services
Buckinghamshire Council,31.10.2022,17.10.2022,Children's Services,Education & Childrens Services - CS Dir,CANVA* I03576-13819855,22.99,0,22.99,Marketing,Photographic studios
Buckinghamshire Council,31.10.2022,17.10.2022,"Planning, Growth & Sustainability",AH&R - PGS Dir,FIRST RESCUE TRAIN,55.14,0,55.14,Miscellaneous (Other)  Expenses,Misc. general merchandise
Buckinghamshire Council,31.10.2022,17.10.2022,"Planning, Growth & Sustainability",AH&R - PGS Dir,AMAZON.CO.UK,70.16,0,70.16,Stationery & Office Supplies,Direct sales companies
Buckinghamshire Council,31.10.2022,17.10.2022,Communities,Culture & Leisure - Communities Dir,SP SEAL EXTRUSIONS,20.75,4.15,24.9,"Workshop - Materials,Tools & Equipment",Computer software stores
Buckinghamshire Council,31.10.2022,17.10.2022,Communities,Culture & Leisure - Communities Dir,EBAY O*16-09226-60916,6.15,1.23,7.38,"Workshop - Materials,Tools & Equipment",Department stores
Buckinghamshire Council,31.10.2022,17.10.2022,Communities,Culture & Leisure - Communities Dir,EBAY O*16-09226-60916,18.41,0,18.41,"Workshop - Materials,Tools & Equipment",Department stores
Buckinghamshire Council,31.10.2022,17.10.2022,Children's Services,Education & Childrens Services - CS Dir,HOTEL AT BOOKING.COM,248.18,0,248.18,"Courses, Conference and Seminar Fees","Hotels, motels & resorts"
Buckinghamshire Council,31.10.2022,17.10.2022,Children's Services,Education & Childrens Services - CS Dir,TESCO STORES 6747,4,0,4,General Provisions (Food),Grocery stores
Buckinghamshire Council,31.10.2022,17.10.2022,Children's Services,Education & Childrens Services - CS Dir,SPORTSDIRECT.COM,60,0,60,Sec 17: Financial Assistance One Off,Sports & riding apparel shops
Buckinghamshire Council,31.10.2022,17.10.2022,Deputy Chief Executive,Leader - DCE,BRIGHTON SST,61.6,0,61.6,Staff Travelling Expenses,Passenger railways
Buckinghamshire Council,31.10.2022,17.10.2022,Children's Services,Education & Childrens Services - CS Dir,PARENTPAY E-COM R,12.9,0,12.9,Activities & General Recreation,Colleges & universities
Buckinghamshire Council,31.10.2022,17.10.2022,"Planning, Growth & Sustainability",Climate Change & Environment - PGS,EB *ALERC CONFERENCE 2,30,0,30,"Courses, Conference and Seminar Fees",Misc business services
Buckinghamshire Council,31.10.2022,17.10.2022,Children's Services,Education & Childrens Services - CS Dir,FAMILY LINKS,8.2,0,8.2,Activities & General Recreation,Charitable organisations
Buckinghamshire Council,31.10.2022,17.10.2022,Adults and Health,Health & Wellbeing - Adults & Health Dir,TESCO STORES 5135,79.96,0,79.96,General Provisions (Food),Grocery stores
Buckinghamshire Council,31.10.2022,17.10.2022,Children's Services,Education & Childrens Services - CS Dir,TRAINLINE,126.08,0,126.08,Sec 20/31: Supp for Contact,Passenger railways
Buckinghamshire Council,31.10.2022,17.10.2022,Children's Services,Education & Childrens Services - CS Dir,TRAINLINE.COM,30.24,0,30.24,Staff Travelling Expenses,Passenger railways
Buckinghamshire Council,31.10.2022,17.10.2022,Children's Services,Education & Childrens Services - CS Dir,AMAZON PRIME,-8.99,0,-8.99,Sec 20/31: Supp for Contact,Continuous subscriptions
Buckinghamshire Council,31.10.2022,17.10.2022,Children's Services,Education & Childrens Services - CS Dir,PARK INN MANCHESTER FO,16,0,16,Staff Travelling Expenses,Park Inns International
Buckinghamshire Council,31.10.2022,17.10.2022,Deputy Chief Executive,Communities - DCE,ARGOS LTD,598.95,0,598.95,Other Personal Needs,Discount stores
Buckinghamshire Council,31.10.2022,17.10.2022,"Planning, Growth & Sustainability",Housing & Homelessness & Regulatory PGS,PP*ABC FOOD LAW,"1,800.00",360,"1,000.00",Subscriptions to National Bodies,Legal services
Buckinghamshire Council,31.10.2022,16.10.2022,Deputy Chief Executive,Communities - DCE,ARGOS LTD,-525,0,-525,Awaiting Coding,Discount stores
Buckinghamshire Council,31.10.2022,16.10.2022,Children's Services,Education & Childrens Services - CS Dir,ROGUE RACING,5,0,5,Other Personal Needs,"Member clubs, sport, recreation & golf"
Buckinghamshire Council,31.10.2022,16.10.2022,Children's Services,Education & Childrens Services - CS Dir,ROGUE RACING,33,0,33,Other Personal Needs,"Member clubs, sport, recreation & golf"
Buckinghamshire Council,31.10.2022,16.10.2022,Communities,Culture & Leisure - Communities Dir,WWW.LSENGINEERS.CO.UK,16.87,3.38,20.25,"Workshop - Materials,Tools & Equipment",Hardware stores
Buckinghamshire Council,31.10.2022,16.10.2022,"Planning, Growth & Sustainability",AH&R - PGS Dir,AMZNMKTPLACE,12.99,0,12.99,Cleaning Materials,Miscellaneous retail
Buckinghamshire Council,31.10.2022,16.10.2022,Communities,Climate Change & Environment - Community,TWITTER ONLINE ADS,11.74,0,11.74,Waste Prevention costs,Advertising services
Buckinghamshire Council,31.10.2022,16.10.2022,Deputy Chief Executive,Communities - DCE,GO GREEK FOOD,7,0,7,General Provisions (Food),Fast food restaurants
Buckinghamshire Council,31.10.2022,16.10.2022,Deputy Chief Executive,Communities - DCE,THE GRIFFIN OLD AMERSHAM,3.25,0,3.25,General Provisions (Food),Restaurants
Buckinghamshire Council,31.10.2022,16.10.2022,Children's Services,Education & Childrens Services - CS Dir,AMZNMKTPLACE,66.35,0,66.35,Equipment (including storage),Miscellaneous retail
Buckinghamshire Council,31.10.2022,16.10.2022,Children's Services,Education & Childrens Services - CS Dir,AMAZON.CO.UK,76.33,0,76.33,Leaving Care - Higher Education Supp,Direct sales companies
Buckinghamshire Council,31.10.2022,16.10.2022,Children's Services,Education & Childrens Services - CS Dir,AMAZON.CO.UK,13.15,0,13.15,Leaving Care - Higher Education Supp,Direct sales companies
Buckinghamshire Council,31.10.2022,16.10.2022,Resources,AH&R - Res Dir,FACEBK *PNJWRKX4X2,70.3,0,70.3,Permanent Recruitment Costs,Advertising services
Buckinghamshire Council,31.10.2022,15.10.2022,Children's Services,Education & Childrens Services - CS Dir,STOKE MANDEVILLE STADIUM,4.45,0,4.45,Other Personal Needs,"Hotels, motels & resorts"
Buckinghamshire Council,31.10.2022,15.10.2022,"Planning, Growth & Sustainability",Planning & Regeneration - PGS,TEXTANYWHERE,54,0,54,Miscellaneous (Other)  Expenses,Computer software stores
Buckinghamshire Council,31.10.2022,15.10.2022,Communities,Culture & Leisure - Communities Dir,WWW.SCREWFIX.COM,22.49,4.5,26.99,"Workshop - Materials,Tools & Equipment",Timber & building supplies
Buckinghamshire Council,31.10.2022,15.10.2022,Communities,Culture & Leisure - Communities Dir,EBAY O*02-09223-38837,35.07,0,35.07,"Workshop - Materials,Tools & Equipment",Department stores
Buckinghamshire Council,31.10.2022,15.10.2022,Communities,Climate Change & Environment - Community,ROADWARRIOR,9.24,0,9.24,Computer Support Services,"Programming, data processing & system design"
Buckinghamshire Council,31.10.2022,15.10.2022,Deputy Chief Executive,Communities - DCE,ARGOS LTD,-340,0,-340,Other Personal Needs,Discount stores
Buckinghamshire Council,31.10.2022,15.10.2022,Deputy Chief Executive,Communities - DCE,RINGGO PARKING,2.15,0,2.15,Staff Travelling Expenses,Car parking & garages
Buckinghamshire Council,31.10.2022,15.10.2022,Communities,Culture & Leisure - Communities Dir,B&M 579 - SOUTH RUISLIP,6.99,0,6.99,Events Expenditure,Misc. general merchandise
Buckinghamshire Council,31.10.2022,15.10.2022,Resources,AH&R - Res Dir,PAYPAL,8.4,0,8.4,IT - Computer Network Charges,Computer network information services
Buckinghamshire Council,31.10.2022,15.10.2022,Communities,Transport - Communities Dir,George Browns Ltd Chesham,36.17,0,36.17,Seeds & Plants,Lawn & garden supply/nursery
Buckinghamshire Council,31.10.2022,15.10.2022,Children's Services,Education & Childrens Services - CS Dir,AO RETAIL LIMITED,-110,0,-110,Leaving Care - Grants for Care Leavers,Household appliance stores
Buckinghamshire Council,31.10.2022,15.10.2022,Adults and Health,Health & Wellbeing - Adults & Health Dir,AMAZON.CO.UK,51.01,0,51.01,Stationery & Office Supplies,Direct sales companies
Buckinghamshire Council,31.10.2022,15.10.2022,"Planning, Growth & Sustainability",Planning & Regeneration - PGS,AMZNMKTPLACE,56.41,0,56.41,IT Equipment Purchase,Miscellaneous retail
Buckinghamshire Council,31.10.2022,15.10.2022,Children's Services,Education & Childrens Services - CS Dir,AMZNMKTPLACE,10.98,0,10.98,Consumable Supplies,Miscellaneous retail
Buckinghamshire Council,31.10.2022,15.10.2022,Children's Services,Education & Childrens Services - CS Dir,AMZNMKTPLACE,362.98,0,362.98,Sec 17: Specialist Services,Miscellaneous retail
Buckinghamshire Council,31.10.2022,15.10.2022,Children's Services,Education & Childrens Services - CS Dir,SP LIVESPIFFY.CO.UK,38.95,0,38.95,Awaiting Coding,Misc. general merchandise
Buckinghamshire Council,31.10.2022,15.10.2022,Adults and Health,Health & Wellbeing - Adults & Health Dir,AMZNMktplace,25.5,0,25.5,Awaiting Coding,Miscellaneous retail
Buckinghamshire Council,31.10.2022,14.10.2022,Children's Services,Education & Childrens Services - CS Dir,AMZNMKTPLACE,141.76,0,141.76,Leaving Care - Grants for Care Leavers,Miscellaneous retail
Buckinghamshire Council,31.10.2022,14.10.2022,Adults and Health,Health & Wellbeing - Adults & Health Dir,AMZNMKTPLACE,17.94,0,17.94,Catering & Domestic Equipment,Miscellaneous retail
Buckinghamshire Council,31.10.2022,14.10.2022,Adults and Health,Health & Wellbeing - Adults & Health Dir,AMZNMKTPLACE,61.99,0,61.99,Catering & Domestic Equipment,Miscellaneous retail
Buckinghamshire Council,31.10.2022,14.10.2022,Adults and Health,Health & Wellbeing - Adults & Health Dir,AMZNMKTPLACE,34.96,0,34.96,Catering & Domestic Equipment,Miscellaneous retail
Buckinghamshire Council,31.10.2022,14.10.2022,Adults and Health,Health & Wellbeing - Adults & Health Dir,AMZNMKTPLACE,15.74,0,15.74,Catering & Domestic Equipment,Miscellaneous retail
Buckinghamshire Council,31.10.2022,14.10.2022,Deputy Chief Executive,AH&R- DCE Dir,OPTIMAL WORKSHOP,231.34,0,231.34,Computer Consumables,Computer software stores
Buckinghamshire Council,31.10.2022,14.10.2022,Children's Services,Education & Childrens Services - CS Dir,TESCO STORE 2124,4,0,4,"Exp of School, Club & College Activities",Grocery stores
Buckinghamshire Council,31.10.2022,14.10.2022,Children's Services,Education & Childrens Services - CS Dir,UK CARS (HIGH WYCOMBE),160,0,160,Staff Travelling Expenses,Taxicabs & limousines
Buckinghamshire Council,31.10.2022,14.10.2022,Children's Services,Education & Childrens Services - CS Dir,AO RETAIL LIMITED,268.99,0,268.99,Leaving Care - Grants for Care Leavers,Household appliance stores
Buckinghamshire Council,31.10.2022,14.10.2022,Children's Services,Education & Childrens Services - CS Dir,AMAZON PRIME,8.99,0,8.99,General Provisions (Food),Continuous subscriptions
Buckinghamshire Council,31.10.2022,14.10.2022,Deputy Chief Executive,Communities - DCE,ELEGANTGIFT,30.95,0,30.95,Other General Office Expenses,Misc. general merchandise
Buckinghamshire Council,31.10.2022,14.10.2022,Resources,AH&R - Res Dir,TIMPSON LTD,8,0,8,Miscellaneous (Other)  Expenses,Miscellaneous retail
Buckinghamshire Council,31.10.2022,14.10.2022,"Planning, Growth & Sustainability",AH&R - PGS Dir,WICKES AYLESBURY,25.25,0,25.25,General Repairs & Maintenance,Timber & building supplies
Buckinghamshire Council,31.10.2022,14.10.2022,Deputy Chief Executive,Communities - DCE,ARGOS LTD,68.95,0,68.95,Other Personal Needs,Discount stores
Buckinghamshire Council,31.10.2022,14.10.2022,Deputy Chief Executive,Communities - DCE,ARGOS LTD,358.95,0,358.95,Other Personal Needs,Discount stores
Buckinghamshire Council,31.10.2022,14.10.2022,Deputy Chief Executive,Communities - DCE,C/GAS UXBRIDGE 353,172.9,0,172.9,Other Personal Needs,Utilities
Buckinghamshire Council,31.10.2022,14.10.2022,Deputy Chief Executive,Communities - DCE,ARGOS LTD,143.95,0,143.95,Other Personal Needs,Discount stores
Buckinghamshire Council,31.10.2022,14.10.2022,Deputy Chief Executive,Communities - DCE,ARGOS LTD,-361.95,0,-361.95,Other Personal Needs,Discount stores
Buckinghamshire Council,31.10.2022,14.10.2022,Deputy Chief Executive,Communities - DCE,ARGOS LTD,-4.95,0,-4.95,Other Personal Needs,Discount stores
Buckinghamshire Council,31.10.2022,14.10.2022,Children's Services,Education & Childrens Services - CS Dir,TRAINLINE,100.9,0,100.9,Court Orders Sec 31: Miscellaneous,Passenger railways
Buckinghamshire Council,31.10.2022,14.10.2022,Children's Services,Education & Childrens Services - CS Dir,TRAINLINE,22.45,0,22.45,Court Orders Sec 31: Miscellaneous,Passenger railways
Buckinghamshire Council,31.10.2022,14.10.2022,Children's Services,Education & Childrens Services - CS Dir,ARRIVA UK BUS,94.5,0,94.5,Court Orders Sec 31: Miscellaneous,"Buses, charter & tour"
Buckinghamshire Council,31.10.2022,14.10.2022,Children's Services,Education & Childrens Services - CS Dir,A1 TAXI SERVICE,264,0,264,Court Orders Sec 31: Miscellaneous,Taxicabs & limousines
Buckinghamshire Council,31.10.2022,14.10.2022,Children's Services,Education & Childrens Services - CS Dir,TAXIPAY,100,0,100,Court Orders Sec 31: Miscellaneous,Taxicabs & limousines
Buckinghamshire Council,31.10.2022,14.10.2022,Children's Services,Education & Childrens Services - CS Dir,FLIP OUT,42,0,42,Court Orders Sec 31: Miscellaneous,Misc. recreational services
Buckinghamshire Council,31.10.2022,14.10.2022,"Planning, Growth & Sustainability",Planning & Regeneration - PGS,GIFTCARDS.CO.UK,100,0,100,Long Service Awards,
Buckinghamshire Council,31.10.2022,14.10.2022,"Planning, Growth & Sustainability",AH&R - PGS Dir,SCREWFIX DIR LTD,14.48,0,14.48,General Repairs & Maintenance,Timber & building supplies
Buckinghamshire Council,31.10.2022,14.10.2022,"Planning, Growth & Sustainability",AH&R - PGS Dir,SCREWFIX DIR LTD,-10.35,0,-10.35,General Repairs & Maintenance,Timber & building supplies
Buckinghamshire Council,31.10.2022,14.10.2022,Deputy Chief Executive,Communities - DCE,SUMUP  *CURIOSITEA,12,0,12,Subsistence,Restaurants
Buckinghamshire Council,31.10.2022,14.10.2022,Children's Services,Education & Childrens Services - CS Dir,AMZNMKTPLACE,34.54,0,34.54,Equipment (including storage),Miscellaneous retail
Buckinghamshire Council,31.10.2022,14.10.2022,Communities,Culture & Leisure - Communities Dir,HALFORDS 0529,62.45,12.49,74.94,Petrol,"Bicycle shops, sales & service"
Buckinghamshire Council,31.10.2022,14.10.2022,Communities,Culture & Leisure - Communities Dir,HALFORDS 0529,0.03,0,0.03,Petrol,"Bicycle shops, sales & service"
Buckinghamshire Council,31.10.2022,14.10.2022,Children's Services,Education & Childrens Services - CS Dir,NET LAWMAN,14.4,0,14.4,Professional Services (non curriculum) - External,Legal services
Buckinghamshire Council,31.10.2022,14.10.2022,Adults and Health,Health & Wellbeing - Adults & Health Dir,THE MYERSBRIGGS COMPANY L,450,90,540,Other Employees Expenses,Misc business services
Buckinghamshire Council,31.10.2022,14.10.2022,Deputy Chief Executive,AH&R- DCE Dir,SP RBL POPPY APPEAL,"1,402.50",0,"1,402.50",Events Expenditure,Charitable organisations
Buckinghamshire Council,31.10.2022,14.10.2022,"Planning, Growth & Sustainability",Leader - PGS,MAILCHIMP,48.98,0,48.98,Software Support,
Buckinghamshire Council,31.10.2022,14.10.2022,Children's Services,Education & Childrens Services - CS Dir,TRAINLINE.COM,113.65,0,113.65,Sec 20/31: Supp for Contact,Passenger railways
Buckinghamshire Council,31.10.2022,14.10.2022,Children's Services,Education & Childrens Services - CS Dir,TRAINLINE,57.23,0,57.23,Sec 20/31: Supp for Contact,Passenger railways
Buckinghamshire Council,31.10.2022,14.10.2022,"Planning, Growth & Sustainability",Housing & Homelessness & Regulatory PGS,ROYAL MAIL ONLINE SHOP,74.6,0,74.6,General Postage,Postal services
Buckinghamshire Council,31.10.2022,14.10.2022,Adults and Health,Health & Wellbeing - Adults & Health Dir,TAXIPAY,150,0,150,Staff Travelling Expenses,Taxicabs & limousines
Buckinghamshire Council,31.10.2022,14.10.2022,Communities,Transport - Communities Dir,EB *MODESHIFT CONVENTI,297.04,0,297.04,"Courses, Conference and Seminar Fees",Misc business services
Buckinghamshire Council,31.10.2022,14.10.2022,Adults and Health,Health & Wellbeing - Adults & Health Dir,WM MORRISONS STORE,11.55,0,11.55,Awaiting Coding,Grocery stores
Buckinghamshire Council,31.10.2022,14.10.2022,Adults and Health,Health & Wellbeing - Adults & Health Dir,ARGOS LTD,29,0,29,Cleaning Materials,Discount stores
Buckinghamshire Council,31.10.2022,14.10.2022,Adults and Health,Health & Wellbeing - Adults & Health Dir,AMZNMKTPLACE,5.48,1.1,6.58,Other General Office Expenses,Miscellaneous retail
Buckinghamshire Council,31.10.2022,13.10.2022,Communities,Climate Change & Environment - Community,FACEBK KNKE9K7CM2,191.72,0,191.72,Waste Prevention costs,Advertising services
Buckinghamshire Council,31.10.2022,13.10.2022,Adults and Health,Communities - Adults & Health,FACEBK *P5BVEJKAJ2,16,0,16,Advertising,Advertising services
Buckinghamshire Council,31.10.2022,13.10.2022,Adults and Health,Health & Wellbeing - Adults & Health Dir,ONE4ALL,250,0,250,Awaiting Coding,Department stores
Buckinghamshire Council,31.10.2022,13.10.2022,Children's Services,Education & Childrens Services - CS Dir,SCOTTISH POWER,105.42,0,105.42,Sec 17: Financial Assistance One Off,Fuel dealers
Buckinghamshire Council,31.10.2022,13.10.2022,"Planning, Growth & Sustainability",Housing & Homelessness & Regulatory PGS,BUCKINGHAMSHIRE COUNCIL,11,0,11,Burial Costs,Government services
Buckinghamshire Council,31.10.2022,13.10.2022,Children's Services,Education & Childrens Services - CS Dir,SP CHOICE WHOLESALE,31.59,0,31.59,"Exp of School, Club & College Activities",Misc. general merchandise
Buckinghamshire Council,31.10.2022,13.10.2022,Children's Services,Education & Childrens Services - CS Dir,SP YORKSHIRE TRADING,6.49,0,6.49,"Exp of School, Club & College Activities",Variety stores
Buckinghamshire Council,31.10.2022,13.10.2022,Children's Services,Education & Childrens Services - CS Dir,BAKER ROSS,37.4,7.48,44.88,"Exp of School, Club & College Activities",Art & craft shops
Buckinghamshire Council,31.10.2022,13.10.2022,Children's Services,Education & Childrens Services - CS Dir,BAKER ROSS,0.02,0,0.02,"Exp of School, Club & College Activities",Art & craft shops
Buckinghamshire Council,31.10.2022,13.10.2022,Children's Services,Education & Childrens Services - CS Dir,TAXIPAY,50,0,50,Staff Travelling Expenses,Taxicabs & limousines
Buckinghamshire Council,31.10.2022,13.10.2022,Children's Services,Education & Childrens Services - CS Dir,AMZNMKTPLACE,12.94,0,12.94,Leaving Care - Grants for Care Leavers,Miscellaneous retail
Buckinghamshire Council,31.10.2022,13.10.2022,Children's Services,Education & Childrens Services - CS Dir,ROGUE BOWLING,33.18,0,33.18,Other Personal Needs,"Member clubs, sport, recreation & golf"
Buckinghamshire Council,31.10.2022,13.10.2022,Children's Services,Education & Childrens Services - CS Dir,STOKE MANDEVILLE STADIUM,4.45,0,4.45,Other Personal Needs,"Hotels, motels & resorts"
Buckinghamshire Council,31.10.2022,13.10.2022,Resources,AH&R - Res Dir,TRAVELODGE GB0000,605.75,0,605.75,Course Fees & Post Entry Training,Travelodge
Buckinghamshire Council,31.10.2022,13.10.2022,Children's Services,Education & Childrens Services - CS Dir,AMAZON.CO.UK,34.99,0,34.99,Educational Equipment,Direct sales companies
Buckinghamshire Council,31.10.2022,13.10.2022,Communities,Culture & Leisure - Communities Dir,THE BOOKSELLER,168,0,168,Subscriptions to National Bodies,
Buckinghamshire Council,31.10.2022,13.10.2022,Resources,AH&R - Res Dir,AMZNMKTPLACE,19.98,0,19.98,IT Equipment Purchase,Miscellaneous retail
Buckinghamshire Council,31.10.2022,13.10.2022,Resources,AH&R - Res Dir,AMZNMKTPLACE,21.99,0,21.99,IT Equipment Purchase,Miscellaneous retail
Buckinghamshire Council,31.10.2022,13.10.2022,Communities,Climate Change & Environment - Community,DVLA VEHICLE TAX,150,0,150,Vehicle Insurance,Government services
Buckinghamshire Council,31.10.2022,13.10.2022,Communities,Climate Change & Environment - Community,DVLA VEHICLE TAX,150,0,150,Vehicle Insurance,Government services
Buckinghamshire Council,31.10.2022,13.10.2022,Communities,Climate Change & Environment - Community,DVLA VEHICLE TAX,150,0,150,Vehicle Insurance,Government services
Buckinghamshire Council,31.10.2022,13.10.2022,Communities,Climate Change & Environment - Community,DVLA VEHICLE TAX,150,0,150,Vehicle Insurance,Government services
Buckinghamshire Council,31.10.2022,13.10.2022,Children's Services,Education & Childrens Services - CS Dir,WWW.ANYVAN.COM,216,0,216,Sec 20/31: Financial Assistance,"Haulage, removals & delivery"
Buckinghamshire Council,31.10.2022,13.10.2022,Deputy Chief Executive,Communities - DCE,AO RETAIL LIMITED,358.99,0,358.99,Other Personal Needs,Household appliance stores
Buckinghamshire Council,31.10.2022,13.10.2022,Deputy Chief Executive,Communities - DCE,AO RETAIL LIMITED,308.99,0,308.99,Other Personal Needs,Household appliance stores
Buckinghamshire Council,31.10.2022,13.10.2022,Deputy Chief Executive,Communities - DCE,AO RETAIL LIMITED,996.99,0,996.99,Other Personal Needs,Household appliance stores
Buckinghamshire Council,31.10.2022,13.10.2022,Deputy Chief Executive,Communities - DCE,AMZNMKTPLACE,123.88,0,123.88,Other Personal Needs,Miscellaneous retail
Buckinghamshire Council,31.10.2022,13.10.2022,Deputy Chief Executive,Communities - DCE,ARGOS LTD,74,0,74,Other Personal Needs,Discount stores
Buckinghamshire Council,31.10.2022,13.10.2022,Deputy Chief Executive,Communities - DCE,AO RETAIL LIMITED,283.99,0,283.99,Other Personal Needs,Household appliance stores
Buckinghamshire Council,31.10.2022,13.10.2022,Deputy Chief Executive,Communities - DCE,AO RETAIL LIMITED,722.99,0,722.99,Other Personal Needs,Household appliance stores
Buckinghamshire Council,31.10.2022,13.10.2022,Deputy Chief Executive,Communities - DCE,ARGOS LTD,362.95,0,362.95,Other Personal Needs,Discount stores
Buckinghamshire Council,31.10.2022,13.10.2022,Deputy Chief Executive,Communities - DCE,ARGOS LTD,658.95,0,658.95,Other Personal Needs,Discount stores
Buckinghamshire Council,31.10.2022,13.10.2022,Deputy Chief Executive,Communities - DCE,ARGOS LTD,41.95,0,41.95,Other Personal Needs,Discount stores
Buckinghamshire Council,31.10.2022,13.10.2022,Deputy Chief Executive,Communities - DCE,AO RETAIL LIMITED,283.99,0,283.99,Other Personal Needs,Household appliance stores
Buckinghamshire Council,31.10.2022,13.10.2022,Communities,Housing & Homelessness & Regulatory Comm,WWW.MEADOWMANIA.CO.UK,505.9,0,505.9,Seeds & Plants,Lawn & garden supply/nursery
Buckinghamshire Council,31.10.2022,13.10.2022,Communities,Transport - Communities Dir,AMZNMKTPLACE,55.74,0,55.74,Mobile Telephones & Cellphone Charges,Miscellaneous retail
Buckinghamshire Council,31.10.2022,13.10.2022,Adults and Health,Health & Wellbeing - Adults & Health Dir,TESCO STORES 4395,29.5,0,29.5,General Provisions (Food),Grocery stores
Buckinghamshire Council,31.10.2022,13.10.2022,Communities,Housing & Homelessness & Regulatory Comm,AMZNMKTPLACE,39.15,7.83,46.98,Furniture Fittings & IT,Miscellaneous retail
Buckinghamshire Council,31.10.2022,13.10.2022,Communities,Housing & Homelessness & Regulatory Comm,AMZNMKTPLACE,0.01,0,0.01,Furniture Fittings & IT,Miscellaneous retail
Buckinghamshire Council,31.10.2022,13.10.2022,Resources,AH&R - Res Dir,EDFENERGY.COM,142.83,0,142.83,Awaiting Coding,Utilities
Buckinghamshire Council,31.10.2022,13.10.2022,Communities,Culture & Leisure - Communities Dir,TESCO STORE 3099,15.6,0,15.6,Events Expenditure,Grocery stores
Buckinghamshire Council,31.10.2022,13.10.2022,Communities,Culture & Leisure - Communities Dir,AMZNMKTPLACE,33.62,6.73,40.35,Events Expenditure,Miscellaneous retail
Buckinghamshire Council,31.10.2022,13.10.2022,Communities,Culture & Leisure - Communities Dir,AMZNMKTPLACE,21.7,4.34,26.04,Events Expenditure,Miscellaneous retail
Buckinghamshire Council,31.10.2022,13.10.2022,Communities,Culture & Leisure - Communities Dir,AMZNMKTPLACE,0.01,0,0.01,Events Expenditure,Miscellaneous retail
Buckinghamshire Council,31.10.2022,13.10.2022,Children's Services,Education & Childrens Services - CS Dir,AMZNMKTPLACE,7.98,0,7.98,Sec 20/31: Financial Assistance,Miscellaneous retail
Buckinghamshire Council,31.10.2022,13.10.2022,Children's Services,Education & Childrens Services - CS Dir,AMZNMKTPLACE,7.98,0,7.98,Sec 20/31: Financial Assistance,Miscellaneous retail
Buckinghamshire Council,31.10.2022,13.10.2022,Children's Services,Education & Childrens Services - CS Dir,THE WORKS,16,0,16,Equipment (including storage),Discount stores
Buckinghamshire Council,31.10.2022,13.10.2022,Children's Services,Education & Childrens Services - CS Dir,TAXIPAY,120,0,120,Sec 20/31: Transport,Taxicabs & limousines
Buckinghamshire Council,31.10.2022,13.10.2022,Children's Services,Education & Childrens Services - CS Dir,TRAINLINE,21.79,0,21.79,Sec 20/31: Transport,Passenger railways
Buckinghamshire Council,31.10.2022,13.10.2022,Children's Services,Education & Childrens Services - CS Dir,WWW.ANYVAN.COM,156,0,156,Sec 20/31: Transport,"Haulage, removals & delivery"
Buckinghamshire Council,31.10.2022,13.10.2022,Children's Services,Education & Childrens Services - CS Dir,TRAINLINE,53.7,0,53.7,Sec 20/31: Transport,Passenger railways
Buckinghamshire Council,31.10.2022,13.10.2022,Children's Services,Education & Childrens Services - CS Dir,TRAINLINE,16.85,0,16.85,Sec 20/31: Transport,Passenger railways
Buckinghamshire Council,31.10.2022,13.10.2022,Children's Services,Education & Childrens Services - CS Dir,TAXIPAY,60,0,60,Sec 20/31: Transport,Taxicabs & limousines
Buckinghamshire Council,31.10.2022,13.10.2022,Deputy Chief Executive,AH&R- DCE Dir,CLOUDFLARE,190.46,0,190.46,Computer Consumables,Computer software stores
Buckinghamshire Council,31.10.2022,13.10.2022,Deputy Chief Executive,Leader - DCE,FACEBK KQT8MJKQN2,840,0,840,Advertising,Advertising services
Buckinghamshire Council,31.10.2022,13.10.2022,Children's Services,Education & Childrens Services - CS Dir,AMZNMKTPLACE,20.49,0,20.49,Other Equipment and Materials,Miscellaneous retail
Buckinghamshire Council,31.10.2022,13.10.2022,Deputy Chief Executive,Communities - DCE,COSTA IVER,6.15,0,6.15,General Provisions (Food),Fast food restaurants
Buckinghamshire Council,31.10.2022,13.10.2022,Communities,Communities - Trust Accounts,WICKES SLOUGH,96,0,96,General Repairs & Maintenance,Timber & building supplies
Buckinghamshire Council,31.10.2022,13.10.2022,"Planning, Growth & Sustainability",Planning & Regeneration - PGS,TFL TRAVEL CH,5,0,5,Other Employees Expenses,Local commuter transport
Buckinghamshire Council,31.10.2022,13.10.2022,Children's Services,Education & Childrens Services - CS Dir,AMAZON.CO.UK,29.99,0,29.99,Stationery & Office Supplies,Direct sales companies
Buckinghamshire Council,31.10.2022,13.10.2022,"Planning, Growth & Sustainability",Housing & Homelessness & Regulatory PGS,AMZNMKTPLACE,30.99,0,30.99,Stationery & Office Supplies,Miscellaneous retail
Buckinghamshire Council,31.10.2022,13.10.2022,Communities,Climate Change & Environment - Community,TIMPSON LTD,12,0,12,Awaiting Coding,Miscellaneous retail
Buckinghamshire Council,31.10.2022,13.10.2022,Children's Services,Education & Childrens Services - CS Dir,AMAZON PRIME,8.99,0,8.99,Sec 20/31: Financial Assistance,Continuous subscriptions
Buckinghamshire Council,31.10.2022,13.10.2022,Adults and Health,Health & Wellbeing - Adults & Health Dir,SAINSBURYS S/MKTS,35.45,0,35.45,General Provisions (Food),Grocery stores
Buckinghamshire Council,31.10.2022,13.10.2022,Children's Services,Education & Childrens Services - CS Dir,PARK INN MANCHESTER FO,89,0,89,Staff Travelling Expenses,Park Inns International
Buckinghamshire Council,31.10.2022,13.10.2022,Deputy Chief Executive,Communities - DCE,ARGOS LTD,333.95,0,333.95,Other Personal Needs,Discount stores
Buckinghamshire Council,31.10.2022,13.10.2022,Deputy Chief Executive,Communities - DCE,ARGOS LTD,361.95,0,361.95,Other Personal Needs,Discount stores
Buckinghamshire Council,31.10.2022,13.10.2022,"Planning, Growth & Sustainability",Housing & Homelessness & Regulatory PGS,,824.81,0,0,Pollution Monitoring,Missing merchant category
Buckinghamshire Council,31.10.2022,12.10.2022,"Planning, Growth & Sustainability",Planning & Regeneration - PGS,AMZNMKTPLACE,26.99,0,26.99,Stationery & Office Supplies,Miscellaneous retail
Buckinghamshire Council,31.10.2022,12.10.2022,Adults and Health,Health & Wellbeing - Adults & Health Dir,TESCO SUBSCRIPTION,7.99,0,7.99,General Provisions (Food),Continuous subscriptions
Buckinghamshire Council,31.10.2022,12.10.2022,Children's Services,Education & Childrens Services - CS Dir,AMZNMKTPLACE,10.99,0,10.99,Consumable Supplies,Miscellaneous retail
Buckinghamshire Council,31.10.2022,12.10.2022,Adults and Health,Health & Wellbeing - Adults & Health Dir,SAINSBURY'S S/MKT,15.2,0,15.2,Awaiting Coding,Grocery stores
Buckinghamshire Council,31.10.2022,12.10.2022,Children's Services,Education & Childrens Services - CS Dir,AMZNMKTPLACE,28.99,0,28.99,Leaving Care - Grants for Care Leavers,Miscellaneous retail
Buckinghamshire Council,31.10.2022,12.10.2022,Children's Services,Education & Childrens Services - CS Dir,CARDS DIRECT AYLESBURY,1.49,0,1.49,Other Personal Needs,Stationery & office supplies
Buckinghamshire Council,31.10.2022,12.10.2022,Children's Services,Education & Childrens Services - CS Dir,THE WATERMEAD INN,235.75,0,235.75,General Provisions (Food),"Bars, taverns, pubs & nightclubs"
Buckinghamshire Council,31.10.2022,12.10.2022,Children's Services,Education & Childrens Services - CS Dir,SPORTSDIRECT 210,50,0,50,Other Personal Needs,Sporting goods shops
Buckinghamshire Council,31.10.2022,12.10.2022,Children's Services,Education & Childrens Services - CS Dir,JD SPORTS FASHION PLC,93.1,0,93.1,Activities & General Recreation,Sporting goods shops
Buckinghamshire Council,31.10.2022,12.10.2022,"Planning, Growth & Sustainability",Climate Change & Environment - PGS,TRAINLINE.COM,56.41,0,56.41,Staff Travelling Expenses,Passenger railways
Buckinghamshire Council,31.10.2022,12.10.2022,"Planning, Growth & Sustainability",Planning & Regeneration - PGS,TRAINLINE,25.81,0,25.81,Staff Travelling Expenses,Passenger railways
Buckinghamshire Council,31.10.2022,12.10.2022,Children's Services,Education & Childrens Services - CS Dir,UCL BUSINESS PLC,100,20,120,Professional Services (non curriculum) - External,Consultants & public relation services
Buckinghamshire Council,31.10.2022,12.10.2022,"Planning, Growth & Sustainability",AH&R - PGS Dir,WWW.SCREWFIX.COM,57.98,0,57.98,General Repairs & Maintenance,Timber & building supplies
Buckinghamshire Council,31.10.2022,12.10.2022,Deputy Chief Executive,Communities - DCE,AO RETAIL LIMITED,403.99,0,403.99,Other Personal Needs,Household appliance stores
Buckinghamshire Council,31.10.2022,12.10.2022,Deputy Chief Executive,Communities - DCE,AO RETAIL LIMITED,856.99,0,856.99,Other Personal Needs,Household appliance stores
Buckinghamshire Council,31.10.2022,12.10.2022,Deputy Chief Executive,Communities - DCE,AO RETAIL LIMITED,308.99,0,308.99,Other Personal Needs,Household appliance stores
Buckinghamshire Council,31.10.2022,12.10.2022,Deputy Chief Executive,Communities - DCE,CHAMPION GAS LTD,115,0,115,Other Personal Needs,Timber & building supplies
Buckinghamshire Council,31.10.2022,12.10.2022,Deputy Chief Executive,Communities - DCE,ARGOS LTD,-32,0,-32,Other Personal Needs,Discount stores
Buckinghamshire Council,31.10.2022,12.10.2022,Communities,Culture & Leisure - Communities Dir,WH SMITH,14.99,0,14.99,"Books, Records, Films & Oth Publications",Newspapers / newsagents
Buckinghamshire Council,31.10.2022,12.10.2022,Communities,Partnerships - Communities,ADOBE CREATIVE CLOUD,43.32,0,43.32,Miscellaneous (Other)  Expenses,
Buckinghamshire Council,31.10.2022,12.10.2022,Communities,Housing & Homelessness & Regulatory Comm,SCREWFIX DIR LTD,29.98,0,29.98,Protective Clothing & Uniforms,Timber & building supplies
Buckinghamshire Council,31.10.2022,12.10.2022,Communities,Housing & Homelessness & Regulatory Comm,SCREWFIX DIR LTD,14.99,0,14.99,Protective Clothing & Uniforms,Timber & building supplies
Buckinghamshire Council,31.10.2022,12.10.2022,Deputy Chief Executive,AH&R- DCE Dir,AMAZON.CO.UK,250,0,250,Other Employees Expenses,Direct sales companies
Buckinghamshire Council,31.10.2022,12.10.2022,Children's Services,Education & Childrens Services - CS Dir,AMZNMKTPLACE,21.98,0,21.98,Consumable Supplies,Miscellaneous retail
Buckinghamshire Council,31.10.2022,12.10.2022,Children's Services,Education & Childrens Services - CS Dir,TRAVELODGE GB0000,343.63,0,343.63,Sec 17: Financial Assistance,Travelodge
Buckinghamshire Council,31.10.2022,12.10.2022,Communities,Culture & Leisure - Communities Dir,SAN REMO,11.83,2.37,14.2,Subsistence,Fast food restaurants
Buckinghamshire Council,31.10.2022,12.10.2022,Communities,Transport - Communities Dir,WM MORRISONS STORE,20.06,0,20.06,Subsistence,Grocery stores
Buckinghamshire Council,31.10.2022,12.10.2022,Deputy Chief Executive,Communities - DCE,SAINSBURYS S/MKTS,11.9,0,11.9,Subsistence,Grocery stores
Buckinghamshire Council,31.10.2022,12.10.2022,Adults and Health,Health & Wellbeing - Adults & Health Dir,SP THEDYSLEXIASHOP,9.44,0,9.44,"Books, Records, Films & Oth Publications",Book stores
Buckinghamshire Council,31.10.2022,12.10.2022,"Planning, Growth & Sustainability",Housing & Homelessness & Regulatory PGS,EIF/PURPLEGUIDE,25,5,30,Subscriptions to National Bodies,Membership organisations
Buckinghamshire Council,31.10.2022,12.10.2022,"Planning, Growth & Sustainability",Planning & Regeneration - PGS,PLANNING PORTAL CONF,186,0,186,Course Fees & Post Entry Training,Computer software stores
Buckinghamshire Council,31.10.2022,12.10.2022,"Planning, Growth & Sustainability",Planning & Regeneration - PGS,RTPI,238.8,0,238.8,Course Fees & Post Entry Training,"Member clubs, sport, recreation & golf"
Buckinghamshire Council,31.10.2022,12.10.2022,"Planning, Growth & Sustainability",AH&R - PGS Dir,WWW.MONEYCLAIM.GOV,35,0,35,Court Fees,Government services
Buckinghamshire Council,31.10.2022,12.10.2022,Children's Services,Education & Childrens Services - CS Dir,MAILCHIMP,237.72,0,237.72,Service Development,
Buckinghamshire Council,31.10.2022,12.10.2022,Adults and Health,Health & Wellbeing - Adults & Health Dir,POUNDLAND LTD 1301,9,0,9,Interpreters Fees,Discount stores
Buckinghamshire Council,31.10.2022,12.10.2022,Deputy Chief Executive,AH&R- DCE Dir,NEW YORK DELI GATEHOUSE,90.72,0,90.72,"Courses, Conference and Seminar Fees",Restaurants
Buckinghamshire Council,31.10.2022,12.10.2022,Communities,Culture & Leisure - Communities Dir,SAINSBURYS S/MKTS,24.81,0,24.81,Purchase.of Refreshments and Food,Grocery stores
Buckinghamshire Council,31.10.2022,12.10.2022,Children's Services,Education & Childrens Services - CS Dir,ARGOS LTD,836.95,0,836.95,Leaving Care - Grants for Care Leavers,Discount stores
Buckinghamshire Council,31.10.2022,12.10.2022,Communities,Communities - Trust Accounts,WWW.OFCOM.ORG.UK,75,0,75,Awaiting Coding,Membership organisations
Buckinghamshire Council,31.10.2022,12.10.2022,"Planning, Growth & Sustainability",Planning & Regeneration - PGS,AMZNMKTPLACE,35.97,0,35.97,IT Equipment Purchase,Miscellaneous retail
Buckinghamshire Council,31.10.2022,12.10.2022,"Planning, Growth & Sustainability",Planning & Regeneration - PGS,AMZ*INVISION TECHNOLOG,-49.99,0,-49.99,IT Equipment Purchase,Miscellaneous retail
Buckinghamshire Council,31.10.2022,12.10.2022,Communities,Culture & Leisure - Communities Dir,AMAZON.CO.UK,7.99,0,7.99,Administrative Equipment & Tools,Direct sales companies
Buckinghamshire Council,31.10.2022,12.10.2022,Children's Services,Education & Childrens Services - CS Dir,SKYLINETAXIS ONLINE,20,0,20,Sec 20/31: Supp for Contact,Taxicabs & limousines
Buckinghamshire Council,31.10.2022,12.10.2022,Children's Services,Education & Childrens Services - CS Dir,TESCO STORES 6137,3.45,0,3.45,Consumable Supplies,Grocery stores
Buckinghamshire Council,31.10.2022,12.10.2022,Adults and Health,Health & Wellbeing - Adults & Health Dir,AMAZON PRIME,8.99,0,8.99,Activities & General Recreation,Continuous subscriptions
Buckinghamshire Council,31.10.2022,12.10.2022,Children's Services,Education & Childrens Services - CS Dir,AMZNMKTPLACE,82.79,0,82.79,Sec 20/31: Financial Assistance,Miscellaneous retail
Buckinghamshire Council,31.10.2022,12.10.2022,"Planning, Growth & Sustainability",Housing & Homelessness & Regulatory PGS,AMZNMKTPLACE,6.9,0,6.9,Administrative Equipment & Tools,Miscellaneous retail
Buckinghamshire Council,31.10.2022,12.10.2022,Adults and Health,Health & Wellbeing - Adults & Health Dir,SWAN RIDER,362.1,0,362.1,Staff Travelling Expenses,Transportation services
Buckinghamshire Council,31.10.2022,12.10.2022,Adults and Health,Health & Wellbeing - Adults & Health Dir,SWAN RIDER,45,0,45,Staff Travelling Expenses,Transportation services
Buckinghamshire Council,31.10.2022,12.10.2022,Children's Services,Education & Childrens Services - CS Dir,ADVANCED MOULDS LTD,287.99,0,287.99,Furniture,Office & commercial furniture
Buckinghamshire Council,31.10.2022,12.10.2022,Children's Services,Education & Childrens Services - CS Dir,AMZNMKTPLACE,351.68,0,351.68,Consumable Supplies,Miscellaneous retail
Buckinghamshire Council,31.10.2022,12.10.2022,Children's Services,Education & Childrens Services - CS Dir,ADVANCED MOULDS LTD,172.49,0,172.49,Furniture,Office & commercial furniture
Buckinghamshire Council,31.10.2022,12.10.2022,Children's Services,Education & Childrens Services - CS Dir,AMZNMKTPLACE,94.99,0,94.99,Consumable Supplies,Miscellaneous retail
Buckinghamshire Council,31.10.2022,12.10.2022,Children's Services,Education & Childrens Services - CS Dir,ADVANCED MOULDS LTD,"1,152.00",0,"1,152.00",Furniture,Office & commercial furniture
Buckinghamshire Council,31.10.2022,12.10.2022,Children's Services,Education & Childrens Services - CS Dir,ADVANCED MOULDS LTD,"1,152.00",0,"1,152.00",Furniture,Office & commercial furniture
Buckinghamshire Council,31.10.2022,12.10.2022,Children's Services,Education & Childrens Services - CS Dir,ADVANCED MOULDS LTD,368.4,0,368.4,Furniture,Office & commercial furniture
Buckinghamshire Council,31.10.2022,12.10.2022,Children's Services,Education & Childrens Services - CS Dir,ADVANCED MOULDS LTD,287.99,0,287.99,Furniture,Office & commercial furniture
Buckinghamshire Council,31.10.2022,12.10.2022,Communities,Housing & Homelessness & Regulatory Comm,CHRISTIAN COPYRIGHT LI,87,0,87,Subscriptions to National Bodies,Misc business services
Buckinghamshire Council,31.10.2022,12.10.2022,Deputy Chief Executive,Communities - DCE,ARGOS LTD,152.95,0,152.95,Other Personal Needs,Discount stores
Buckinghamshire Council,31.10.2022,12.10.2022,Deputy Chief Executive,Communities - DCE,ARGOS LTD,198,0,198,Other Personal Needs,Discount stores
Buckinghamshire Council,31.10.2022,12.10.2022,Deputy Chief Executive,Communities - DCE,ARGOS LTD,333.95,0,333.95,Other Personal Needs,Discount stores
Buckinghamshire Council,31.10.2022,12.10.2022,Children's Services,Education & Childrens Services - CS Dir,PARADIGM HOUSING GROUP,724.12,0,724.12,Leaving Care - Higher Education Supp,Government services
Buckinghamshire Council,31.10.2022,11.10.2022,Children's Services,Education & Childrens Services - CS Dir,AMAZON.CO.UK,25,0,25,Sec 20/31: Financial Assistance,Direct sales companies
Buckinghamshire Council,31.10.2022,11.10.2022,Adults and Health,Health & Wellbeing - Adults & Health Dir,Amazon Prime,8.99,0,8.99,Stationery & Office Supplies,Continuous subscriptions
Buckinghamshire Council,31.10.2022,11.10.2022,"Planning, Growth & Sustainability",Housing & Homelessness & Regulatory PGS,LAND REGISTRY ECOM CCC,3,0,3,Homelessness,Government services
Buckinghamshire Council,31.10.2022,11.10.2022,Children's Services,Education & Childrens Services - CS Dir,YELLOW CARS HW LTD,200,0,200,Staff Travelling Expenses,Taxicabs & limousines
Buckinghamshire Council,31.10.2022,11.10.2022,Children's Services,Education & Childrens Services - CS Dir,STOKE MANDEVILLE STADIUM,8.9,0,8.9,Activities & General Recreation,"Hotels, motels & resorts"
Buckinghamshire Council,31.10.2022,11.10.2022,Children's Services,Education & Childrens Services - CS Dir,SP DYSLEXIA BOX,956.4,0,956.4,Specialist Equipment,Computer software stores
Buckinghamshire Council,31.10.2022,11.10.2022,"Planning, Growth & Sustainability",Planning & Regeneration - PGS,WWW.LABC.UK.COM,360,0,360,Miscellaneous (Other)  Expenses,Misc business services
Buckinghamshire Council,31.10.2022,11.10.2022,Children's Services,Education & Childrens Services - CS Dir,GEN REGISTER OFFICE,28,0,28,Sec 20/31: Specialist Services,Government services
Buckinghamshire Council,31.10.2022,11.10.2022,Children's Services,Education & Childrens Services - CS Dir,SCHUDIOTV,12,0,12,Training Materials,Schools
Buckinghamshire Council,31.10.2022,11.10.2022,Adults and Health,Health & Wellbeing - Adults & Health Dir,EB *ONLINE TRAINING PR,175.5,35.1,210.6,"Courses, Conference and Seminar Fees",Misc business services
Buckinghamshire Council,31.10.2022,11.10.2022,Deputy Chief Executive,Leader - DCE,NEW YORK DELI GATEHOUSE,35.7,0,35.7,Subsistence,Restaurants
Buckinghamshire Council,31.10.2022,11.10.2022,Deputy Chief Executive,Communities - DCE,ARGOS LTD,385.95,0,385.95,Other Personal Needs,Discount stores
Buckinghamshire Council,31.10.2022,11.10.2022,Deputy Chief Executive,Communities - DCE,ARGOS LTD,268.95,0,268.95,Other Personal Needs,Discount stores
Buckinghamshire Council,31.10.2022,11.10.2022,Deputy Chief Executive,Communities - DCE,AO RETAIL LIMITED,377.99,0,377.99,Other Personal Needs,Household appliance stores
Buckinghamshire Council,31.10.2022,11.10.2022,Deputy Chief Executive,Communities - DCE,AO RETAIL LIMITED,760.99,0,760.99,Other Personal Needs,Household appliance stores
Buckinghamshire Council,31.10.2022,11.10.2022,Deputy Chief Executive,Communities - DCE,AO RETAIL LIMITED,283.99,0,283.99,Other Personal Needs,Household appliance stores
Buckinghamshire Council,31.10.2022,11.10.2022,Deputy Chief Executive,Communities - DCE,AO RETAIL LIMITED,-385,0,-385,Other Personal Needs,Household appliance stores
Buckinghamshire Council,31.10.2022,11.10.2022,Deputy Chief Executive,Communities - DCE,AO RETAIL LIMITED,-10,0,-10,Other Personal Needs,Household appliance stores
Buckinghamshire Council,31.10.2022,11.10.2022,"Planning, Growth & Sustainability",Housing & Homelessness & Regulatory PGS,LAND REGISTRY ECOM CCC,3,0,3,Homelessness,Government services
Buckinghamshire Council,31.10.2022,11.10.2022,"Planning, Growth & Sustainability",Housing & Homelessness & Regulatory PGS,LAND REGISTRY ECOM CCC,3,0,3,Homelessness,Government services
Buckinghamshire Council,31.10.2022,11.10.2022,Adults and Health,Health & Wellbeing - Adults & Health Dir,Amazon.co.uk,8.73,0,8.73,Stationery & Office Supplies,Direct sales companies
Buckinghamshire Council,31.10.2022,11.10.2022,Children's Services,Education & Childrens Services - CS Dir,HM PASSPORT OFFICE,49,0,49,Court Orders Sec 31: Miscellaneous,Government services
Buckinghamshire Council,31.10.2022,11.10.2022,Communities,Culture & Leisure - Communities Dir,EBAY O*01-09208-24167,57.42,0,57.42,"Workshop - Materials,Tools & Equipment",Department stores
Buckinghamshire Council,31.10.2022,11.10.2022,Communities,Partnerships - Communities,MILTON KEYNES PARKING,1,0,1,Miscellaneous (Other)  Expenses,Car parking & garages
Buckinghamshire Council,31.10.2022,11.10.2022,Communities,Partnerships - Communities,ZOOM.US 888-799-9666,143.88,0,143.88,Miscellaneous (Other)  Expenses,Phone services
Buckinghamshire Council,31.10.2022,11.10.2022,Adults and Health,Health & Wellbeing - Adults & Health Dir,WM MORRISONS STORE,19.17,0,19.17,Awaiting Coding,Grocery stores
Buckinghamshire Council,31.10.2022,11.10.2022,"Planning, Growth & Sustainability",AH&R - PGS Dir,AMZNMKTPLACE,20.99,0,20.99,Administrative Equipment & Tools,Miscellaneous retail
Buckinghamshire Council,31.10.2022,11.10.2022,Children's Services,Education & Childrens Services - CS Dir,TESCO GIFT CARD,100,0,100,Consumable Supplies,Grocery stores
Buckinghamshire Council,31.10.2022,11.10.2022,Children's Services,Education & Childrens Services - CS Dir,AMZNMKTPLACE,69.55,0,69.55,Consumable Supplies,Miscellaneous retail
Buckinghamshire Council,31.10.2022,11.10.2022,Children's Services,Education & Childrens Services - CS Dir,TRAVELODGE GB0000,117.02,0,117.02,Sec 17: Financial Assistance,Travelodge
Buckinghamshire Council,31.10.2022,11.10.2022,Communities,Culture & Leisure - Communities Dir,FACEBK *3KWPUFPJB2,25.47,0,25.47,Advertising,Advertising services
Buckinghamshire Council,31.10.2022,11.10.2022,Communities,Culture & Leisure - Communities Dir,AMZNMKTPLACE,21.97,0,21.97,Administrative Equipment & Tools,Miscellaneous retail
Buckinghamshire Council,31.10.2022,11.10.2022,Children's Services,Education & Childrens Services - CS Dir,FREEDOM PROGRAMME LIMITED,12,0,12,Sec 17: Financial Assistance One Off,Schools
Buckinghamshire Council,31.10.2022,11.10.2022,Children's Services,Education & Childrens Services - CS Dir,WM MORRISONS STORE,11.2,0,11.2,Recoverable Expenditure,Grocery stores
Buckinghamshire Council,31.10.2022,11.10.2022,Deputy Chief Executive,AH&R- DCE Dir,SLACK T181RTHAL,18.77,0,18.77,Computer Consumables,Computer software stores
Buckinghamshire Council,31.10.2022,11.10.2022,"Planning, Growth & Sustainability",Planning & Regeneration - PGS,WWW.BAUERMEDIA.CO.UK,896.4,0,896.4,Course Fees & Post Entry Training,Theatres and ticket agencies
Buckinghamshire Council,31.10.2022,11.10.2022,Children's Services,Education & Childrens Services - CS Dir,BUCKINGHAMSHIRE CNCL,11,0,11,Sec 20/31: Supp for Contact,Government services
Buckinghamshire Council,31.10.2022,11.10.2022,Children's Services,Education & Childrens Services - CS Dir,BUCKINGHAMSHIRE CNCL,11,0,11,Sec 20/31: Supp for Contact,Government services
Buckinghamshire Council,31.10.2022,11.10.2022,Children's Services,Education & Childrens Services - CS Dir,TRAINLINE,117.2,0,117.2,Sec 20/31: Transport,Passenger railways
Buckinghamshire Council,31.10.2022,11.10.2022,Children's Services,Education & Childrens Services - CS Dir,THE RANGE,52.31,0,52.31,Leaving Care - Grants for Care Leavers,Misc. home furnishing
Buckinghamshire Council,31.10.2022,11.10.2022,Children's Services,Education & Childrens Services - CS Dir,B&M 582 - BRITWELL,130.88,0,130.88,Leaving Care - Grants for Care Leavers,Misc. general merchandise
Buckinghamshire Council,31.10.2022,11.10.2022,Resources,AH&R - Res Dir,GMO GLOBALSIGN LIM,189.6,0,189.6,Annual Licence (IT),Computer network information services
Buckinghamshire Council,31.10.2022,11.10.2022,Children's Services,Education & Childrens Services - CS Dir,ARGOS LTD,183.95,0,183.95,Equipment (including storage),Discount stores
Buckinghamshire Council,31.10.2022,11.10.2022,Adults and Health,Health & Wellbeing - Adults & Health Dir,ASDA SUPERSTORE,6.2,0,6.2,Awaiting Coding,Grocery stores
Buckinghamshire Council,31.10.2022,11.10.2022,Children's Services,Education & Childrens Services - CS Dir,AMZNMKTPLACE,64.99,0,64.99,Leaving Care - Grants for Care Leavers,Miscellaneous retail
Buckinghamshire Council,31.10.2022,11.10.2022,Children's Services,Education & Childrens Services - CS Dir,WWW.MDX.AC.UK,"2,764.56",0,"2,764.56",Leaving Care - Higher Education Supp,Colleges & universities
Buckinghamshire Council,31.10.2022,11.10.2022,Children's Services,Education & Childrens Services - CS Dir,AO RETAIL LIMITED,597.99,0,597.99,Leaving Care - Grants for Care Leavers,Household appliance stores
Buckinghamshire Council,31.10.2022,11.10.2022,Children's Services,Education & Childrens Services - CS Dir,WWW.LEEDS.AC.UK,"2,304.37",0,"2,304.37",Leaving Care - Higher Education Supp,Colleges & universities
Buckinghamshire Council,31.10.2022,11.10.2022,Children's Services,Education & Childrens Services - CS Dir,ARGOS LTD,279.99,0,279.99,Leaving Care - Grants for Care Leavers,Discount stores
Buckinghamshire Council,31.10.2022,11.10.2022,Children's Services,Education & Childrens Services - CS Dir,ASDA SUPERSTORE,27.8,0,27.8,General Provisions (Food),Grocery stores
Buckinghamshire Council,31.10.2022,11.10.2022,Deputy Chief Executive,Communities - DCE,HOBBYCRAFT,14.5,0,14.5,Administrative Equipment & Tools,Art & craft shops
Buckinghamshire Council,31.10.2022,11.10.2022,Children's Services,Education & Childrens Services - CS Dir,HTTPS://COURTTHEATRE.CO.,70,0,70,Activities & General Recreation,Theatres and ticket agencies
Buckinghamshire Council,31.10.2022,11.10.2022,Children's Services,Education & Childrens Services - CS Dir,TRAINLINE.COM,109.07,0,109.07,Sec 20/31: Supp for Contact,Passenger railways
Buckinghamshire Council,31.10.2022,11.10.2022,Children's Services,Education & Childrens Services - CS Dir,SKYLINETAXIS ONLINE,48.2,0,48.2,Sec 20/31: Supp for Contact,Taxicabs & limousines
Buckinghamshire Council,31.10.2022,11.10.2022,Children's Services,Education & Childrens Services - CS Dir,AMZNMKTPLACE,25.75,0,25.75,Activities & General Recreation,Miscellaneous retail
Buckinghamshire Council,31.10.2022,11.10.2022,Children's Services,Education & Childrens Services - CS Dir,FREEDOM PROGRAMME LIMITED,12,0,12,Activities & General Recreation,Schools
Buckinghamshire Council,31.10.2022,11.10.2022,Children's Services,Education & Childrens Services - CS Dir,INTELLISOFTWARE LTD,52.8,0,52.8,Computer Consumables,"Computers, peripherals & software"
Buckinghamshire Council,31.10.2022,11.10.2022,Children's Services,Education & Childrens Services - CS Dir,INTELLISOFTWARE LTD,52.8,0,52.8,Computer Consumables,"Computers, peripherals & software"
Buckinghamshire Council,31.10.2022,11.10.2022,Children's Services,Education & Childrens Services - CS Dir,TRAINLINE.COM,57.23,0,57.23,Sec 20/31: Supp for Contact,Passenger railways
Buckinghamshire Council,31.10.2022,11.10.2022,Children's Services,Education & Childrens Services - CS Dir,AMZNMKTPLACE,92.34,0,92.34,Consumable Supplies,Miscellaneous retail
Buckinghamshire Council,31.10.2022,11.10.2022,Children's Services,Education & Childrens Services - CS Dir,TESCO STORES 6748,8.45,0,8.45,Consumable Supplies,Grocery stores
Buckinghamshire Council,31.10.2022,11.10.2022,Communities,Partnerships - Communities,BT PLC BUSINESS MOTO BPAY,55.95,11.19,67.14,Telephones,Phone services
Buckinghamshire Council,31.10.2022,11.10.2022,Deputy Chief Executive,Communities - DCE,ARGOS LTD,118.95,0,118.95,Other Personal Needs,Discount stores
Buckinghamshire Council,31.10.2022,11.10.2022,Deputy Chief Executive,Communities - DCE,ARGOS LTD,-408.95,0,-408.95,Other Personal Needs,Discount stores
Buckinghamshire Council,31.10.2022,10.10.2022,Children's Services,Education & Childrens Services - CS Dir,NEALES TAXIS LTD,480,0,480,Sec 20/31: Transport,Taxicabs & limousines
Buckinghamshire Council,31.10.2022,10.10.2022,Children's Services,Education & Childrens Services - CS Dir,WWW.SAFARIMK.CO.UK,75.35,0,75.35,Sec 20/31: Supp for Contact,Misc. recreational services
Buckinghamshire Council,31.10.2022,10.10.2022,Children's Services,Education & Childrens Services - CS Dir,SHIEN.CO.UK,143.79,0,143.79,Sec 20/31: Specialist Services,Miscellaneous retail
Buckinghamshire Council,31.10.2022,10.10.2022,Children's Services,Education & Childrens Services - CS Dir,NEALES TAXIS LTD,-864,0,-864,Staff Travelling Expenses,Taxicabs & limousines
Buckinghamshire Council,31.10.2022,10.10.2022,Children's Services,Education & Childrens Services - CS Dir,EMAP UK,20,0,20,Leaving Care  - Financial Assistance,Computer software stores
Buckinghamshire Council,31.10.2022,10.10.2022,Children's Services,Education & Childrens Services - CS Dir,HETLEYS UK LTD,708,0,708,Specialist Equipment,Office & commercial furniture
Buckinghamshire Council,31.10.2022,10.10.2022,Children's Services,Education & Childrens Services - CS Dir,AMZNMKTPLACE,151.61,30.33,181.94,Computer Consumables,Miscellaneous retail
Buckinghamshire Council,31.10.2022,10.10.2022,Communities,Climate Change & Environment - Community,DVLA VEHICLE TAX,47.5,0,47.5,Vehicle Insurance,Government services
Buckinghamshire Council,31.10.2022,10.10.2022,Communities,Climate Change & Environment - Community,DVLA VEHICLE TAX,159.5,0,159.5,Vehicle Insurance,Government services
Buckinghamshire Council,31.10.2022,10.10.2022,"Planning, Growth & Sustainability",AH&R - PGS Dir,SIGN WIZZARD LIMITED,60.41,0,60.41,LKD Printing CPU Catalogue,Typesetting & plate making
Buckinghamshire Council,31.10.2022,10.10.2022,"Planning, Growth & Sustainability",AH&R - PGS Dir,LOCK & KEY CENTRE,39,0,39,Awaiting Coding,Shoe repairs
Buckinghamshire Council,31.10.2022,10.10.2022,"Planning, Growth & Sustainability",AH&R - PGS Dir,AMZNMKTPLACE,22.99,0,22.99,Administrative Equipment & Tools,Miscellaneous retail
Buckinghamshire Council,31.10.2022,10.10.2022,Deputy Chief Executive,Communities - DCE,ARGOS LTD,408.95,0,408.95,Other Personal Needs,Discount stores
Buckinghamshire Council,31.10.2022,10.10.2022,Deputy Chief Executive,Communities - DCE,AO RETAIL LIMITED,273.99,0,273.99,Other Personal Needs,Household appliance stores
Buckinghamshire Council,31.10.2022,10.10.2022,Deputy Chief Executive,Communities - DCE,AO RETAIL LIMITED,638.99,0,638.99,Other Personal Needs,Household appliance stores
Buckinghamshire Council,31.10.2022,10.10.2022,Deputy Chief Executive,Communities - DCE,ARGOS LTD,344.95,0,344.95,Other Personal Needs,Discount stores
Buckinghamshire Council,31.10.2022,10.10.2022,Deputy Chief Executive,Communities - DCE,AO RETAIL LIMITED,25,0,25,Other Personal Needs,Household appliance stores
Buckinghamshire Council,31.10.2022,10.10.2022,Deputy Chief Executive,Communities - DCE,AO RETAIL LIMITED,853.99,0,853.99,Other Personal Needs,Household appliance stores
Buckinghamshire Council,31.10.2022,10.10.2022,Deputy Chief Executive,Communities - DCE,ARGOS LTD,287.95,0,287.95,Other Personal Needs,Discount stores
Buckinghamshire Council,31.10.2022,10.10.2022,Adults and Health,Health & Wellbeing - Adults & Health Dir,TESCO STORES 5135,132.26,0,132.26,Purchase.of Refreshments and Food,Grocery stores
Buckinghamshire Council,31.10.2022,10.10.2022,Communities,Housing & Homelessness & Regulatory Comm,SCREWFIX DIR LTD,80.96,0,80.96,Protective Clothing & Uniforms,Timber & building supplies
Buckinghamshire Council,31.10.2022,10.10.2022,"Planning, Growth & Sustainability",Housing & Homelessness & Regulatory PGS,WWW.SCREWFIX.COM,149.95,0,149.95,Miscellaneous (Other)  Expenses,Timber & building supplies
Buckinghamshire Council,31.10.2022,10.10.2022,"Planning, Growth & Sustainability",AH&R - PGS Dir,SCREWFIX DIR LTD,31.96,0,31.96,Other Equipment and Materials,Timber & building supplies
Buckinghamshire Council,31.10.2022,10.10.2022,Communities,Housing & Homelessness & Regulatory Comm,AMZNMKTPLACE,14.78,0,14.78,Purchase.of Refreshments and Food,Miscellaneous retail
Buckinghamshire Council,31.10.2022,10.10.2022,Communities,Housing & Homelessness & Regulatory Comm,AMZNMKTPLACE,69.96,0,69.96,Purchase.of Refreshments and Food,Miscellaneous retail
Buckinghamshire Council,31.10.2022,10.10.2022,Communities,Housing & Homelessness & Regulatory Comm,AMZNMKTPLACE,18.98,0,18.98,Purchase.of Refreshments and Food,Miscellaneous retail
Buckinghamshire Council,31.10.2022,10.10.2022,Communities,Housing & Homelessness & Regulatory Comm,AMZNMKTPLACE,15.18,0,15.18,Purchase.of Refreshments and Food,Miscellaneous retail
Buckinghamshire Council,31.10.2022,10.10.2022,Communities,Climate Change & Environment - Community,TWITTER ONLINE ADS,85.82,0,85.82,Waste Prevention costs,Advertising services
Buckinghamshire Council,31.10.2022,10.10.2022,Communities,Partnerships - Communities,MAILCHIMP,8.85,1.77,10.62,Miscellaneous (Other)  Expenses,
Buckinghamshire Council,31.10.2022,10.10.2022,Communities,Partnerships - Communities,MAILCHIMP,0.04,0,0.04,Miscellaneous (Other)  Expenses,
Buckinghamshire Council,31.10.2022,10.10.2022,Children's Services,Education & Childrens Services - CS Dir,AMAZON PRIME,8.99,0,8.99,Miscellaneous (Other)  Expenses,Continuous subscriptions
Buckinghamshire Council,31.10.2022,10.10.2022,Children's Services,Education & Childrens Services - CS Dir,AMZNMKTPLACE,73.67,0,73.67,Miscellaneous (Other)  Expenses,Miscellaneous retail
Buckinghamshire Council,31.10.2022,10.10.2022,Children's Services,Education & Childrens Services - CS Dir,HOLLYWOOD BOWL,26.01,0,26.01,Activities & General Recreation,"Member clubs, sport, recreation & golf"
Buckinghamshire Council,31.10.2022,10.10.2022,Children's Services,Education & Childrens Services - CS Dir,TRAINLINE.COM,170.49,0,170.49,Sec 20/31: Supp for Contact,Passenger railways
Buckinghamshire Council,31.10.2022,10.10.2022,Children's Services,Education & Childrens Services - CS Dir,SAFESTORE LTD ONLINE R,95.99,0,95.99,Sec 20/31: Financial Assistance,"Haulage, removals & delivery"
Buckinghamshire Council,31.10.2022,10.10.2022,Deputy Chief Executive,AH&R- DCE Dir,YELLOW CARS HW LTD,80,0,80,Staff Travelling Expenses,Taxicabs & limousines
Buckinghamshire Council,31.10.2022,10.10.2022,Children's Services,Education & Childrens Services - CS Dir,CORAMBAAF,-168,0,-168,"Courses, Conference and Seminar Fees",
Buckinghamshire Council,31.10.2022,10.10.2022,Deputy Chief Executive,AH&R- DCE Dir,THE TAXI PEOPLE,56,0,56,Staff Travelling Expenses,Taxicabs & limousines
Buckinghamshire Council,31.10.2022,10.10.2022,Children's Services,Education & Childrens Services - CS Dir,WWW.BPAASSOCIATESLTD.C,120,0,120,Sec 17: Financial Assistance,Legal services
Buckinghamshire Council,31.10.2022,10.10.2022,"Planning, Growth & Sustainability",AH&R - PGS Dir,WWW.MONEYCLAIM.GOV,"3,725.46",0,"3,725.46",Court Fees,Government services
Buckinghamshire Council,31.10.2022,10.10.2022,Children's Services,Education & Childrens Services - CS Dir,AMAZON.CO.UK,5.95,0,5.95,Other Equipment and Materials,Direct sales companies
Buckinghamshire Council,31.10.2022,10.10.2022,Children's Services,Education & Childrens Services - CS Dir,TESCO STORES 5927,4,0,4,General Provisions (Food),Grocery stores
Buckinghamshire Council,31.10.2022,10.10.2022,Deputy Chief Executive,Communities - DCE,TESCO STORES 2564,27.9,0,27.9,General Provisions (Food),Grocery stores
Buckinghamshire Council,31.10.2022,10.10.2022,Communities,Communities - Trust Accounts,WWW.PGA.INFO M/SHIPS,429,0,429,Awaiting Coding,Membership organisations
Buckinghamshire Council,31.10.2022,10.10.2022,Communities,Communities - Trust Accounts,COSTCO WHOLESALE #102,37.16,0,37.16,Stationery & Office Supplies,Buying & shopping services/clubs
Buckinghamshire Council,31.10.2022,10.10.2022,Communities,Communities - Trust Accounts,WWW.TILLROLLKING.CO.UK,455.76,0,455.76,Stationery & Office Supplies,Stationery & office supplies stores
Buckinghamshire Council,31.10.2022,10.10.2022,Communities,Communities - Trust Accounts,COSTCO WHOLESALE #102,86.51,0,86.51,Stationery & Office Supplies,Buying & shopping services/clubs
Buckinghamshire Council,31.10.2022,10.10.2022,"Planning, Growth & Sustainability",Planning & Regeneration - PGS,AMZNMKTPLACE,66.98,0,66.98,IT Equipment Purchase,Miscellaneous retail
Buckinghamshire Council,31.10.2022,10.10.2022,"Planning, Growth & Sustainability",Planning & Regeneration - PGS,TRAINLINE,26.78,0,26.78,Other Employees Expenses,Passenger railways
Buckinghamshire Council,31.10.2022,10.10.2022,Children's Services,Education & Childrens Services - CS Dir,PARENTPAY E-COM R,14,0,14,Other Personal Needs,Colleges & universities
Buckinghamshire Council,31.10.2022,10.10.2022,Children's Services,Education & Childrens Services - CS Dir,AMAZON.CO.UK,150,0,150,Stationery & Office Supplies,Direct sales companies
Buckinghamshire Council,31.10.2022,10.10.2022,Children's Services,Education & Childrens Services - CS Dir,SKYLINETAXIS ONLINE,50.6,0,50.6,Sec 20/31: Supp for Contact,Taxicabs & limousines
Buckinghamshire Council,31.10.2022,10.10.2022,Communities,Climate Change & Environment - Community,LOGOSHACK,188.16,0,188.16,Professional Services (non curriculum) - External,Professional services
Buckinghamshire Council,31.10.2022,10.10.2022,Adults and Health,Health & Wellbeing - Adults & Health Dir,TESCO STORES 5135,93.87,0,93.87,General Provisions (Food),Grocery stores
Buckinghamshire Council,31.10.2022,10.10.2022,Children's Services,Education & Childrens Services - CS Dir,TU AT SAINSBURYS,44.55,0,44.55,Sec 20/31: Financial Assistance,Grocery stores
Buckinghamshire Council,31.10.2022,10.10.2022,Children's Services,Education & Childrens Services - CS Dir,TRAINLINE.COM,-63.2,0,-63.2,Sec 20/31: Supp for Contact,Passenger railways
Buckinghamshire Council,31.10.2022,10.10.2022,Children's Services,Education & Childrens Services - CS Dir,CO-OP GROUP FOOD,9.87,0,9.87,Consumable Supplies,Grocery stores
Buckinghamshire Council,31.10.2022,10.10.2022,Resources,AH&R - Res Dir,ONE4ALL,100,0,100,Other Employees Expenses,Department stores
Buckinghamshire Council,31.10.2022,10.10.2022,Children's Services,Education & Childrens Services - CS Dir,AMZNMKTPLACE,13.99,0,13.99,Consumable Supplies,Miscellaneous retail
Buckinghamshire Council,31.10.2022,10.10.2022,Children's Services,Education & Childrens Services - CS Dir,CO OP GROUP FOOD,10.8,0,10.8,Consumable Supplies,Grocery stores
Buckinghamshire Council,31.10.2022,10.10.2022,Children's Services,Education & Childrens Services - CS Dir,NEALES TAXIS LTD,-480,0,-480,Sec 20/31: Transport,Taxicabs & limousines
Buckinghamshire Council,31.10.2022,10.10.2022,Children's Services,Education & Childrens Services - CS Dir,ACTIVE SECURITY GROUP,216,0,216,General Repairs & Maintenance,Misc business services
Buckinghamshire Council,31.10.2022,10.10.2022,Children's Services,Education & Childrens Services - CS Dir,AMAZON.CO.UK,24.72,0,24.72,Leaving Care  - Financial Assistance,Direct sales companies
Buckinghamshire Council,31.10.2022,09.10.2022,Communities,Culture & Leisure - Communities Dir,AMZNMKTPLACE,24.98,5,29.98,Events Expenditure,Miscellaneous retail
Buckinghamshire Council,31.10.2022,09.10.2022,Children's Services,Education & Childrens Services - CS Dir,AMAZON.CO.UK,25.66,0,25.66,"Books, Records, Films & Oth Publications",Direct sales companies
Buckinghamshire Council,31.10.2022,09.10.2022,Children's Services,Education & Childrens Services - CS Dir,AMZNMKTPLACE,59.99,0,59.99,Printing & Stationery,Miscellaneous retail
Buckinghamshire Council,31.10.2022,09.10.2022,Children's Services,Education & Childrens Services - CS Dir,AMZNMKTPLACE,13.23,0,13.23,Leaving Care - Grants for Care Leavers,Miscellaneous retail
Buckinghamshire Council,31.10.2022,09.10.2022,Children's Services,Education & Childrens Services - CS Dir,AMZNMKTPLACE,4.86,0,4.86,Leaving Care - Grants for Care Leavers,Miscellaneous retail
Buckinghamshire Council,31.10.2022,09.10.2022,Communities,Culture & Leisure - Communities Dir,AMZNMKTPLACE,8.99,0,8.99,Administrative Equipment & Tools,Miscellaneous retail
Buckinghamshire Council,31.10.2022,08.10.2022,"Planning, Growth & Sustainability",AH&R - PGS Dir,AMAZON.CO.UK,10.49,0,10.49,Cleaning Materials,Direct sales companies
Buckinghamshire Council,31.10.2022,07.10.2022,Children's Services,Education & Childrens Services - CS Dir,HOTEL AT BOOKING.COM,115,0,115,Staff Travelling Expenses,"Hotels, motels & resorts"
Buckinghamshire Council,31.10.2022,07.10.2022,Children's Services,Education & Childrens Services - CS Dir,NEALES TAXIS LTD,900,180,"1,080.00",Sec 17: Transport,Taxicabs & limousines
Buckinghamshire Council,31.10.2022,07.10.2022,Children's Services,Education & Childrens Services - CS Dir,UK CARS (HIGH WYCOMBE),200,0,200,Sec 17: Transport,Taxicabs & limousines
Buckinghamshire Council,31.10.2022,07.10.2022,Children's Services,Education & Childrens Services - CS Dir,ABC TAXIS,50,0,50,Staff Travelling Expenses,Taxicabs & limousines
Buckinghamshire Council,31.10.2022,07.10.2022,Children's Services,Education & Childrens Services - CS Dir,ABC TAXIS,50,0,50,Staff Travelling Expenses,Taxicabs & limousines
Buckinghamshire Council,31.10.2022,07.10.2022,Resources,AH&R - Res Dir,C2E831600249M UKVI,"3,199.00",0,"3,199.00",Professional Services (non curriculum) - External,Government services
Buckinghamshire Council,31.10.2022,07.10.2022,Resources,AH&R - Res Dir,SAFETYSUPPL,3.71,0,3.71,Printing & Stationery,Department stores
Buckinghamshire Council,31.10.2022,07.10.2022,Children's Services,Education & Childrens Services - CS Dir,TRAINLINE,91.9,0,91.9,Sec 20/31: Transport,Passenger railways
Buckinghamshire Council,31.10.2022,07.10.2022,Communities,Climate Change & Environment - Community,OLIVER LANDPOWER,67.82,0,67.82,General Repairs & Maintenance,Misc Industrial supplies
Buckinghamshire Council,31.10.2022,07.10.2022,"Planning, Growth & Sustainability",AH&R - PGS Dir,GRANT AND STONE,7.28,0,7.28,Other Equipment and Materials,Hardware stores
Buckinghamshire Council,31.10.2022,07.10.2022,Deputy Chief Executive,Communities - DCE,AO RETAIL LIMITED,-10,0,-10,Other Personal Needs,Household appliance stores
Buckinghamshire Council,31.10.2022,07.10.2022,Adults and Health,Health & Wellbeing - Adults & Health Dir,AMZNMKTPLACE,44.67,0,44.67,Catering & Domestic Equipment,Miscellaneous retail
Buckinghamshire Council,31.10.2022,07.10.2022,Children's Services,Education & Childrens Services - CS Dir,TAXIPAY,85,0,85,Court Orders Sec 31: Miscellaneous,Taxicabs & limousines
Buckinghamshire Council,31.10.2022,07.10.2022,Children's Services,Education & Childrens Services - CS Dir,TAXIPAY,85,0,85,Court Orders Sec 31: Miscellaneous,Taxicabs & limousines
Buckinghamshire Council,31.10.2022,07.10.2022,Communities,Partnerships - Communities,WWW.ENGLANDRUGBY.COM,318.3,0,318.3,Miscellaneous (Other)  Expenses,Professional services
Buckinghamshire Council,31.10.2022,07.10.2022,Resources,AH&R - Res Dir,ABRATAX - MTD,10,2,12,Computer Consumables,Computer software stores
Buckinghamshire Council,31.10.2022,07.10.2022,Children's Services,Education & Childrens Services - CS Dir,TRAVELODGE GB0000,341.59,0,341.59,Sec 17: Financial Assistance,Travelodge
Buckinghamshire Council,31.10.2022,07.10.2022,Children's Services,Education & Childrens Services - CS Dir,REEF LONDON LIMITED,2,0,2,Staff Travelling Expenses,Car parking & garages
Buckinghamshire Council,31.10.2022,07.10.2022,Children's Services,Education & Childrens Services - CS Dir,HM PASSPORT OFFICE,75.5,0,75.5,Sec 20/31: Financial Assistance,Government services
Buckinghamshire Council,31.10.2022,07.10.2022,Deputy Chief Executive,AH&R- DCE Dir,NEALES TAXIS LTD,7,0,7,Staff Travelling Expenses,Taxicabs & limousines
Buckinghamshire Council,31.10.2022,07.10.2022,Children's Services,Education & Childrens Services - CS Dir,SUMUP  *ZAHID MAHMOOD,160,0,160,Support for Foster Carers,Taxicabs & limousines
Buckinghamshire Council,31.10.2022,07.10.2022,Children's Services,Education & Childrens Services - CS Dir,BREDBURY HALL HOTEL FOH,10,0,10,Sec 17: Financial Assistance,"Hotels, motels & resorts"
Buckinghamshire Council,31.10.2022,07.10.2022,Children's Services,Education & Childrens Services - CS Dir,TRAVELODGE GB0000,292.65,0,292.65,Sec 17: Financial Assistance,Travelodge
Buckinghamshire Council,31.10.2022,07.10.2022,Deputy Chief Executive,AH&R- DCE Dir,AMZNMKTPLACE,584.29,0,584.29,General Allowances,Miscellaneous retail
Buckinghamshire Council,31.10.2022,07.10.2022,Deputy Chief Executive,AH&R- DCE Dir,AMZNMKTPLACE,471.02,0,471.02,General Allowances,Miscellaneous retail
Buckinghamshire Council,31.10.2022,07.10.2022,Children's Services,Education & Childrens Services - CS Dir,AMZNMKTPLACE,7.09,0,7.09,Leaving Care - Grants for Care Leavers,Miscellaneous retail
Buckinghamshire Council,31.10.2022,07.10.2022,Children's Services,Education & Childrens Services - CS Dir,AMZNMKTPLACE,15.99,0,15.99,Leaving Care - Grants for Care Leavers,Miscellaneous retail
Buckinghamshire Council,31.10.2022,07.10.2022,Adults and Health,Health & Wellbeing - Adults & Health Dir,AMZNMKTPLACE,51.29,0,51.29,Cleaning & Domestic Equipment,Miscellaneous retail
Buckinghamshire Council,31.10.2022,07.10.2022,"Planning, Growth & Sustainability",Planning & Regeneration - PGS,AMAZON.CO.UK,12.49,0,12.49,Stationery & Office Supplies,Direct sales companies
Buckinghamshire Council,31.10.2022,07.10.2022,"Planning, Growth & Sustainability",Planning & Regeneration - PGS,WH SMITH,63.43,0,63.43,Stationery & Office Supplies,Newspapers / newsagents
Buckinghamshire Council,31.10.2022,07.10.2022,"Planning, Growth & Sustainability",Planning & Regeneration - PGS,AMZNMKTPLACE,38.29,0,38.29,Other Employees Expenses,Miscellaneous retail
Buckinghamshire Council,31.10.2022,07.10.2022,Children's Services,Education & Childrens Services - CS Dir,WWW.THEPATCHMK.CO.UK,13.75,0,13.75,Activities & General Recreation,Tourist attractions and exhibitions
Buckinghamshire Council,31.10.2022,07.10.2022,Children's Services,Education & Childrens Services - CS Dir,PUREGYM LIMITED,6.99,0,6.99,Activities & General Recreation,"Member clubs, sport, recreation & golf"
Buckinghamshire Council,31.10.2022,07.10.2022,Children's Services,Education & Childrens Services - CS Dir,PUREGYM LIMITED,18.99,0,18.99,Activities & General Recreation,"Member clubs, sport, recreation & golf"
Buckinghamshire Council,31.10.2022,07.10.2022,Children's Services,Education & Childrens Services - CS Dir,HTTPS://COURTTHEATRE.CO.,26,0,26,Activities & General Recreation,Theatres and ticket agencies
Buckinghamshire Council,31.10.2022,07.10.2022,Children's Services,Education & Childrens Services - CS Dir,ATGTICKETS.COM,120.8,0,120.8,Activities & General Recreation,Theatres and ticket agencies
Buckinghamshire Council,31.10.2022,07.10.2022,Children's Services,Education & Childrens Services - CS Dir,AMAZON.CO.UK,150,0,150,Other Employees Expenses,Direct sales companies
Buckinghamshire Council,31.10.2022,07.10.2022,Children's Services,Education & Childrens Services - CS Dir,TRAINLINE.COM,122.21,0,122.21,Sec 20/31: Supp for Contact,Passenger railways
Buckinghamshire Council,31.10.2022,07.10.2022,Children's Services,Education & Childrens Services - CS Dir,TRAINLINE,57.23,0,57.23,Sec 20/31: Supp for Contact,Passenger railways
Buckinghamshire Council,31.10.2022,07.10.2022,Children's Services,Education & Childrens Services - CS Dir,TRAINLINE.COM,57.23,0,57.23,Sec 20/31: Supp for Contact,Passenger railways
Buckinghamshire Council,31.10.2022,07.10.2022,Children's Services,Education & Childrens Services - CS Dir,BUCKINGHAM HOTELS,445.97,0,445.97,Sec 20/31: Accomodation,"Hotels, motels & resorts"
Buckinghamshire Council,31.10.2022,07.10.2022,Adults and Health,Health & Wellbeing - Adults & Health Dir,TAXIPAY,150,0,150,Staff Travelling Expenses,Taxicabs & limousines
Buckinghamshire Council,31.10.2022,07.10.2022,Children's Services,Education & Childrens Services - CS Dir,FREEDOM PROGRAMME LIMITED,12,0,12,Sec 17: Financial Assistance One Off,Schools
Buckinghamshire Council,31.10.2022,07.10.2022,Children's Services,Education & Childrens Services - CS Dir,AMZNMKTPLACE,5.99,0,5.99,Other Equipment and Materials,Miscellaneous retail
Buckinghamshire Council,31.10.2022,06.10.2022,Communities,Partnerships - Communities,WWW.ENGLANDRUGBY.COM,-318.3,0,-318.3,Miscellaneous (Other)  Expenses,Professional services
Buckinghamshire Council,31.10.2022,06.10.2022,Deputy Chief Executive,Communities - DCE,ARGOS LTD,337.95,0,337.95,Other Personal Needs,Discount stores
Buckinghamshire Council,31.10.2022,06.10.2022,Deputy Chief Executive,Communities - DCE,ARGOS LTD,246.95,0,246.95,Other Personal Needs,Discount stores
Buckinghamshire Council,31.10.2022,06.10.2022,Deputy Chief Executive,Communities - DCE,ARGOS LTD,32,0,32,Other Personal Needs,Discount stores
Buckinghamshire Council,31.10.2022,06.10.2022,Deputy Chief Executive,Communities - DCE,ARGOS LTD,412.95,0,412.95,Other Personal Needs,Discount stores
Buckinghamshire Council,31.10.2022,06.10.2022,Communities,Climate Change & Environment - Community,CROWNE PLAZA HOTELS,-20,0,-20,"Courses, Conference and Seminar Fees",Crowne Plaza Hotels
Buckinghamshire Council,31.10.2022,06.10.2022,Communities,Culture & Leisure - Communities Dir,AMZNMKTPLACE,46.65,9.33,55.98,"Workshop - Materials,Tools & Equipment",Miscellaneous retail
Buckinghamshire Council,31.10.2022,06.10.2022,Communities,Culture & Leisure - Communities Dir,CANVA* I03565-0783694,91.25,18.25,109.5,Software Rental (Annual),Photographic studios
Buckinghamshire Council,31.10.2022,06.10.2022,Communities,Culture & Leisure - Communities Dir,CANVA* I03565-0783694,0.02,0,0.02,Software Rental (Annual),Photographic studios
Buckinghamshire Council,31.10.2022,06.10.2022,Communities,Climate Change & Environment - Community,AMZNMKTPLACE,16.98,0,16.98,Stationery & Office Supplies,Miscellaneous retail
Buckinghamshire Council,31.10.2022,06.10.2022,Adults and Health,Health & Wellbeing - Adults & Health Dir,JOHN LEWIS,200,0,200,Awaiting Coding,Department stores
Buckinghamshire Council,31.10.2022,06.10.2022,Children's Services,Education & Childrens Services - CS Dir,HOTEL AT BOOKING.COM,60,0,60,Other Employees Expenses,"Hotels, motels & resorts"
Buckinghamshire Council,31.10.2022,06.10.2022,"Planning, Growth & Sustainability",Housing & Homelessness & Regulatory PGS,WH SMITH,15.2,0,15.2,General Postage,Newspapers / newsagents
Buckinghamshire Council,31.10.2022,06.10.2022,"Planning, Growth & Sustainability",Housing & Homelessness & Regulatory PGS,TESCO STORES 2038,50,0,50,General Allowances,Grocery stores
Buckinghamshire Council,31.10.2022,06.10.2022,Children's Services,Education & Childrens Services - CS Dir,MENTIMETER PRO,144.24,0,144.24,Computer Software Licences & Purchase,Computer software stores
Buckinghamshire Council,31.10.2022,06.10.2022,Children's Services,Education & Childrens Services - CS Dir,TRAVELODGE GB0000,177.45,0,177.45,Other Employees Expenses,Travelodge
Buckinghamshire Council,31.10.2022,06.10.2022,Children's Services,Education & Childrens Services - CS Dir,STOKE MANDEVILLE STADIUM,8.9,0,8.9,"Courses, Conference and Seminar Fees","Hotels, motels & resorts"
Buckinghamshire Council,31.10.2022,06.10.2022,Deputy Chief Executive,Leader - DCE,MILTON KEYNES PARKING,10,0,10,Staff Travelling Expenses,Car parking & garages
Buckinghamshire Council,31.10.2022,06.10.2022,Children's Services,Education & Childrens Services - CS Dir,A1 TAXI SERVICE,264,0,264,Sec 20/31: Transport,Taxicabs & limousines
Buckinghamshire Council,31.10.2022,06.10.2022,Deputy Chief Executive,Leader - DCE,EB *ONLINE TRAINING UN,156.6,0,156.6,Other Training Expenses,Misc business services
Buckinghamshire Council,31.10.2022,06.10.2022,Deputy Chief Executive,Communities - DCE,AO RETAIL LIMITED,534.99,0,534.99,Other Personal Needs,Household appliance stores
Buckinghamshire Council,31.10.2022,06.10.2022,Deputy Chief Executive,Communities - DCE,AO RETAIL LIMITED,473.99,0,473.99,Other Personal Needs,Household appliance stores
Buckinghamshire Council,31.10.2022,06.10.2022,Deputy Chief Executive,Communities - DCE,AO RETAIL LIMITED,671.99,0,671.99,Other Personal Needs,Household appliance stores
Buckinghamshire Council,31.10.2022,06.10.2022,Children's Services,Education & Childrens Services - CS Dir,TAXIPAY,100,0,100,Court Orders Sec 31: Miscellaneous,Taxicabs & limousines
Buckinghamshire Council,31.10.2022,06.10.2022,Communities,Partnerships - Communities,WWW.ENGLANDRUGBY.COM,318.3,0,318.3,Miscellaneous (Other)  Expenses,Professional services
Buckinghamshire Council,31.10.2022,06.10.2022,"Planning, Growth & Sustainability",AH&R - PGS Dir,SAMBA SPORTS,32.36,0,32.36,Security & Safety Supplies & Equipment,Sporting goods shops
Buckinghamshire Council,31.10.2022,06.10.2022,Children's Services,Education & Childrens Services - CS Dir,TU AT SAINSBURYS,27.95,0,27.95,YOS - Direct Work,Grocery stores
Buckinghamshire Council,31.10.2022,06.10.2022,Children's Services,Education & Childrens Services - CS Dir,PARENTPAY E-COM R,8,0,8,YOS - Direct Work,Colleges & universities
Buckinghamshire Council,31.10.2022,06.10.2022,Resources,AH&R - Res Dir,POSTURITE LTD,189.96,0,189.96,Other Employees Expenses,Misc. home furnishing
Buckinghamshire Council,31.10.2022,06.10.2022,Resources,AH&R - Res Dir,BACK CARE SOLUTIONS,174,0,174,Other Employees Expenses,Misc. general merchandise
Buckinghamshire Council,31.10.2022,06.10.2022,Resources,AH&R - Res Dir,THRIIVER LIMITED,"1,309.20",0,"1,309.20",Other Employees Expenses,"Computers, peripherals & software"
Buckinghamshire Council,31.10.2022,06.10.2022,Children's Services,Education & Childrens Services - CS Dir,TRAINLINE,69.91,0,69.91,Sec 17: Financial Assistance,Passenger railways
Buckinghamshire Council,31.10.2022,06.10.2022,Children's Services,Education & Childrens Services - CS Dir,TRAVELODGE GB0000,71.37,0,71.37,Sec 17: Financial Assistance,Travelodge
Buckinghamshire Council,31.10.2022,06.10.2022,Communities,Culture & Leisure - Communities Dir,NEXT RETAIL LTD,150,0,150,Awaiting Coding,Family clothing shops
Buckinghamshire Council,31.10.2022,06.10.2022,Deputy Chief Executive,Communities - DCE,RINGGO PARKING,2.65,0,2.65,Staff Travelling Expenses,Car parking & garages
Buckinghamshire Council,31.10.2022,06.10.2022,Adults and Health,Health & Wellbeing - Adults & Health Dir,MILK AND MORE (RECUR,13.79,0,13.79,General Provisions (Food),Dairy produce stores
Buckinghamshire Council,31.10.2022,06.10.2022,Communities,Culture & Leisure - Communities Dir,JOJO MAMAN BEBE,52,0,52,Events Expenditure,Children/infants shops
Buckinghamshire Council,31.10.2022,06.10.2022,Communities,Culture & Leisure - Communities Dir,TIMBERSTORELTD.CO.UK/,95.2,19.04,114.24,"Workshop - Materials,Tools & Equipment",Timber & building supplies
Buckinghamshire Council,31.10.2022,06.10.2022,Communities,Culture & Leisure - Communities Dir,TIMBERSTORELTD.CO.UK/,0.02,0,0.02,"Workshop - Materials,Tools & Equipment",Timber & building supplies
Buckinghamshire Council,31.10.2022,06.10.2022,Children's Services,Education & Childrens Services - CS Dir,AMZNMKTPLACE,21.24,0,21.24,Activities & General Recreation,Miscellaneous retail
Buckinghamshire Council,31.10.2022,06.10.2022,Children's Services,Education & Childrens Services - CS Dir,AMZNMKTPLACE,33.98,0,33.98,Cleaning & Domestic Equipment,Miscellaneous retail
Buckinghamshire Council,31.10.2022,06.10.2022,Children's Services,Education & Childrens Services - CS Dir,POUNDLAND LTD 1301,3,0,3,Equipment (including storage),Discount stores
Buckinghamshire Council,31.10.2022,06.10.2022,Deputy Chief Executive,AH&R- DCE Dir,THE TAXI PEOPLE,28,0,28,Staff Travelling Expenses,Taxicabs & limousines
Buckinghamshire Council,31.10.2022,06.10.2022,Deputy Chief Executive,AH&R- DCE Dir,THE TAXI PEOPLE,28,0,28,Staff Travelling Expenses,Taxicabs & limousines
Buckinghamshire Council,31.10.2022,06.10.2022,Deputy Chief Executive,AH&R- DCE Dir,THE TAXI PEOPLE,28,0,28,Staff Travelling Expenses,Taxicabs & limousines
Buckinghamshire Council,31.10.2022,06.10.2022,Resources,AH&R - Res Dir,AWS EMEA,846.01,0,846.01,Server Hosting,Misc business services
Buckinghamshire Council,31.10.2022,06.10.2022,Children's Services,Education & Childrens Services - CS Dir,CADBURY GIFTS DIRECT,26.95,0,26.95,Activities & General Recreation,Sweets & confectionary
Buckinghamshire Council,31.10.2022,06.10.2022,Children's Services,Education & Childrens Services - CS Dir,TRAVELODGE GB0000,94.58,0,94.58,Sec 17: Financial Assistance,Travelodge
Buckinghamshire Council,31.10.2022,06.10.2022,Children's Services,Education & Childrens Services - CS Dir,HOTEL AT BOOKING.COM,69,0,69,Sec 17: Financial Assistance,"Hotels, motels & resorts"
Buckinghamshire Council,31.10.2022,06.10.2022,Communities,Transport - Communities Dir,MARKS&SPENCER PLC,62.1,0,62.1,Protective Clothing & Uniforms,Grocery stores
Buckinghamshire Council,31.10.2022,06.10.2022,Adults and Health,Communities - Adults & Health,WWW.BISLEYDIRECT.CO.UK,36,0,36,General Repairs & Maintenance,Furniture & home furnishing
Buckinghamshire Council,31.10.2022,06.10.2022,"Planning, Growth & Sustainability",AH&R - PGS Dir,THOMSON REUTERS UK LTD,180.4,0,180.4,Professional Services (non curriculum) - External,Professional services
Buckinghamshire Council,31.10.2022,06.10.2022,"Planning, Growth & Sustainability",AH&R - PGS Dir,FAST KEY SERVICES LIMI,76.04,0,76.04,Awaiting Coding,Misc business services
Buckinghamshire Council,31.10.2022,06.10.2022,"Planning, Growth & Sustainability",AH&R - PGS Dir,THOMSON REUTERS UK LTD,100.8,0,100.8,Professional Services (non curriculum) - External,Professional services
Buckinghamshire Council,31.10.2022,06.10.2022,Children's Services,Education & Childrens Services - CS Dir,FHDC,992.88,0,992.88,Leaving Care  - Financial Assistance,Government services
Buckinghamshire Council,31.10.2022,06.10.2022,Children's Services,Education & Childrens Services - CS Dir,AMZNMKTPLACE,13.49,0,13.49,Leaving Care - Grants for Care Leavers,Miscellaneous retail
Buckinghamshire Council,31.10.2022,06.10.2022,Children's Services,Education & Childrens Services - CS Dir,AMZNMKTPLACE,7.17,0,7.17,Leaving Care - Grants for Care Leavers,Miscellaneous retail
Buckinghamshire Council,31.10.2022,06.10.2022,Children's Services,Education & Childrens Services - CS Dir,WEST HERTS COLLEGE,25,0,25,Leaving Care  - Financial Assistance,Colleges & universities
Buckinghamshire Council,31.10.2022,06.10.2022,"Planning, Growth & Sustainability",AH&R - PGS Dir,QUADIENT UK LTD,"1,000.00",0,"1,000.00",General Postage,Stationery & office supplies
Buckinghamshire Council,31.10.2022,06.10.2022,Children's Services,Education & Childrens Services - CS Dir,CORAMBAAF,64.8,0,64.8,"Courses, Conference and Seminar Fees",
Buckinghamshire Council,31.10.2022,06.10.2022,Resources,AH&R - Res Dir,WAITROSE,100,0,100,Miscellaneous (Other)  Expenses,Grocery stores
Buckinghamshire Council,31.10.2022,06.10.2022,Children's Services,Education & Childrens Services - CS Dir,ARGOS LTD,209.99,0,209.99,YOS - Direct Work,Discount stores
Buckinghamshire Council,31.10.2022,06.10.2022,Adults and Health,Health & Wellbeing - Adults & Health Dir,HOMEDICS UK,49.95,9.99,59.94,Medical Supplies & Services inc Vet'nary,Electronics shops
Buckinghamshire Council,31.10.2022,06.10.2022,Adults and Health,Health & Wellbeing - Adults & Health Dir,HOMEDICS UK,0.02,0,0.02,Medical Supplies & Services inc Vet'nary,Electronics shops
Buckinghamshire Council,31.10.2022,06.10.2022,Adults and Health,Health & Wellbeing - Adults & Health Dir,WILKO RETAIL LIMITED,12.3,2.46,14.75,Stationery & Office Supplies,Misc. general merchandise
Buckinghamshire Council,31.10.2022,06.10.2022,Children's Services,Education & Childrens Services - CS Dir,BUCKINGHAMSHIRE CNCL,11,0,11,Sec 20/31: Specialist Services,Government services
Buckinghamshire Council,31.10.2022,06.10.2022,Children's Services,Education & Childrens Services - CS Dir,BUCKINGHAMSHIRE CNCL,11,0,11,Sec 20/31: Specialist Services,Government services
Buckinghamshire Council,31.10.2022,06.10.2022,Communities,Climate Change & Environment - Community,HILTON HOTELS,77.7,0,77.7,"Courses, Conference and Seminar Fees",Hilton Hotels
Buckinghamshire Council,31.10.2022,06.10.2022,Communities,Climate Change & Environment - Community,BIRMINGHAM METROPOLE,30,0,30,"Courses, Conference and Seminar Fees","Hotels, motels & resorts"
Buckinghamshire Council,31.10.2022,06.10.2022,Children's Services,Education & Childrens Services - CS Dir,AMZNMKTPLACE,159.98,0,159.98,Activities & General Recreation,Miscellaneous retail
Buckinghamshire Council,31.10.2022,06.10.2022,Children's Services,Education & Childrens Services - CS Dir,AMZNMKTPLACE,11.99,0,11.99,Activities & General Recreation,Miscellaneous retail
Buckinghamshire Council,31.10.2022,06.10.2022,Adults and Health,Health & Wellbeing - Adults & Health Dir,HOBBYCRAFT,6.6,0,6.6,General Provisions (Food),Art & craft shops
Buckinghamshire Council,31.10.2022,06.10.2022,Adults and Health,Health & Wellbeing - Adults & Health Dir,TESCO STORES 2041,3.1,0,3.1,General Provisions (Food),Grocery stores
Buckinghamshire Council,31.10.2022,06.10.2022,Adults and Health,Health & Wellbeing - Adults & Health Dir,ICELAND FOODS LTD 1748,31.5,0,31.5,General Provisions (Food),Grocery stores
Buckinghamshire Council,31.10.2022,06.10.2022,Resources,AH&R - Res Dir,BUCKINGHAM HOTELS,"2,332.08",0,"2,332.08","Courses, Conference and Seminar Fees","Hotels, motels & resorts"
Buckinghamshire Council,31.10.2022,06.10.2022,Resources,AH&R - Res Dir,BUCKINGHAM HOTELS,"1,200.00",0,"1,200.00","Courses, Conference and Seminar Fees","Hotels, motels & resorts"
Buckinghamshire Council,31.10.2022,05.10.2022,Children's Services,Education & Childrens Services - CS Dir,HOTEL ON BOOKING.COM,180,0,180,"Courses, Conference and Seminar Fees","Hotels, motels & resorts"
Buckinghamshire Council,31.10.2022,05.10.2022,"Planning, Growth & Sustainability",AH&R - PGS Dir,AMZNMKTPLACE,10.99,0,10.99,General Repairs & Maintenance,Miscellaneous retail
Buckinghamshire Council,31.10.2022,05.10.2022,Deputy Chief Executive,Leader - DCE,AMAZON.CO.UK,9.48,1.9,11.38,Special Events,Direct sales companies
Buckinghamshire Council,31.10.2022,05.10.2022,Children's Services,Education & Childrens Services - CS Dir,AMZNMKTPLACE,21.98,0,21.98,Miscellaneous (Other)  Expenses,Miscellaneous retail
Buckinghamshire Council,31.10.2022,05.10.2022,Children's Services,Education & Childrens Services - CS Dir,AMZNMKTPLACE,14.04,0,14.04,"Books, Records, Films & Oth Publications",Miscellaneous retail
Buckinghamshire Council,31.10.2022,05.10.2022,Deputy Chief Executive,AH&R- DCE Dir,THE INST OF INT AUDITO,418.01,0,418.01,Course Fees & Post Entry Training,Charitable organisations
Buckinghamshire Council,31.10.2022,05.10.2022,Children's Services,Education & Childrens Services - CS Dir,WWW.SAFARIMK.CO.UK,18.4,0,18.4,Sec 20/31: Supp for Contact,Misc. recreational services
Buckinghamshire Council,31.10.2022,05.10.2022,"Planning, Growth & Sustainability",Housing & Homelessness & Regulatory PGS,CHARTERED INSTITUTE OF EN,50,0,50,"Courses, Conference and Seminar Fees",Charitable organisations
Buckinghamshire Council,31.10.2022,05.10.2022,Children's Services,Education & Childrens Services - CS Dir,AMZNMKTPLACE,24.99,0,24.99,Project Funding,Miscellaneous retail
Buckinghamshire Council,31.10.2022,05.10.2022,Children's Services,Education & Childrens Services - CS Dir,ASDA  STORES,4,0,4,"Exp of School, Club & College Activities",Grocery stores
Buckinghamshire Council,31.10.2022,05.10.2022,Children's Services,Education & Childrens Services - CS Dir,ABILITY HOTELS (DUNBLANE),110,0,110,Staff Travelling Expenses,Hilton Hotels
Buckinghamshire Council,31.10.2022,05.10.2022,Children's Services,Education & Childrens Services - CS Dir,WWW.BUCKINGHAMSHIRE.GOV,916.04,0,916.04,Leaving Care  - Financial Assistance,Government services
Buckinghamshire Council,31.10.2022,05.10.2022,"Planning, Growth & Sustainability",Planning & Regeneration - PGS,TRAINLINE,25.81,0,25.81,Staff Travelling Expenses,Passenger railways
Buckinghamshire Council,31.10.2022,05.10.2022,Adults and Health,Health & Wellbeing - Adults & Health Dir,AMZNMKTPLACE,56.99,0,56.99,Stationery & Office Supplies,Miscellaneous retail
Buckinghamshire Council,31.10.2022,05.10.2022,Resources,AH&R - Res Dir,AMZNMKTPLACE,37.95,0,37.95,IT Equipment Purchase,Miscellaneous retail
Buckinghamshire Council,31.10.2022,05.10.2022,Deputy Chief Executive,Communities - DCE,AO RETAIL LIMITED,353.99,0,353.99,Other Personal Needs,Household appliance stores
Buckinghamshire Council,31.10.2022,05.10.2022,Deputy Chief Executive,Communities - DCE,BOILERJUICE,456.07,0,456.07,Petrol,Fuel dealers
Buckinghamshire Council,31.10.2022,05.10.2022,Deputy Chief Executive,Communities - DCE,AO RETAIL LIMITED,682.99,0,682.99,Other Personal Needs,Household appliance stores
Buckinghamshire Council,31.10.2022,05.10.2022,Deputy Chief Executive,Communities - DCE,AO RETAIL LIMITED,328.99,0,328.99,Other Personal Needs,Household appliance stores
Buckinghamshire Council,31.10.2022,05.10.2022,Deputy Chief Executive,Communities - DCE,AO RETAIL LIMITED,387.99,0,387.99,Other Personal Needs,Household appliance stores
Buckinghamshire Council,31.10.2022,05.10.2022,Deputy Chief Executive,Communities - DCE,AO RETAIL LIMITED,388.99,0,388.99,Other Personal Needs,Household appliance stores
Buckinghamshire Council,31.10.2022,05.10.2022,Deputy Chief Executive,Communities - DCE,ARGOS LTD,41,0,41,Other Personal Needs,Discount stores
Buckinghamshire Council,31.10.2022,05.10.2022,Deputy Chief Executive,Communities - DCE,ARGOS LTD,246.95,0,246.95,Other Personal Needs,Discount stores
Buckinghamshire Council,31.10.2022,05.10.2022,Deputy Chief Executive,Communities - DCE,ARGOS LTD,309.95,0,309.95,Other Personal Needs,Discount stores
